Workbook

Sheet STC B2M
AB1: TAT visé | AC1: 11
A6: n | B6: Article | C6: Description article | D6: Niveau d'arborescence | E6: Article Parent | F6: Réparabilité | G6: % de réparation | H6: Consommation annuelle | I6: Lieu de réparation | J6: 2014 | K6: 2015 | L6: 2016 | M6: 2017 | N6: 2018 | O6: 2019 | P6: 2020 | Q6: 2021 | R6: Total général | S6: Qté deployé | T6: Taux de panne/an | U6: Nombre de pannes / an | V6: Nombre de Def/an | W6: Nombre de Det/an | X6: Nombre de DET1 sur 5 ans | Y6: Nbr de DET 2 sur 5 ans (remplacement) | Z6: Délai global appro (j) | AA6: Délai réparation (j) | AB6: Qté besoin composé annuel | AC6: Qté besoin Annuel pondéré | AD6: Stock Etat | AE6: Stock Indus | AF6: Stock Magasin | AG6: Stock Total avant OA | AH6: OA en cours | AI6: Stock Total | AJ6: A acheter | AK6: Prix unitaire (€) | AL6: Prix Total (€) | AM6: Commentaire
A7: STC B2M | B7: 826050 | C7: BVC | D7: 0 | E7: NA | F7: Oui | G7: 95% | I7: T | J7: 274 | K7: 25 | L7: 54 | M7: 69 | N7: 67 | O7: 389 | P7: =IFERROR(VLOOKUP(B7,[2]FTR!$AQ:$AT,3,FALSE),"") -> 207 | Q7: =IFERROR(VLOOKUP(B7,[2]FTR!$AQ:$AT,4,FALSE),"") -> 33 | R7: =SUM(J7:Q7) -> 1118 | S7: 1303 | T7: =U7/S7 -> 11% | U7: =IF((R7-Y7)/8>0,(R7-Y7)/8,1) -> 140 | V7: 171 | W7: =ROUNDUP(X7/5.5,0) -> 10 | X7: 54 | Y7: 2 | Z7: =30*10 -> 300 | AA7: 2 | AB7: =ROUNDUP(MAX(K7:O7),0) -> 389 | AC7: =IF(IF(AA7>$AC$1,ROUNDUP((AB7/240)*AA7,0),0)+(2*Y7/5)<2,"2",IF(AA7>$AC$1,ROUNDUP((AB7/240)*AA7,0),0)+(2*Y7/5)) -> 2 | AD7: =IFERROR(VLOOKUP('STC B2M'!B7,'[2]Synthese SE'!AI:AK,3,FALSE),0) -> 0 | AE7: =IFERROR(VLOOKUP('STC B2M'!B7,'[2]Synthese stock Indus'!A:C,3,FALSE),0) -> 27 | AF7: =IFERROR(VLOOKUP('STC B2M'!B7,'[2]Stock Magasin'!G:I,3,FALSE),0) -> 28 | AG7: =SUM(AD7:AF7) -> 55 | AH7: =(IFERROR(VLOOKUP('STC B2M'!B7,'[2]OA en cours'!D:I,6,FALSE),0)-IFERROR(VLOOKUP('STC B2M'!B7,'[2]OA en cours'!D:I,7,FALSE),0)) -> 0 | AI7: =AG7+AH7 -> 55 | AJ7: =IF(AC7-AI7<=0,"Non",AC7-AI7) -> Non | AK7: 980 € | AL7: =IFERROR(AJ7*AK7,"0") -> 0
A8: STC B2M | B8: 1000778 | C8: BALISE | D8: 0 | E8: NA | F8: Oui | G8: 95% | I8: T | J8: 147 | K8: 89 | L8: 99 | M8: 137 | N8: 106 | O8: 126 | P8: =IFERROR(VLOOKUP(B8,[2]FTR!$AQ:$AT,3,FALSE),"") -> 139 | Q8: =IFERROR(VLOOKUP(B8,[2]FTR!$AQ:$AT,4,FALSE),"") -> 22 | R8: =SUM(J8:Q8) -> 865 | S8: 2500 | T8: =U8/S8 -> 4% | U8: =IF((R8-Y8)/8>0,(R8-Y8)/8,1) -> 107 | V8: 106 | W8: 26 | X8: 141 | Y8: 6 | Z8: =30*14 -> 420 | AA8: 10 | AB8: 137 | AC8: 2 | AD8: =IFERROR(VLOOKUP('STC B2M'!B8,'[2]Synthese SE'!AI:AK,3,FALSE),0) -> 0 | AE8: =IFERROR(VLOOKUP('STC B2M'!B8,'[2]Synthese stock Indus'!A:C,3,FALSE),0) -> 48 | AF8: =IFERROR(VLOOKUP('STC B2M'!B8,'[2]Stock Magasin'!G:I,3,FALSE),0) -> 16 | AG8: 64 | AH8: =(IFERROR(VLOOKUP('STC B2M'!B8,'[2]OA en cours'!D:I,6,FALSE),0)-IFERROR(VLOOKUP('STC B2M'!B8,'[2]OA en cours'!D:I,7,FALSE),0)) -> 0 | AI8: 64 | AJ8: Non | AK8: 1,789 € | AL8: 0
A9: STC B2M | B9: 1009191 | C9: BEO DX NG | D9: 0 | E9: NA | F9: Oui | G9: 95% | I9: S | J9: 132 | K9: 59 | L9: 76 | M9: 129 | N9: 124 | O9: 166 | P9: =IFERROR(VLOOKUP(B9,[2]FTR!$AQ:$AT,3,FALSE),"") -> 157 | Q9: =IFERROR(VLOOKUP(B9,[2]FTR!$AQ:$AT,4,FALSE),"") -> 28 | R9: 871 | S9: 789 | T9: 14% | U9: 109 | V9: 73 | W9: 58 | X9: 314 | Y9: 0 | Z9: =30*10 -> 300 | AA9: 10 | AB9: 166 | AC9: 2 | AD9: =IFERROR(VLOOKUP('STC B2M'!B9,'[2]Synthese SE'!AI:AK,3,FALSE),0) -> 0 | AE9: =IFERROR(VLOOKUP('STC B2M'!B9,'[2]Synthese stock Indus'!A:C,3,FALSE),0) -> 21 | AF9: =IFERROR(VLOOKUP('STC B2M'!B9,'[2]Stock Magasin'!G:I,3,FALSE),0) -> 0 | AG9: 21 | AH9: =(IFERROR(VLOOKUP('STC B2M'!B9,'[2]OA en cours'!D:I,6,FALSE),0)-IFERROR(VLOOKUP('STC B2M'!B9,'[2]OA en cours'!D:I,7,FALSE),0)) -> 0 | AI9: =AG9+AH9 -> 21 | AJ9: Non | AK9: 10,000 € | AL9: 0
A10: STC B2M | B10: 1005467 | C10: CORDON MDFM EQUIPE 2 CAPTEURS | D10: 0 | E10: NA | F10: Oui | G10: 70% | I10: S | J10: 54 | K10: 16 | L10: 24 | M10: 86 | N10: 45 | O10: 54 | P10: =IFERROR(VLOOKUP(B10,[2]FTR!$AQ:$AT,3,FALSE),"") -> 35 | Q10: =IFERROR(VLOOKUP(B10,[2]FTR!$AQ:$AT,4,FALSE),"") -> 14 | R10: 328 | S10: 407 | T10: 10% | U10: 41 | V10: 39 | W10: 16 | X10: 83 | Y10: 0 | Z10: =30*6 -> 180 | AA10: 5 | AB10: 86 | AC10: 2 | AD10: =IFERROR(VLOOKUP('STC B2M'!B10,'[2]Synthese SE'!AI:AK,3,FALSE),0) -> 4 | AE10: =IFERROR(VLOOKUP('STC B2M'!B10,'[2]Synthese stock Indus'!A:C,3,FALSE),0) -> 15 | AF10: =IFERROR(VLOOKUP('STC B2M'!B10,'[2]Stock Magasin'!G:I,3,FALSE),0) -> 0 | AG10: 19 | AH10: =(IFERROR(VLOOKUP('STC B2M'!B10,'[2]OA en cours'!D:I,6,FALSE),0)-IFERROR(VLOOKUP('STC B2M'!B10,'[2]OA en cours'!D:I,7,FALSE),0)) -> 0 | AI10: 19 | AJ10: Non | AK10: 400 € | AL10: 0
A11: STC B2M | B11: 1003938 | C11: BOITIER BAT ELEC EQUIPE | D11: 0 | E11: NA | F11: Oui | G11: 95% | I11: T | J11: 38 | K11: 22 | L11: 62 | M11: 57 | N11: 57 | O11: 37 | P11: =IFERROR(VLOOKUP(B11,[2]FTR!$AQ:$AT,3,FALSE),"") -> 30 | Q11: =IFERROR(VLOOKUP(B11,[2]FTR!$AQ:$AT,4,FALSE),"") -> 11 | R11: 314 | S11: 316 | T11: 12% | U11: 39 | V11: 50 | W11: 3 | X11: 15 | Y11: 0 | Z11: =30*10 -> 300 | AA11: 5 | AB11: 62 | AC11: 2 | AD11: =IFERROR(VLOOKUP('STC B2M'!B11,'[2]Synthese SE'!AI:AK,3,FALSE),0) -> 0 | AE11: =IFERROR(VLOOKUP('STC B2M'!B11,'[2]Synthese stock Indus'!A:C,3,FALSE),0) -> 21 | AF11: =IFERROR(VLOOKUP('STC B2M'!B11,'[2]Stock Magasin'!G:I,3,FALSE),0) -> 0 | AG11: 21 | AH11: =(IFERROR(VLOOKUP('STC B2M'!B11,'[2]OA en cours'!D:I,6,FALSE),0)-IFERROR(VLOOKUP('STC B2M'!B11,'[2]OA en cours'!D:I,7,FALSE),0)) -> 0 | AI11: 21 | AJ11: Non | AK11: 1,200 € | AL11: 0
A12: STC B2M | B12: 1004040 | C12: BOITIER DEL EQUIPE | D12: 0 | E12: NA | F12: Oui | G12: 95% | I12: T | J12: 47 | K12: 7 | L12: 11 | M12: 32 | N12: 31 | O12: 26 | P12: =IFERROR(VLOOKUP(B12,[2]FTR!$AQ:$AT,3,FALSE),"") -> 28 | Q12: =IFERROR(VLOOKUP(B12,[2]FTR!$AQ:$AT,4,FALSE),"") -> 6 | R12: 188 | S12: 717 | T12: 3% | U12: 23 | V12: 17 | W12: 13 | X12: 70 | Y12: 1 | Z12: =30*10 -> 300 | AA12: 10 | AB12: 32 | AC12: 2 | AD12: =IFERROR(VLOOKUP('STC B2M'!B12,'[2]Synthese SE'!AI:AK,3,FALSE),0) -> 5 | AE12: =IFERROR(VLOOKUP('STC B2M'!B12,'[2]Synthese stock Indus'!A:C,3,FALSE),0) -> 20 | AF12: =IFERROR(VLOOKUP('STC B2M'!B12,'[2]Stock Magasin'!G:I,3,FALSE),0) -> 8 | AG12: 33 | AH12: =(IFERROR(VLOOKUP('STC B2M'!B12,'[2]OA en cours'!D:I,6,FALSE),0)-IFERROR(VLOOKUP('STC B2M'!B12,'[2]OA en cours'!D:I,7,FALSE),0)) -> 0 | AI12: 33 | AJ12: Non | AK12: 200 € | AL12: 0
A13: STC B2M | B13: 1004606 | C13: BOITIER BAT BAS EQUIPE | D13: 0 | E13: NA | F13: Oui | G13: 95% | I13: T | J13: 15 | K13: 21 | L13: 14 | M13: 24 | N13: 29 | O13: 45 | P13: =IFERROR(VLOOKUP(B13,[2]FTR!$AQ:$AT,3,FALSE),"") -> 30 | Q13: =IFERROR(VLOOKUP(B13,[2]FTR!$AQ:$AT,4,FALSE),"") -> 16 | R13: 194 | S13: 950 | T13: 3% | U13: 24 | V13: 24 | W13: 4 | X13: 21 | Y13: 1 | Z13: =30*10 -> 300 | AA13: 10 | AB13: 45 | AC13: 2 | AD13: =IFERROR(VLOOKUP('STC B2M'!B13,'[2]Synthese SE'!AI:AK,3,FALSE),0) -> 3 | AE13: =IFERROR(VLOOKUP('STC B2M'!B13,'[2]Synthese stock Indus'!A:C,3,FALSE),0) -> 86 | AF13: =IFERROR(VLOOKUP('STC B2M'!B13,'[2]Stock Magasin'!G:I,3,FALSE),0) -> 0 | AG13: 89 | AH13: =(IFERROR(VLOOKUP('STC B2M'!B13,'[2]OA en cours'!D:I,6,FALSE),0)-IFERROR(VLOOKUP('STC B2M'!B13,'[2]OA en cours'!D:I,7,FALSE),0)) -> 0 | AI13: 89 | AJ13: Non | AK13: 1,000 € | AL13: 0

Sheet SYNTHESE VBA
B2: STC B2M
B6: SIMULATEURS | C6: Article | D6: Description article | E6: Stock Etat | F6: Stock Indus | G6: Stock Magasin | H6: Stock Initial : Stock Total avant OA | I6: OA en cours | J6: Conso Stock | K6: Stock Final Théorique : Stock Total | L6: Ecart de stock | M6: Stock final réel | N6: Commentaire | U6: SIMULATEURS | V6: Article | W6: Description article | X6: Stock Etat | Y6: Stock Indus | Z6: Stock Magasin | AA6: Stock Initial : Stock Total avant OA | AB6: OA en cours | AC6: Conso Stock | AD6: Stock Final Théorique : Stock Total | AE6: Ecart de stock | AF6: Stock final réel | AG6: Commentaire
B7: STC B2M | C7: 826050 | D7: BVC | E7: =IFERROR(VLOOKUP(#REF!,'[2]Synthese SE'!BB:BD,3,FALSE),0) -> 0 | F7: =IFERROR(VLOOKUP(#REF!,'[2]Synthese stock Indus'!T:V,3,FALSE),0) -> 0 | G7: =IFERROR(VLOOKUP(#REF!,'[2]Stock Magasin'!Z:AB,3,FALSE),0) -> 0 | H7: =SUM(X7:Z7) -> 0 | I7: =(IFERROR(VLOOKUP(#REF!,'[2]OA en cours'!W:AB,6,FALSE),0)-IFERROR(VLOOKUP(#REF!,'[2]OA en cours'!W:AB,7,FALSE),0)) -> 0 | J7: =IFERROR(VLOOKUP(V7,'[2]Suivi Conso Stock DET'!T:V,3,FALSE),0) -> 0 | K7: =AA7+AB7-AC7 -> 0 | L7: =AD7-AF7 -> 0 | U7: STC B2M | V7: 826050 | W7: BVC | X7: =IFERROR(VLOOKUP(#REF!,'[2]Synthese SE'!BB:BD,3,FALSE),0) -> 0 | Y7: =IFERROR(VLOOKUP(#REF!,'[2]Synthese stock Indus'!T:V,3,FALSE),0) -> 0 | Z7: =IFERROR(VLOOKUP(#REF!,'[2]Stock Magasin'!Z:AB,3,FALSE),0) -> 0 | AA7: =SUM(X7:Z7) -> 0 | AB7: =(IFERROR(VLOOKUP(#REF!,'[2]OA en cours'!W:AB,6,FALSE),0)-IFERROR(VLOOKUP(#REF!,'[2]OA en cours'!W:AB,7,FALSE),0)) -> 0 | AC7: =IFERROR(VLOOKUP(V7,'[2]Suivi Conso Stock DET'!T:V,3,FALSE),0) -> 0 | AD7: =AA7+AB7-AC7 -> 0 | AE7: =AD7-AF7 -> 0
B8: STC B2M | C8: 1000778 | D8: BALISE | E8: =IFERROR(VLOOKUP(#REF!,'[2]Synthese SE'!BB:BD,3,FALSE),0) -> 0 | F8: =IFERROR(VLOOKUP(#REF!,'[2]Synthese stock Indus'!T:V,3,FALSE),0) -> 0 | G8: =IFERROR(VLOOKUP(#REF!,'[2]Stock Magasin'!Z:AB,3,FALSE),0) -> 0 | H8: =SUM(X8:Z8) -> 0 | I8: =(IFERROR(VLOOKUP(#REF!,'[2]OA en cours'!W:AB,6,FALSE),0)-IFERROR(VLOOKUP(#REF!,'[2]OA en cours'!W:AB,7,FALSE),0)) -> 0 | J8: =IFERROR(VLOOKUP(V8,'[2]Suivi Conso Stock DET'!T:V,3,FALSE),0) -> 0 | K8: =AA8+AB8-AC8 -> 0 | L8: =AD8-AF8 -> 0 | U8: STC B2M | V8: 1000778 | W8: BALISE | X8: =IFERROR(VLOOKUP(#REF!,'[2]Synthese SE'!BB:BD,3,FALSE),0) -> 0 | Y8: =IFERROR(VLOOKUP(#REF!,'[2]Synthese stock Indus'!T:V,3,FALSE),0) -> 0 | Z8: =IFERROR(VLOOKUP(#REF!,'[2]Stock Magasin'!Z:AB,3,FALSE),0) -> 0 | AA8: 0 | AB8: =(IFERROR(VLOOKUP(#REF!,'[2]OA en cours'!W:AB,6,FALSE),0)-IFERROR(VLOOKUP(#REF!,'[2]OA en cours'!W:AB,7,FALSE),0)) -> 0 | AC8: =IFERROR(VLOOKUP(V8,'[2]Suivi Conso Stock DET'!T:V,3,FALSE),0) -> 0 | AD8: =AA8+AB8-AC8 -> 0 | AE8: =AD8-AF8 -> 0
B9: STC B2M | C9: 1009191 | D9: BEO DX NG | E9: =IFERROR(VLOOKUP(#REF!,'[2]Synthese SE'!BB:BD,3,FALSE),0) -> 0 | F9: =IFERROR(VLOOKUP(#REF!,'[2]Synthese stock Indus'!T:V,3,FALSE),0) -> 0 | G9: =IFERROR(VLOOKUP(#REF!,'[2]Stock Magasin'!Z:AB,3,FALSE),0) -> 0 | H9: =SUM(X9:Z9) -> 0 | I9: =(IFERROR(VLOOKUP(#REF!,'[2]OA en cours'!W:AB,6,FALSE),0)-IFERROR(VLOOKUP(#REF!,'[2]OA en cours'!W:AB,7,FALSE),0)) -> 0 | J9: =IFERROR(VLOOKUP(V9,'[2]Suivi Conso Stock DET'!T:V,3,FALSE),0) -> 0 | K9: =AA9+AB9-AC9 -> 0 | L9: =AD9-AF9 -> 0 | U9: STC B2M | V9: 1009191 | W9: BEO DX NG | X9: =IFERROR(VLOOKUP(#REF!,'[2]Synthese SE'!BB:BD,3,FALSE),0) -> 0 | Y9: =IFERROR(VLOOKUP(#REF!,'[2]Synthese stock Indus'!T:V,3,FALSE),0) -> 0 | Z9: =IFERROR(VLOOKUP(#REF!,'[2]Stock Magasin'!Z:AB,3,FALSE),0) -> 0 | AA9: 0 | AB9: =(IFERROR(VLOOKUP(#REF!,'[2]OA en cours'!W:AB,6,FALSE),0)-IFERROR(VLOOKUP(#REF!,'[2]OA en cours'!W:AB,7,FALSE),0)) -> 0 | AC9: =IFERROR(VLOOKUP(V9,'[2]Suivi Conso Stock DET'!T:V,3,FALSE),0) -> 0 | AD9: 0 | AE9: 0
B10: STC B2M | C10: 1005467 | D10: CORDON MDFM EQUIPE 2 CAPTEURS | E10: =IFERROR(VLOOKUP(#REF!,'[2]Synthese SE'!BB:BD,3,FALSE),0) -> 0 | F10: =IFERROR(VLOOKUP(#REF!,'[2]Synthese stock Indus'!T:V,3,FALSE),0) -> 0 | G10: =IFERROR(VLOOKUP(#REF!,'[2]Stock Magasin'!Z:AB,3,FALSE),0) -> 0 | H10: =SUM(X10:Z10) -> 0 | I10: =(IFERROR(VLOOKUP(#REF!,'[2]OA en cours'!W:AB,6,FALSE),0)-IFERROR(VLOOKUP(#REF!,'[2]OA en cours'!W:AB,7,FALSE),0)) -> 0 | J10: =IFERROR(VLOOKUP(V10,'[2]Suivi Conso Stock DET'!T:V,3,FALSE),0) -> 0 | K10: =AA10+AB10-AC10 -> 0 | L10: =AD10-AF10 -> 0 | U10: STC B2M | V10: 1005467 | W10: CORDON MDFM EQUIPE 2 CAPTEURS | X10: =IFERROR(VLOOKUP(#REF!,'[2]Synthese SE'!BB:BD,3,FALSE),0) -> 0 | Y10: =IFERROR(VLOOKUP(#REF!,'[2]Synthese stock Indus'!T:V,3,FALSE),0) -> 0 | Z10: =IFERROR(VLOOKUP(#REF!,'[2]Stock Magasin'!Z:AB,3,FALSE),0) -> 0 | AA10: 0 | AB10: =(IFERROR(VLOOKUP(#REF!,'[2]OA en cours'!W:AB,6,FALSE),0)-IFERROR(VLOOKUP(#REF!,'[2]OA en cours'!W:AB,7,FALSE),0)) -> 0 | AC10: =IFERROR(VLOOKUP(V10,'[2]Suivi Conso Stock DET'!T:V,3,FALSE),0) -> 0 | AD10: 0 | AE10: 0
B11: STC B2M | C11: 1003938 | D11: BOITIER BAT ELEC EQUIPE | E11: =IFERROR(VLOOKUP(#REF!,'[2]Synthese SE'!BB:BD,3,FALSE),0) -> 0 | F11: =IFERROR(VLOOKUP(#REF!,'[2]Synthese stock Indus'!T:V,3,FALSE),0) -> 0 | G11: =IFERROR(VLOOKUP(#REF!,'[2]Stock Magasin'!Z:AB,3,FALSE),0) -> 0 | H11: =SUM(X11:Z11) -> 0 | I11: =(IFERROR(VLOOKUP(#REF!,'[2]OA en cours'!W:AB,6,FALSE),0)-IFERROR(VLOOKUP(#REF!,'[2]OA en cours'!W:AB,7,FALSE),0)) -> 0 | J11: =IFERROR(VLOOKUP(V11,'[2]Suivi Conso Stock DET'!T:V,3,FALSE),0) -> 0 | K11: =AA11+AB11-AC11 -> 0 | L11: =AD11-AF11 -> 0 | U11: STC B2M | V11: 1003938 | W11: BOITIER BAT ELEC EQUIPE | X11: =IFERROR(VLOOKUP(#REF!,'[2]Synthese SE'!BB:BD,3,FALSE),0) -> 0 | Y11: =IFERROR(VLOOKUP(#REF!,'[2]Synthese stock Indus'!T:V,3,FALSE),0) -> 0 | Z11: =IFERROR(VLOOKUP(#REF!,'[2]Stock Magasin'!Z:AB,3,FALSE),0) -> 0 | AA11: 0 | AB11: =(IFERROR(VLOOKUP(#REF!,'[2]OA en cours'!W:AB,6,FALSE),0)-IFERROR(VLOOKUP(#REF!,'[2]OA en cours'!W:AB,7,FALSE),0)) -> 0 | AC11: =IFERROR(VLOOKUP(V11,'[2]Suivi Conso Stock DET'!T:V,3,FALSE),0) -> 0 | AD11: 0 | AE11: 0
B12: STC B2M | C12: 1004040 | D12: BOITIER DEL EQUIPE | E12: =IFERROR(VLOOKUP(#REF!,'[2]Synthese SE'!BB:BD,3,FALSE),0) -> 0 | F12: =IFERROR(VLOOKUP(#REF!,'[2]Synthese stock Indus'!T:V,3,FALSE),0) -> 0 | G12: =IFERROR(VLOOKUP(#REF!,'[2]Stock Magasin'!Z:AB,3,FALSE),0) -> 0 | H12: =SUM(X12:Z12) -> 0 | I12: =(IFERROR(VLOOKUP(#REF!,'[2]OA en cours'!W:AB,6,FALSE),0)-IFERROR(VLOOKUP(#REF!,'[2]OA en cours'!W:AB,7,FALSE),0)) -> 0 | J12: =IFERROR(VLOOKUP(V12,'[2]Suivi Conso Stock DET'!T:V,3,FALSE),0) -> 0 | K12: =AA12+AB12-AC12 -> 0 | L12: =AD12-AF12 -> 0 | U12: STC B2M | V12: 1004040 | W12: BOITIER DEL EQUIPE | X12: =IFERROR(VLOOKUP(#REF!,'[2]Synthese SE'!BB:BD,3,FALSE),0) -> 0 | Y12: =IFERROR(VLOOKUP(#REF!,'[2]Synthese stock Indus'!T:V,3,FALSE),0) -> 0 | Z12: =IFERROR(VLOOKUP(#REF!,'[2]Stock Magasin'!Z:AB,3,FALSE),0) -> 0 | AA12: 0 | AB12: =(IFERROR(VLOOKUP(#REF!,'[2]OA en cours'!W:AB,6,FALSE),0)-IFERROR(VLOOKUP(#REF!,'[2]OA en cours'!W:AB,7,FALSE),0)) -> 0 | AC12: =IFERROR(VLOOKUP(V12,'[2]Suivi Conso Stock DET'!T:V,3,FALSE),0) -> 0 | AD12: 0 | AE12: 0
B13: STC B2M | C13: 1004606 | D13: BOITIER BAT BAS EQUIPE | E13: =IFERROR(VLOOKUP(#REF!,'[2]Synthese SE'!BB:BD,3,FALSE),0) -> 0 | F13: =IFERROR(VLOOKUP(#REF!,'[2]Synthese stock Indus'!T:V,3,FALSE),0) -> 0 | G13: =IFERROR(VLOOKUP(#REF!,'[2]Stock Magasin'!Z:AB,3,FALSE),0) -> 0 | H13: =SUM(X13:Z13) -> 0 | I13: =(IFERROR(VLOOKUP(#REF!,'[2]OA en cours'!W:AB,6,FALSE),0)-IFERROR(VLOOKUP(#REF!,'[2]OA en cours'!W:AB,7,FALSE),0)) -> 0 | J13: =IFERROR(VLOOKUP(V13,'[2]Suivi Conso Stock DET'!T:V,3,FALSE),0) -> 0 | K13: =AA13+AB13-AC13 -> 0 | L13: =AD13-AF13 -> 0 | U13: STC B2M | V13: 1004606 | W13: BOITIER BAT BAS EQUIPE | X13: =IFERROR(VLOOKUP(#REF!,'[2]Synthese SE'!BB:BD,3,FALSE),0) -> 0 | Y13: =IFERROR(VLOOKUP(#REF!,'[2]Synthese stock Indus'!T:V,3,FALSE),0) -> 0 | Z13: =IFERROR(VLOOKUP(#REF!,'[2]Stock Magasin'!Z:AB,3,FALSE),0) -> 0 | AA13: 0 | AB13: =(IFERROR(VLOOKUP(#REF!,'[2]OA en cours'!W:AB,6,FALSE),0)-IFERROR(VLOOKUP(#REF!,'[2]OA en cours'!W:AB,7,FALSE),0)) -> 0 | AC13: =IFERROR(VLOOKUP(V13,'[2]Suivi Conso Stock DET'!T:V,3,FALSE),0) -> 0 | AD13: 0 | AE13: 0
U14: STC B2M | V14: 1009192 | W14: CALCULATRICE | X14: =IFERROR(VLOOKUP(#REF!,'[2]Synthese SE'!BB:BD,3,FALSE),0) -> 0 | Y14: =IFERROR(VLOOKUP(#REF!,'[2]Synthese stock Indus'!T:V,3,FALSE),0) -> 0 | Z14: =IFERROR(VLOOKUP(#REF!,'[2]Stock Magasin'!Z:AB,3,FALSE),0) -> 0 | AA14: 0 | AB14: =(IFERROR(VLOOKUP(#REF!,'[2]OA en cours'!W:AB,6,FALSE),0)-IFERROR(VLOOKUP(#REF!,'[2]OA en cours'!W:AB,7,FALSE),0)) -> 0 | AC14: =IFERROR(VLOOKUP(V14,'[2]Suivi Conso Stock DET'!T:V,3,FALSE),0) -> 0 | AD14: 0 | AE14: 0
U15: STC B2M | V15: 1004037 | W15: BOITIER SNF EQUIPE | X15: =IFERROR(VLOOKUP(#REF!,'[2]Synthese SE'!BB:BD,3,FALSE),0) -> 0 | Y15: =IFERROR(VLOOKUP(#REF!,'[2]Synthese stock Indus'!T:V,3,FALSE),0) -> 0 | Z15: =IFERROR(VLOOKUP(#REF!,'[2]Stock Magasin'!Z:AB,3,FALSE),0) -> 0 | AA15: 0 | AB15: =(IFERROR(VLOOKUP(#REF!,'[2]OA en cours'!W:AB,6,FALSE),0)-IFERROR(VLOOKUP(#REF!,'[2]OA en cours'!W:AB,7,FALSE),0)) -> 0 | AC15: =IFERROR(VLOOKUP(V15,'[2]Suivi Conso Stock DET'!T:V,3,FALSE),0) -> 0 | AD15: 0 | AE15: 0

Sheet Modele
B6: SIMULATEURS | C6: Article | D6: Description article | E6: Stock Etat | F6: Stock Indus | G6: Stock Magasin | H6: Stock Initial : Stock Total avant OA | I6: OA en cours | J6: Conso Stock | K6: Stock Final Théorique : Stock Total | L6: Ecart de stock | M6: Stock final réel | N6: Commentaire
E7: =IFERROR(VLOOKUP(#REF!,'[2]Synthese SE'!BB:BD,3,FALSE),0) -> 0 | F7: =IFERROR(VLOOKUP(#REF!,'[2]Synthese stock Indus'!T:V,3,FALSE),0) -> 0 | G7: =IFERROR(VLOOKUP(#REF!,'[2]Stock Magasin'!Z:AB,3,FALSE),0) -> 0 | H7: =SUM(X7:Z7) -> 0 | I7: =(IFERROR(VLOOKUP(#REF!,'[2]OA en cours'!W:AB,6,FALSE),0)-IFERROR(VLOOKUP(#REF!,'[2]OA en cours'!W:AB,7,FALSE),0)) -> 0 | J7: =IFERROR(VLOOKUP(V7,'[2]Suivi Conso Stock DET'!T:V,3,FALSE),0) -> 0 | K7: =AA7+AB7-AC7 -> 0 | L7: =AD7-AF7 -> 0
E8: =IFERROR(VLOOKUP(#REF!,'[2]Synthese SE'!BB:BD,3,FALSE),0) -> 0 | F8: =IFERROR(VLOOKUP(#REF!,'[2]Synthese stock Indus'!T:V,3,FALSE),0) -> 0 | G8: =IFERROR(VLOOKUP(#REF!,'[2]Stock Magasin'!Z:AB,3,FALSE),0) -> 0 | H8: =SUM(X8:Z8) -> 0 | I8: =(IFERROR(VLOOKUP(#REF!,'[2]OA en cours'!W:AB,6,FALSE),0)-IFERROR(VLOOKUP(#REF!,'[2]OA en cours'!W:AB,7,FALSE),0)) -> 0 | J8: =IFERROR(VLOOKUP(V8,'[2]Suivi Conso Stock DET'!T:V,3,FALSE),0) -> 0 | K8: =AA8+AB8-AC8 -> 0 | L8: =AD8-AF8 -> 0

Sheet MODAA (hidden)
B2: SYNTHESE : STOCK ACTIVITE SOUTIEN
B6: SIMULATEURS | C6: Article | D6: Description article | E6: Stock Etat | F6: Stock Indus | G6: Stock Magasin | H6: Stock Initial : Stock Total avant OA | I6: OA en cours | J6: Conso Stock | K6: Stock Final Théorique : Stock Total | L6: A acheter | M6: Prix unitaire (€) | N6: Prix Total (€) | O6: Ecart de stock | P6: Stock final réel | Q6: Ecart de stock | R6: Commentaire
B7: STC B2M | C7: 826050 | D7: BVC | E7: =IFERROR(VLOOKUP(MODAA!C7,'[2]Synthese SE'!AI:AK,3,FALSE),0) -> 0 | F7: =IFERROR(VLOOKUP(MODAA!C7,'[2]Synthese stock Indus'!A:C,3,FALSE),0) -> 27 | G7: =IFERROR(VLOOKUP(MODAA!C7,'[2]Stock Magasin'!G:I,3,FALSE),0) -> 28 | H7: =SUM(E7:G7) -> 55 | I7: =(IFERROR(VLOOKUP(MODAA!C7,'[2]OA en cours'!D:I,6,FALSE),0)-IFERROR(VLOOKUP(MODAA!C7,'[2]OA en cours'!D:I,7,FALSE),0)) -> 0 | J7: =IFERROR(VLOOKUP(C7,'[2]Suivi Conso Stock DET'!A:C,3,FALSE),0) -> 0 | K7: =H7+I7-J7 -> 55 | L7: =IF(#REF!-K7<=0,"Non",#REF!-K7) ->  | M7: 980 € | N7: =IFERROR(L7*M7,"0") -> 0 | O7: =I7-M7 -> -980 | Q7: =K7-O7 -> 1035
B8: STC B2M | C8: 1000778 | D8: BALISE | E8: =IFERROR(VLOOKUP(MODAA!C8,'[2]Synthese SE'!AI:AK,3,FALSE),0) -> 0 | F8: =IFERROR(VLOOKUP(MODAA!C8,'[2]Synthese stock Indus'!A:C,3,FALSE),0) -> 48 | G8: =IFERROR(VLOOKUP(MODAA!C8,'[2]Stock Magasin'!G:I,3,FALSE),0) -> 16 | H8: 64 | I8: =(IFERROR(VLOOKUP(MODAA!C8,'[2]OA en cours'!D:I,6,FALSE),0)-IFERROR(VLOOKUP(MODAA!C8,'[2]OA en cours'!D:I,7,FALSE),0)) -> 0 | J8: =IFERROR(VLOOKUP(C8,'[2]Suivi Conso Stock DET'!A:C,3,FALSE),0) -> 0 | K8: =H8+I8-J8 -> 64 | O8: =I8-M8 -> 0 | Q8: 64
B9: STC B2M | C9: 1009191 | D9: BEO DX NG | E9: =IFERROR(VLOOKUP(MODAA!C9,'[2]Synthese SE'!AI:AK,3,FALSE),0) -> 0 | F9: =IFERROR(VLOOKUP(MODAA!C9,'[2]Synthese stock Indus'!A:C,3,FALSE),0) -> 21 | G9: =IFERROR(VLOOKUP(MODAA!C9,'[2]Stock Magasin'!G:I,3,FALSE),0) -> 0 | H9: 21 | I9: =(IFERROR(VLOOKUP(MODAA!C9,'[2]OA en cours'!D:I,6,FALSE),0)-IFERROR(VLOOKUP(MODAA!C9,'[2]OA en cours'!D:I,7,FALSE),0)) -> 0 | J9: =IFERROR(VLOOKUP(C9,'[2]Suivi Conso Stock DET'!A:C,3,FALSE),0) -> 0 | K9: 21 | O9: 0 | Q9: 21

Sheet Détail des achats (hidden)
A1: =#REF! -> 
G2: Détail des achats par OE | R2: A SUPPRIMER
E5: ="PFA 12/"&[3]VBA!$P$8 -> PFA 12/2021 | H5: ="PFA 01/"&[3]VBA!$Q$8 -> PFA 01/2022 | Q5: =H5 -> PFA 01/2022 | T5: ="PFA 02/"&[3]VBA!$Q$8 -> PFA 02/2022 | AC5: =T5 -> PFA 02/2022 | AF5: ="PFA 03/"&[3]VBA!$Q$8 -> PFA 03/2022 | AO5: =AF5 -> PFA 03/2022 | AR5: ="PFA 04/"&[3]VBA!$Q$8 -> PFA 04/2022 | BA5: =AR5 -> PFA 04/2022 | BD5: ="PFA 05/"&[3]VBA!$Q$8 -> PFA 05/2022 | BM5: =BD5 -> PFA 05/2022 | BP5: ="PFA 06/"&[3]VBA!$Q$8 -> PFA 06/2022 | BY5: =BP5 -> PFA 06/2022 | CB5: ="PFA 07/"&[3]VBA!$Q$8 -> PFA 07/2022 | CK5: =CB5 -> PFA 07/2022 | CN5: ="PFA 08/"&[3]VBA!$Q$8 -> PFA 08/2022 | CW5: =CN5 -> PFA 08/2022 | CZ5: ="PFA 09/"&[3]VBA!$Q$8 -> PFA 09/2022 | DI5: =CZ5 -> PFA 09/2022 | DL5: ="PFA 10/"&[3]VBA!$Q$8 -> PFA 10/2022 | DU5: =DL5 -> PFA 10/2022 | DX5: ="PFA 11/"&[3]VBA!$Q$8 -> PFA 11/2022 | EG5: =DX5 -> PFA 11/2022 | EJ5: ="PFA 12/"&[3]VBA!$Q$8 -> PFA 12/2022
E6: =MONTH(RIGHT(E5,7)) -> 12 | H6: =MONTH(RIGHT(H5,7)) -> 1 | K6: Ecart | Q6: =MONTH(RIGHT(Q5,7)) -> 1 | T6: =MONTH(RIGHT(T5,7)) -> 2 | W6: Ecart | AC6: =MONTH(RIGHT(AC5,7)) -> 2 | AF6: =MONTH(RIGHT(AF5,7)) -> 3 | AI6: Ecart | AO6: =MONTH(RIGHT(AO5,7)) -> 3 | AR6: =MONTH(RIGHT(AR5,7)) -> 4 | AU6: Ecart | BA6: =MONTH(RIGHT(BA5,7)) -> 4 | BD6: =MONTH(RIGHT(BD5,7)) -> 5 | BG6: Ecart | BM6: =MONTH(RIGHT(BM5,7)) -> 5 | BP6: =MONTH(RIGHT(BP5,7)) -> 6 | BS6: Ecart | BY6: =MONTH(RIGHT(BY5,7)) -> 6 | CB6: =MONTH(RIGHT(CB5,7)) -> 7 | CE6: Ecart | CK6: =MONTH(RIGHT(CK5,7)) -> 7 | CN6: =MONTH(RIGHT(CN5,7)) -> 8 | CQ6: Ecart | CW6: =MONTH(RIGHT(CW5,7)) -> 8 | CZ6: =MONTH(RIGHT(CZ5,7)) -> 9 | DC6: Ecart | DI6: =MONTH(RIGHT(DI5,7)) -> 9 | DL6: =MONTH(RIGHT(DL5,7)) -> 10 | DO6: Ecart | DU6: =MONTH(RIGHT(DU5,7)) -> 10 | DX6: =MONTH(RIGHT(DX5,7)) -> 11 | EA6: Ecart | EG6: =MONTH(RIGHT(EG5,7)) -> 11 | EJ6: =MONTH(RIGHT(EJ5,7)) -> 12 | EM6: Ecart
A7: OE | C7: Budget | E7: Réalisé | F7: RAF | G7: Total PFA | H7: Réalisé | I7: RAF | J7: Total PFA | K7: PFA M-1 | M7: OE | O7: budget | Q7: Réalisé | R7: RAF | S7: Total PFA | T7: Réalisé | U7: RAF | V7: Total PFA | W7: PFA M-1 | Y7: OE | AA7: budget | AC7: Réalisé | AD7: RAF | AE7: Total PFA | AF7: Réalisé | AG7: RAF | AH7: Total PFA | AI7: PFA M-1 | AK7: OE | AM7: budget | AO7: Réalisé | AP7: RAF | AQ7: Total PFA | AR7: Réalisé | AS7: RAF | AT7: Total PFA | AU7: PFA M-1 | AW7: OE | AY7: budget | BA7: Réalisé | BB7: RAF | BC7: Total PFA | BD7: Réalisé | BE7: RAF | BF7: Total PFA | BG7: PFA M-1 | BI7: OE | BK7: budget | BM7: Réalisé | BN7: RAF | BO7: Total PFA | BP7: Réalisé | BQ7: RAF | BR7: Total PFA | BS7: PFA M-1 | BU7: OE | BW7: budget | BY7: Réalisé | BZ7: RAF | CA7: Total PFA | CB7: Réalisé | CC7: RAF | CD7: Total PFA | CE7: PFA M-1 | CG7: OE | CI7: budget | CK7: Réalisé | CL7: RAF | CM7: Total PFA | CN7: Réalisé | CO7: RAF | CP7: Total PFA | CQ7: PFA M-1 | CS7: OE | CU7: budget | CW7: Réalisé | CX7: RAF | CY7: Total PFA | CZ7: Réalisé | DA7: RAF | DB7: Total PFA | DC7: PFA M-1 | DE7: OE | DG7: budget | DI7: Réalisé | DJ7: RAF | DK7: Total PFA | DL7: Réalisé | DM7: RAF | DN7: Total PFA | DO7: PFA M-1 | DQ7: OE | DS7: budget | DU7: Réalisé | DV7: RAF | DW7: Total PFA | DX7: Réalisé | DY7: RAF | DZ7: Total PFA | EA7: PFA M-1 | EC7: OE | EE7: budget | EG7: Réalisé | EH7: RAF | EI7: Total PFA | EJ7: Réalisé | EK7: RAF | EL7: Total PFA | EM7: PFA M-1
A8: 22001ATU1 | B8: ACHATS | C8: =IFERROR(VLOOKUP(A8&B8,#REF!,8,FALSE)/1000,0) -> 0 k€ | D8: 0 k€ | E8: 0 k€ | F8: =(IFERROR(+INDEX(#REF!,MATCH($A8,#REF!,0),MATCH(LEFT($B8,1),#REF!,0)),0)) -> 0 k€ | G8: =SUM(D8:F8) -> 0 k€ | H8: 0 k€ | I8: =(IFERROR(+INDEX(#REF!,MATCH($A8,#REF!,0),MATCH(LEFT($B8,1),#REF!,0)),0)) -> 0 k€ | J8: =SUM(H8:I8) -> 0 k€ | K8: =J8-G8 -> 0 k€ | M8: 22001ATU1 | N8: ACHATS | O8: =IFERROR(VLOOKUP(M8&N8,#REF!,8,FALSE)/1000,0) -> 0 k€ | P8: 0 k€ | Q8: 0 k€ | R8: =(IFERROR(+INDEX(#REF!,MATCH($A8,#REF!,0),MATCH(LEFT($B8,1),#REF!,0)),0)) -> 0 k€ | S8: =SUM(P8:R8) -> 0 k€ | T8: 0 k€ | U8: =(IFERROR(+INDEX(#REF!,MATCH($A8,#REF!,0),MATCH(LEFT($B8,1),#REF!,0)),0)) -> 0 k€ | V8: =SUM(T8:U8) -> 0 k€ | W8: =V8-S8 -> 0 k€ | Y8: 22001ATU1 | Z8: ACHATS | AA8: =IFERROR(VLOOKUP(Y8&Z8,#REF!,8,FALSE)/1000,0) -> 0 k€ | AB8: 0 k€ | AC8: 0 k€ | AD8: =(IFERROR(+INDEX(#REF!,MATCH($A8,#REF!,0),MATCH(LEFT($B8,1),#REF!,0)),0)) -> 0 k€ | AE8: =SUM(AB8:AD8) -> 0 k€ | AF8: 0 k€ | AG8: =(IFERROR(+INDEX(#REF!,MATCH($A8,#REF!,0),MATCH(LEFT($B8,1),#REF!,0)),0)) -> 0 k€ | AH8: =SUM(AF8:AG8) -> 0 k€ | AI8: =AH8-AE8 -> 0 k€
A9: 22001ATU1 | B9: SOUS TRAITANCE | C9: =IFERROR(VLOOKUP(A9&B9,#REF!,8,FALSE)/1000,0) -> 0 k€ | D9: 0 k€ | E9: 0 k€ | F9: =(IFERROR(+INDEX(#REF!,MATCH($A9,#REF!,0),MATCH(LEFT($B9,1),#REF!,0)),0)) -> 0 k€ | G9: =SUM(D9:F9) -> 0 k€ | H9: 0 k€ | I9: =(IFERROR(+INDEX(#REF!,MATCH($A9,#REF!,0),MATCH(LEFT($B9,1),#REF!,0)),0)) -> 0 k€ | J9: =SUM(H9:I9) -> 0 k€ | K9: =J9-G9 -> 0 k€ | M9: 22001ATU1 | N9: SOUS TRAITANCE | O9: =IFERROR(VLOOKUP(M9&N9,#REF!,8,FALSE)/1000,0) -> 0 k€ | P9: 0 k€ | Q9: 0 k€ | R9: =(IFERROR(+INDEX(#REF!,MATCH($A9,#REF!,0),MATCH(LEFT($B9,1),#REF!,0)),0)) -> 0 k€ | S9: =SUM(P9:R9) -> 0 k€ | T9: 0 k€ | U9: =(IFERROR(+INDEX(#REF!,MATCH($A9,#REF!,0),MATCH(LEFT($B9,1),#REF!,0)),0)) -> 0 k€ | V9: =SUM(T9:U9) -> 0 k€ | W9: =V9-S9 -> 0 k€ | Y9: 22001ATU1 | Z9: SOUS TRAITANCE | AA9: =IFERROR(VLOOKUP(Y9&Z9,#REF!,8,FALSE)/1000,0) -> 0 k€ | AB9: 0 k€ | AC9: 0 k€ | AD9: =(IFERROR(+INDEX(#REF!,MATCH($A9,#REF!,0),MATCH(LEFT($B9,1),#REF!,0)),0)) -> 0 k€ | AE9: =SUM(AB9:AD9) -> 0 k€ | AF9: 0 k€ | AG9: =(IFERROR(+INDEX(#REF!,MATCH($A9,#REF!,0),MATCH(LEFT($B9,1),#REF!,0)),0)) -> 0 k€ | AH9: =SUM(AF9:AG9) -> 0 k€ | AI9: =AH9-AE9 -> 0 k€
A10: 22001ATU1 | B10: FRAIS | C10: =IFERROR(VLOOKUP(A10&B10,#REF!,8,FALSE)/1000,0) -> 0 k€ | D10: 0 k€ | E10: 0 k€ | F10: =(IFERROR(+INDEX(#REF!,MATCH($A10,#REF!,0),MATCH(LEFT($B10,1),#REF!,0)),0)) -> 0 k€ | G10: =SUM(D10:F10) -> 0 k€ | H10: 0 k€ | I10: =(IFERROR(+INDEX(#REF!,MATCH($A10,#REF!,0),MATCH(LEFT($B10,1),#REF!,0)),0)) -> 0 k€ | J10: =SUM(H10:I10) -> 0 k€ | K10: =J10-G10 -> 0 k€ | M10: 22001ATU1 | N10: FRAIS | O10: =IFERROR(VLOOKUP(M10&N10,#REF!,8,FALSE)/1000,0) -> 0 k€ | P10: 0 k€ | Q10: 0 k€ | R10: =(IFERROR(+INDEX(#REF!,MATCH($A10,#REF!,0),MATCH(LEFT($B10,1),#REF!,0)),0)) -> 0 k€ | S10: =SUM(P10:R10) -> 0 k€ | T10: 0 k€ | U10: =(IFERROR(+INDEX(#REF!,MATCH($A10,#REF!,0),MATCH(LEFT($B10,1),#REF!,0)),0)) -> 0 k€ | V10: =SUM(T10:U10) -> 0 k€ | W10: =V10-S10 -> 0 k€ | Y10: 22001ATU1 | Z10: FRAIS | AA10: =IFERROR(VLOOKUP(Y10&Z10,#REF!,8,FALSE)/1000,0) -> 0 k€ | AB10: 0 k€ | AC10: 0 k€ | AD10: =(IFERROR(+INDEX(#REF!,MATCH($A10,#REF!,0),MATCH(LEFT($B10,1),#REF!,0)),0)) -> 0 k€ | AE10: =SUM(AB10:AD10) -> 0 k€ | AF10: 0 k€ | AG10: =(IFERROR(+INDEX(#REF!,MATCH($A10,#REF!,0),MATCH(LEFT($B10,1),#REF!,0)),0)) -> 0 k€ | AH10: =SUM(AF10:AG10) -> 0 k€ | AI10: =AH10-AE10 -> 0 k€
A11: 22001ATU1 | B11: ENGAGÉ | C11: =IFERROR(VLOOKUP(A11&B11,#REF!,8,FALSE)/1000,0) -> 0 k€ | D11: 0 k€ | E11: 0 k€ | F11: =(IFERROR(+INDEX(#REF!,MATCH($A11,#REF!,0),MATCH("A+S+F",#REF!,0)),0)) -> 0 k€ | G11: =SUM(D11:F11) -> 0 k€ | H11: 0 k€ | I11: =(IFERROR(+INDEX(#REF!,MATCH($A11,#REF!,0),MATCH("A+S+F",#REF!,0)),0)) -> 0 k€ | J11: =SUM(H11:I11) -> 0 k€ | K11: =J11-G11 -> 0 k€ | M11: 22001ATU1 | N11: ENGAGÉ | O11: =IFERROR(VLOOKUP(M11&N11,#REF!,8,FALSE)/1000,0) -> 0 k€ | P11: 0 k€ | Q11: 0 k€ | R11: =(IFERROR(+INDEX(#REF!,MATCH($A11,#REF!,0),MATCH("A+S+F",#REF!,0)),0)) -> 0 k€ | S11: =SUM(P11:R11) -> 0 k€ | T11: 0 k€ | U11: =(IFERROR(+INDEX(#REF!,MATCH($A11,#REF!,0),MATCH("A+S+F",#REF!,0)),0)) -> 0 k€ | V11: =SUM(T11:U11) -> 0 k€ | W11: =V11-S11 -> 0 k€ | Y11: 22001ATU1 | Z11: ENGAGÉ | AA11: =IFERROR(VLOOKUP(Y11&Z11,#REF!,8,FALSE)/1000,0) -> 0 k€ | AB11: 0 k€ | AC11: 0 k€ | AD11: =(IFERROR(+INDEX(#REF!,MATCH($A11,#REF!,0),MATCH("A+S+F",#REF!,0)),0)) -> 0 k€ | AE11: =SUM(AB11:AD11) -> 0 k€ | AF11: 0 k€ | AG11: =(IFERROR(+INDEX(#REF!,MATCH($A11,#REF!,0),MATCH("A+S+F",#REF!,0)),0)) -> 0 k€ | AH11: =SUM(AF11:AG11) -> 0 k€ | AI11: =AH11-AE11 -> 0 k€
A12: =A11 -> 22001ATU1 | B12: ssTotal | C12: =SUM(C8:C11) -> 0 | D12: =SUM(D8:D11) -> 0 k€ | E12: =SUM(E8:E11) -> 0 k€ | F12: 0 k€ | G12: 0 k€ | H12: 0 k€ | I12: 0 k€ | J12: 0 k€ | K12: 0 k€ | M12: =M11 -> 22001ATU1 | N12: ssTotal | O12: =SUM(O8:O11) -> 0 k€ | P12: =SUM(P8:P11) -> 0 k€ | Q12: =SUM(Q8:Q11) -> 0 k€ | R12: 0 k€ | S12: 0 k€ | T12: 0 k€ | U12: 0 k€ | V12: 0 k€ | W12: 0 k€ | Y12: =Y11 -> 22001ATU1 | Z12: ssTotal | AA12: =SUM(AA8:AA11) -> 0 k€ | AB12: =SUM(AB8:AB11) -> 0 k€ | AC12: =SUM(AC8:AC11) -> 0 k€ | AD12: 0 k€ | AE12: 0 k€ | AF12: 0 k€ | AG12: 0 k€ | AH12: 0 k€ | AI12: 0 k€
A14: 22001DET1 | B14: ACHATS | C14: =IFERROR(VLOOKUP(A14&B14,#REF!,8,FALSE)/1000,0) -> 0 k€ | D14: 0 k€ | E14: 0 k€ | F14: =(IFERROR(+INDEX(#REF!,MATCH($A14,#REF!,0),MATCH(LEFT($B14,1),#REF!,0)),0)) -> 0 k€ | G14: =SUM(D14:F14) -> 0 k€ | H14: 0 k€ | I14: =(IFERROR(+INDEX(#REF!,MATCH($A14,#REF!,0),MATCH(LEFT($B14,1),#REF!,0)),0)) -> 0 k€ | J14: =SUM(H14:I14) -> 0 k€ | K14: =J14-G14 -> 0 k€ | M14: 22001DET1 | N14: ACHATS | O14: =IFERROR(VLOOKUP(M14&N14,#REF!,8,FALSE)/1000,0) -> 0 k€ | P14: 0 k€ | Q14: 0 k€ | R14: =(IFERROR(+INDEX(#REF!,MATCH($A14,#REF!,0),MATCH(LEFT($B14,1),#REF!,0)),0)) -> 0 k€ | S14: =SUM(P14:R14) -> 0 k€ | T14: 0 k€ | U14: =(IFERROR(+INDEX(#REF!,MATCH($A14,#REF!,0),MATCH(LEFT($B14,1),#REF!,0)),0)) -> 0 k€ | V14: =SUM(T14:U14) -> 0 k€ | W14: =V14-S14 -> 0 k€ | Y14: 22001DET1 | Z14: ACHATS | AA14: =IFERROR(VLOOKUP(Y14&Z14,#REF!,8,FALSE)/1000,0) -> 0 k€ | AB14: 0 k€ | AC14: 0 k€ | AD14: =(IFERROR(+INDEX(#REF!,MATCH($A14,#REF!,0),MATCH(LEFT($B14,1),#REF!,0)),0)) -> 0 k€ | AE14: =SUM(AB14:AD14) -> 0 k€ | AF14: 0 k€ | AG14: =(IFERROR(+INDEX(#REF!,MATCH($A14,#REF!,0),MATCH(LEFT($B14,1),#REF!,0)),0)) -> 0 k€ | AH14: =SUM(AF14:AG14) -> 0 k€ | AI14: =AH14-AE14 -> 0 k€
A15: 22001DET1 | B15: SOUS TRAITANCE | C15: =IFERROR(VLOOKUP(A15&B15,#REF!,8,FALSE)/1000,0) -> 0 k€ | D15: 0 k€ | E15: 0 k€ | F15: =(IFERROR(+INDEX(#REF!,MATCH($A15,#REF!,0),MATCH(LEFT($B15,1),#REF!,0)),0)) -> 0 k€ | G15: =SUM(D15:F15) -> 0 k€ | H15: 0 k€ | I15: =(IFERROR(+INDEX(#REF!,MATCH($A15,#REF!,0),MATCH(LEFT($B15,1),#REF!,0)),0)) -> 0 k€ | J15: =SUM(H15:I15) -> 0 k€ | K15: =J15-G15 -> 0 k€ | M15: 22001DET1 | N15: SOUS TRAITANCE | O15: =IFERROR(VLOOKUP(M15&N15,#REF!,8,FALSE)/1000,0) -> 0 k€ | P15: 0 k€ | Q15: 0 k€ | R15: =(IFERROR(+INDEX(#REF!,MATCH($A15,#REF!,0),MATCH(LEFT($B15,1),#REF!,0)),0)) -> 0 k€ | S15: =SUM(P15:R15) -> 0 k€ | T15: 0 k€ | U15: =(IFERROR(+INDEX(#REF!,MATCH($A15,#REF!,0),MATCH(LEFT($B15,1),#REF!,0)),0)) -> 0 k€ | V15: =SUM(T15:U15) -> 0 k€ | W15: =V15-S15 -> 0 k€ | Y15: 22001DET1 | Z15: SOUS TRAITANCE | AA15: =IFERROR(VLOOKUP(Y15&Z15,#REF!,8,FALSE)/1000,0) -> 0 k€ | AB15: 0 k€ | AC15: 0 k€ | AD15: =(IFERROR(+INDEX(#REF!,MATCH($A15,#REF!,0),MATCH(LEFT($B15,1),#REF!,0)),0)) -> 0 k€ | AE15: =SUM(AB15:AD15) -> 0 k€ | AF15: 0 k€ | AG15: =(IFERROR(+INDEX(#REF!,MATCH($A15,#REF!,0),MATCH(LEFT($B15,1),#REF!,0)),0)) -> 0 k€ | AH15: =SUM(AF15:AG15) -> 0 k€ | AI15: =AH15-AE15 -> 0 k€
A16: 22001DET1 | B16: FRAIS | C16: =IFERROR(VLOOKUP(A16&B16,#REF!,8,FALSE)/1000,0) -> 0 k€ | D16: 0 k€ | E16: 0 k€ | F16: =(IFERROR(+INDEX(#REF!,MATCH($A16,#REF!,0),MATCH(LEFT($B16,1),#REF!,0)),0)) -> 0 k€ | G16: =SUM(D16:F16) -> 0 k€ | H16: 0 k€ | I16: =(IFERROR(+INDEX(#REF!,MATCH($A16,#REF!,0),MATCH(LEFT($B16,1),#REF!,0)),0)) -> 0 k€ | J16: =SUM(H16:I16) -> 0 k€ | K16: =J16-G16 -> 0 k€ | M16: 22001DET1 | N16: FRAIS | O16: =IFERROR(VLOOKUP(M16&N16,#REF!,8,FALSE)/1000,0) -> 0 k€ | P16: 0 k€ | Q16: 0 k€ | R16: =(IFERROR(+INDEX(#REF!,MATCH($A16,#REF!,0),MATCH(LEFT($B16,1),#REF!,0)),0)) -> 0 k€ | S16: =SUM(P16:R16) -> 0 k€ | T16: 0 k€ | U16: =(IFERROR(+INDEX(#REF!,MATCH($A16,#REF!,0),MATCH(LEFT($B16,1),#REF!,0)),0)) -> 0 k€ | V16: =SUM(T16:U16) -> 0 k€ | W16: =V16-S16 -> 0 k€ | Y16: 22001DET1 | Z16: FRAIS | AA16: =IFERROR(VLOOKUP(Y16&Z16,#REF!,8,FALSE)/1000,0) -> 0 k€ | AB16: 0 k€ | AC16: 0 k€ | AD16: =(IFERROR(+INDEX(#REF!,MATCH($A16,#REF!,0),MATCH(LEFT($B16,1),#REF!,0)),0)) -> 0 k€ | AE16: =SUM(AB16:AD16) -> 0 k€ | AF16: 0 k€ | AG16: =(IFERROR(+INDEX(#REF!,MATCH($A16,#REF!,0),MATCH(LEFT($B16,1),#REF!,0)),0)) -> 0 k€ | AH16: =SUM(AF16:AG16) -> 0 k€ | AI16: =AH16-AE16 -> 0 k€
A17: 22001DET1 | B17: ENGAGÉ | C17: =IFERROR(VLOOKUP(A17&B17,#REF!,8,FALSE)/1000,0) -> 0 k€ | D17: 0 k€ | E17: 0 k€ | F17: =(IFERROR(+INDEX(#REF!,MATCH($A17,#REF!,0),MATCH("A+S+F",#REF!,0)),0)) -> 0 k€ | G17: =SUM(D17:F17) -> 0 k€ | H17: 0 k€ | I17: =(IFERROR(+INDEX(#REF!,MATCH($A17,#REF!,0),MATCH("A+S+F",#REF!,0)),0)) -> 0 k€ | J17: =SUM(H17:I17) -> 0 k€ | K17: =J17-G17 -> 0 k€ | M17: 22001DET1 | N17: ENGAGÉ | O17: =IFERROR(VLOOKUP(M17&N17,#REF!,8,FALSE)/1000,0) -> 0 k€ | P17: 0 k€ | Q17: 0 k€ | R17: =(IFERROR(+INDEX(#REF!,MATCH($A17,#REF!,0),MATCH("A+S+F",#REF!,0)),0)) -> 0 k€ | S17: =SUM(P17:R17) -> 0 k€ | T17: 0 k€ | U17: =(IFERROR(+INDEX(#REF!,MATCH($A17,#REF!,0),MATCH("A+S+F",#REF!,0)),0)) -> 0 k€ | V17: =SUM(T17:U17) -> 0 k€ | W17: =V17-S17 -> 0 k€ | Y17: 22001DET1 | Z17: ENGAGÉ | AA17: =IFERROR(VLOOKUP(Y17&Z17,#REF!,8,FALSE)/1000,0) -> 0 k€ | AB17: 0 k€ | AC17: 0 k€ | AD17: =(IFERROR(+INDEX(#REF!,MATCH($A17,#REF!,0),MATCH("A+S+F",#REF!,0)),0)) -> 0 k€ | AE17: =SUM(AB17:AD17) -> 0 k€ | AF17: 0 k€ | AG17: =(IFERROR(+INDEX(#REF!,MATCH($A17,#REF!,0),MATCH("A+S+F",#REF!,0)),0)) -> 0 k€ | AH17: =SUM(AF17:AG17) -> 0 k€ | AI17: =AH17-AE17 -> 0 k€
A18: =A17 -> 22001DET1 | B18: ssTotal | C18: =SUM(C14:C17) -> 0 | D18: =SUM(D14:D17) -> 0 k€ | E18: =SUM(E14:E17) -> 0 k€ | F18: 0 k€ | G18: 0 k€ | H18: 0 k€ | I18: 0 k€ | J18: 0 k€ | K18: 0 k€ | M18: =M17 -> 22001DET1 | N18: ssTotal | O18: =SUM(O14:O17) -> 0 k€ | P18: =SUM(P14:P17) -> 0 k€ | Q18: =SUM(Q14:Q17) -> 0 k€ | R18: 0 k€ | S18: 0 k€ | T18: 0 k€ | U18: 0 k€ | V18: 0 k€ | W18: 0 k€ | Y18: =Y17 -> 22001DET1 | Z18: ssTotal | AA18: =SUM(AA14:AA17) -> 0 k€ | AB18: =SUM(AB14:AB17) -> 0 k€ | AC18: =SUM(AC14:AC17) -> 0 k€ | AD18: 0 k€ | AE18: 0 k€ | AF18: 0 k€ | AG18: 0 k€ | AH18: 0 k€ | AI18: 0 k€
A20: 22001MNGT | B20: ACHATS | C20: =IFERROR(VLOOKUP(A20&B20,#REF!,8,FALSE)/1000,0) -> 0 k€ | D20: 0 k€ | E20: 0 k€ | F20: =(IFERROR(+INDEX(#REF!,MATCH($A20,#REF!,0),MATCH(LEFT($B20,1),#REF!,0)),0)) -> 0 k€ | G20: =SUM(D20:F20) -> 0 k€ | H20: 0 k€ | I20: =(IFERROR(+INDEX(#REF!,MATCH($A20,#REF!,0),MATCH(LEFT($B20,1),#REF!,0)),0)) -> 0 k€ | J20: =SUM(H20:I20) -> 0 k€ | K20: =J20-G20 -> 0 k€ | M20: 22001MNGT | N20: ACHATS | O20: =IFERROR(VLOOKUP(M20&N20,#REF!,8,FALSE)/1000,0) -> 0 k€ | P20: 0 k€ | Q20: 0 k€ | R20: =(IFERROR(+INDEX(#REF!,MATCH($A20,#REF!,0),MATCH(LEFT($B20,1),#REF!,0)),0)) -> 0 k€ | S20: =SUM(P20:R20) -> 0 k€ | T20: 0 k€ | U20: =(IFERROR(+INDEX(#REF!,MATCH($A20,#REF!,0),MATCH(LEFT($B20,1),#REF!,0)),0)) -> 0 k€ | V20: =SUM(T20:U20) -> 0 k€ | W20: =V20-S20 -> 0 k€ | Y20: 22001MNGT | Z20: ACHATS | AA20: =IFERROR(VLOOKUP(Y20&Z20,#REF!,8,FALSE)/1000,0) -> 0 k€ | AB20: 0 k€ | AC20: 0 k€ | AD20: =(IFERROR(+INDEX(#REF!,MATCH($A20,#REF!,0),MATCH(LEFT($B20,1),#REF!,0)),0)) -> 0 k€ | AE20: =SUM(AB20:AD20) -> 0 k€ | AF20: 0 k€ | AG20: =(IFERROR(+INDEX(#REF!,MATCH($A20,#REF!,0),MATCH(LEFT($B20,1),#REF!,0)),0)) -> 0 k€ | AH20: =SUM(AF20:AG20) -> 0 k€ | AI20: =AH20-AE20 -> 0 k€
A21: 22001MNGT | B21: SOUS TRAITANCE | C21: =IFERROR(VLOOKUP(A21&B21,#REF!,8,FALSE)/1000,0) -> 0 k€ | D21: 0 k€ | E21: 0 k€ | F21: =(IFERROR(+INDEX(#REF!,MATCH($A21,#REF!,0),MATCH(LEFT($B21,1),#REF!,0)),0)) -> 0 k€ | G21: =SUM(D21:F21) -> 0 k€ | H21: 0 k€ | I21: =(IFERROR(+INDEX(#REF!,MATCH($A21,#REF!,0),MATCH(LEFT($B21,1),#REF!,0)),0)) -> 0 k€ | J21: =SUM(H21:I21) -> 0 k€ | K21: =J21-G21 -> 0 k€ | M21: 22001MNGT | N21: SOUS TRAITANCE | O21: =IFERROR(VLOOKUP(M21&N21,#REF!,8,FALSE)/1000,0) -> 0 k€ | P21: 0 k€ | Q21: 0 k€ | R21: =(IFERROR(+INDEX(#REF!,MATCH($A21,#REF!,0),MATCH(LEFT($B21,1),#REF!,0)),0)) -> 0 k€ | S21: =SUM(P21:R21) -> 0 k€ | T21: 0 k€ | U21: =(IFERROR(+INDEX(#REF!,MATCH($A21,#REF!,0),MATCH(LEFT($B21,1),#REF!,0)),0)) -> 0 k€ | V21: =SUM(T21:U21) -> 0 k€ | W21: =V21-S21 -> 0 k€ | Y21: 22001MNGT | Z21: SOUS TRAITANCE | AA21: =IFERROR(VLOOKUP(Y21&Z21,#REF!,8,FALSE)/1000,0) -> 0 k€ | AB21: 0 k€ | AC21: 0 k€ | AD21: =(IFERROR(+INDEX(#REF!,MATCH($A21,#REF!,0),MATCH(LEFT($B21,1),#REF!,0)),0)) -> 0 k€ | AE21: =SUM(AB21:AD21) -> 0 k€ | AF21: 0 k€ | AG21: =(IFERROR(+INDEX(#REF!,MATCH($A21,#REF!,0),MATCH(LEFT($B21,1),#REF!,0)),0)) -> 0 k€ | AH21: =SUM(AF21:AG21) -> 0 k€ | AI21: =AH21-AE21 -> 0 k€
A22: 22001MNGT | B22: FRAIS | C22: =IFERROR(VLOOKUP(A22&B22,#REF!,8,FALSE)/1000,0) -> 0 k€ | D22: 0 k€ | E22: 0 k€ | F22: =(IFERROR(+INDEX(#REF!,MATCH($A22,#REF!,0),MATCH(LEFT($B22,1),#REF!,0)),0)) -> 0 k€ | G22: =SUM(D22:F22) -> 0 k€ | H22: 0 k€ | I22: =(IFERROR(+INDEX(#REF!,MATCH($A22,#REF!,0),MATCH(LEFT($B22,1),#REF!,0)),0)) -> 0 k€ | J22: =SUM(H22:I22) -> 0 k€ | K22: =J22-G22 -> 0 k€ | M22: 22001MNGT | N22: FRAIS | O22: =IFERROR(VLOOKUP(M22&N22,#REF!,8,FALSE)/1000,0) -> 0 k€ | P22: 0 k€ | Q22: 0 k€ | R22: =(IFERROR(+INDEX(#REF!,MATCH($A22,#REF!,0),MATCH(LEFT($B22,1),#REF!,0)),0)) -> 0 k€ | S22: =SUM(P22:R22) -> 0 k€ | T22: 0 k€ | U22: =(IFERROR(+INDEX(#REF!,MATCH($A22,#REF!,0),MATCH(LEFT($B22,1),#REF!,0)),0)) -> 0 k€ | V22: =SUM(T22:U22) -> 0 k€ | W22: =V22-S22 -> 0 k€ | Y22: 22001MNGT | Z22: FRAIS | AA22: =IFERROR(VLOOKUP(Y22&Z22,#REF!,8,FALSE)/1000,0) -> 0 k€ | AB22: 0 k€ | AC22: 0 k€ | AD22: =(IFERROR(+INDEX(#REF!,MATCH($A22,#REF!,0),MATCH(LEFT($B22,1),#REF!,0)),0)) -> 0 k€ | AE22: =SUM(AB22:AD22) -> 0 k€ | AF22: 0 k€ | AG22: =(IFERROR(+INDEX(#REF!,MATCH($A22,#REF!,0),MATCH(LEFT($B22,1),#REF!,0)),0)) -> 0 k€ | AH22: =SUM(AF22:AG22) -> 0 k€ | AI22: =AH22-AE22 -> 0 k€
A23: 22001MNGT | B23: ENGAGÉ | C23: =IFERROR(VLOOKUP(A23&B23,#REF!,8,FALSE)/1000,0) -> 0 k€ | D23: 0 k€ | E23: 0 k€ | F23: =(IFERROR(+INDEX(#REF!,MATCH($A23,#REF!,0),MATCH("A+S+F",#REF!,0)),0)) -> 0 k€ | G23: =SUM(D23:F23) -> 0 k€ | H23: 0 k€ | I23: =(IFERROR(+INDEX(#REF!,MATCH($A23,#REF!,0),MATCH("A+S+F",#REF!,0)),0)) -> 0 k€ | J23: =SUM(H23:I23) -> 0 k€ | K23: =J23-G23 -> 0 k€ | M23: 22001MNGT | N23: ENGAGÉ | O23: =IFERROR(VLOOKUP(M23&N23,#REF!,8,FALSE)/1000,0) -> 0 k€ | P23: 0 k€ | Q23: 0 k€ | R23: =(IFERROR(+INDEX(#REF!,MATCH($A23,#REF!,0),MATCH("A+S+F",#REF!,0)),0)) -> 0 k€ | S23: =SUM(P23:R23) -> 0 k€ | T23: 0 k€ | U23: =(IFERROR(+INDEX(#REF!,MATCH($A23,#REF!,0),MATCH("A+S+F",#REF!,0)),0)) -> 0 k€ | V23: =SUM(T23:U23) -> 0 k€ | W23: =V23-S23 -> 0 k€ | Y23: 22001MNGT | Z23: ENGAGÉ | AA23: =IFERROR(VLOOKUP(Y23&Z23,#REF!,8,FALSE)/1000,0) -> 0 k€ | AB23: 0 k€ | AC23: 0 k€ | AD23: =(IFERROR(+INDEX(#REF!,MATCH($A23,#REF!,0),MATCH("A+S+F",#REF!,0)),0)) -> 0 k€ | AE23: =SUM(AB23:AD23) -> 0 k€ | AF23: 0 k€ | AG23: =(IFERROR(+INDEX(#REF!,MATCH($A23,#REF!,0),MATCH("A+S+F",#REF!,0)),0)) -> 0 k€ | AH23: =SUM(AF23:AG23) -> 0 k€ | AI23: =AH23-AE23 -> 0 k€
A24: =A23 -> 22001MNGT | B24: ssTotal | C24: =SUM(C20:C23) -> 0 | D24: =SUM(D20:D23) -> 0 k€ | E24: =SUM(E20:E23) -> 0 k€ | F24: 0 k€ | G24: 0 k€ | H24: 0 k€ | I24: 0 k€ | J24: 0 k€ | K24: 0 k€ | M24: =M23 -> 22001MNGT | N24: ssTotal | O24: =SUM(O20:O23) -> 0 k€ | P24: =SUM(P20:P23) -> 0 k€ | Q24: =SUM(Q20:Q23) -> 0 k€ | R24: 0 k€ | S24: 0 k€ | T24: 0 k€ | U24: 0 k€ | V24: 0 k€ | W24: 0 k€ | Y24: =Y23 -> 22001MNGT | Z24: ssTotal | AA24: =SUM(AA20:AA23) -> 0 k€ | AB24: =SUM(AB20:AB23) -> 0 k€ | AC24: =SUM(AC20:AC23) -> 0 k€ | AD24: 0 k€ | AE24: 0 k€ | AF24: 0 k€ | AG24: 0 k€ | AH24: 0 k€ | AI24: 0 k€
A26: 22001MTEC | B26: ACHATS | C26: =IFERROR(VLOOKUP(A26&B26,#REF!,8,FALSE)/1000,0) -> 0 k€ | D26: 0 k€ | E26: 0 k€ | F26: =(IFERROR(+INDEX(#REF!,MATCH($A26,#REF!,0),MATCH(LEFT($B26,1),#REF!,0)),0)) -> 0 k€ | G26: =SUM(D26:F26) -> 0 k€ | H26: 0 k€ | I26: =(IFERROR(+INDEX(#REF!,MATCH($A26,#REF!,0),MATCH(LEFT($B26,1),#REF!,0)),0)) -> 0 k€ | J26: =SUM(H26:I26) -> 0 k€ | K26: =J26-G26 -> 0 k€ | M26: 22001MTEC | N26: ACHATS | O26: =IFERROR(VLOOKUP(M26&N26,#REF!,8,FALSE)/1000,0) -> 0 k€ | P26: 0 k€ | Q26: 0 k€ | R26: =(IFERROR(+INDEX(#REF!,MATCH($A26,#REF!,0),MATCH(LEFT($B26,1),#REF!,0)),0)) -> 0 k€ | S26: =SUM(P26:R26) -> 0 k€ | T26: 0 k€ | U26: =(IFERROR(+INDEX(#REF!,MATCH($A26,#REF!,0),MATCH(LEFT($B26,1),#REF!,0)),0)) -> 0 k€ | V26: =SUM(T26:U26) -> 0 k€ | W26: =V26-S26 -> 0 k€ | Y26: 22001MTEC | Z26: ACHATS | AA26: =IFERROR(VLOOKUP(Y26&Z26,#REF!,8,FALSE)/1000,0) -> 0 k€ | AB26: 0 k€ | AC26: 0 k€ | AD26: =(IFERROR(+INDEX(#REF!,MATCH($A26,#REF!,0),MATCH(LEFT($B26,1),#REF!,0)),0)) -> 0 k€ | AE26: =SUM(AB26:AD26) -> 0 k€ | AF26: 0 k€ | AG26: =(IFERROR(+INDEX(#REF!,MATCH($A26,#REF!,0),MATCH(LEFT($B26,1),#REF!,0)),0)) -> 0 k€ | AH26: =SUM(AF26:AG26) -> 0 k€ | AI26: =AH26-AE26 -> 0 k€
A27: 22001MTEC | B27: SOUS TRAITANCE | C27: =IFERROR(VLOOKUP(A27&B27,#REF!,8,FALSE)/1000,0) -> 0 k€ | D27: 0 k€ | E27: 0 k€ | F27: =(IFERROR(+INDEX(#REF!,MATCH($A27,#REF!,0),MATCH(LEFT($B27,1),#REF!,0)),0)) -> 0 k€ | G27: =SUM(D27:F27) -> 0 k€ | H27: 0 k€ | I27: =(IFERROR(+INDEX(#REF!,MATCH($A27,#REF!,0),MATCH(LEFT($B27,1),#REF!,0)),0)) -> 0 k€ | J27: =SUM(H27:I27) -> 0 k€ | K27: =J27-G27 -> 0 k€ | M27: 22001MTEC | N27: SOUS TRAITANCE | O27: =IFERROR(VLOOKUP(M27&N27,#REF!,8,FALSE)/1000,0) -> 0 k€ | P27: 0 k€ | Q27: 0 k€ | R27: =(IFERROR(+INDEX(#REF!,MATCH($A27,#REF!,0),MATCH(LEFT($B27,1),#REF!,0)),0)) -> 0 k€ | S27: =SUM(P27:R27) -> 0 k€ | T27: 0 k€ | U27: =(IFERROR(+INDEX(#REF!,MATCH($A27,#REF!,0),MATCH(LEFT($B27,1),#REF!,0)),0)) -> 0 k€ | V27: =SUM(T27:U27) -> 0 k€ | W27: =V27-S27 -> 0 k€ | Y27: 22001MTEC | Z27: SOUS TRAITANCE | AA27: =IFERROR(VLOOKUP(Y27&Z27,#REF!,8,FALSE)/1000,0) -> 0 k€ | AB27: 0 k€ | AC27: 0 k€ | AD27: =(IFERROR(+INDEX(#REF!,MATCH($A27,#REF!,0),MATCH(LEFT($B27,1),#REF!,0)),0)) -> 0 k€ | AE27: =SUM(AB27:AD27) -> 0 k€ | AF27: 0 k€ | AG27: =(IFERROR(+INDEX(#REF!,MATCH($A27,#REF!,0),MATCH(LEFT($B27,1),#REF!,0)),0)) -> 0 k€ | AH27: =SUM(AF27:AG27) -> 0 k€ | AI27: =AH27-AE27 -> 0 k€
A28: 22001MTEC | B28: FRAIS | C28: =IFERROR(VLOOKUP(A28&B28,#REF!,8,FALSE)/1000,0) -> 0 k€ | D28: 0 k€ | E28: 0 k€ | F28: =(IFERROR(+INDEX(#REF!,MATCH($A28,#REF!,0),MATCH(LEFT($B28,1),#REF!,0)),0)) -> 0 k€ | G28: =SUM(D28:F28) -> 0 k€ | H28: 0 k€ | I28: =(IFERROR(+INDEX(#REF!,MATCH($A28,#REF!,0),MATCH(LEFT($B28,1),#REF!,0)),0)) -> 0 k€ | J28: =SUM(H28:I28) -> 0 k€ | K28: =J28-G28 -> 0 k€ | M28: 22001MTEC | N28: FRAIS | O28: =IFERROR(VLOOKUP(M28&N28,#REF!,8,FALSE)/1000,0) -> 0 k€ | P28: 0 k€ | Q28: 0 k€ | R28: =(IFERROR(+INDEX(#REF!,MATCH($A28,#REF!,0),MATCH(LEFT($B28,1),#REF!,0)),0)) -> 0 k€ | S28: =SUM(P28:R28) -> 0 k€ | T28: 0 k€ | U28: =(IFERROR(+INDEX(#REF!,MATCH($A28,#REF!,0),MATCH(LEFT($B28,1),#REF!,0)),0)) -> 0 k€ | V28: =SUM(T28:U28) -> 0 k€ | W28: =V28-S28 -> 0 k€ | Y28: 22001MTEC | Z28: FRAIS | AA28: =IFERROR(VLOOKUP(Y28&Z28,#REF!,8,FALSE)/1000,0) -> 0 k€ | AB28: 0 k€ | AC28: 0 k€ | AD28: =(IFERROR(+INDEX(#REF!,MATCH($A28,#REF!,0),MATCH(LEFT($B28,1),#REF!,0)),0)) -> 0 k€ | AE28: =SUM(AB28:AD28) -> 0 k€ | AF28: 0 k€ | AG28: =(IFERROR(+INDEX(#REF!,MATCH($A28,#REF!,0),MATCH(LEFT($B28,1),#REF!,0)),0)) -> 0 k€ | AH28: =SUM(AF28:AG28) -> 0 k€ | AI28: =AH28-AE28 -> 0 k€
A29: 22001MTEC | B29: ENGAGÉ | C29: =IFERROR(VLOOKUP(A29&B29,#REF!,8,FALSE)/1000,0) -> 0 k€ | D29: 0 k€ | E29: 0 k€ | F29: =(IFERROR(+INDEX(#REF!,MATCH($A29,#REF!,0),MATCH("A+S+F",#REF!,0)),0)) -> 0 k€ | G29: =SUM(D29:F29) -> 0 k€ | H29: 0 k€ | I29: =(IFERROR(+INDEX(#REF!,MATCH($A29,#REF!,0),MATCH("A+S+F",#REF!,0)),0)) -> 0 k€ | J29: =SUM(H29:I29) -> 0 k€ | K29: =J29-G29 -> 0 k€ | M29: 22001MTEC | N29: ENGAGÉ | O29: =IFERROR(VLOOKUP(M29&N29,#REF!,8,FALSE)/1000,0) -> 0 k€ | P29: 0 k€ | Q29: 0 k€ | R29: =(IFERROR(+INDEX(#REF!,MATCH($A29,#REF!,0),MATCH("A+S+F",#REF!,0)),0)) -> 0 k€ | S29: =SUM(P29:R29) -> 0 k€ | T29: 0 k€ | U29: =(IFERROR(+INDEX(#REF!,MATCH($A29,#REF!,0),MATCH("A+S+F",#REF!,0)),0)) -> 0 k€ | V29: =SUM(T29:U29) -> 0 k€ | W29: =V29-S29 -> 0 k€ | Y29: 22001MTEC | Z29: ENGAGÉ | AA29: =IFERROR(VLOOKUP(Y29&Z29,#REF!,8,FALSE)/1000,0) -> 0 k€ | AB29: 0 k€ | AC29: 0 k€ | AD29: =(IFERROR(+INDEX(#REF!,MATCH($A29,#REF!,0),MATCH("A+S+F",#REF!,0)),0)) -> 0 k€ | AE29: =SUM(AB29:AD29) -> 0 k€ | AF29: 0 k€ | AG29: =(IFERROR(+INDEX(#REF!,MATCH($A29,#REF!,0),MATCH("A+S+F",#REF!,0)),0)) -> 0 k€ | AH29: =SUM(AF29:AG29) -> 0 k€ | AI29: =AH29-AE29 -> 0 k€
A30: =A29 -> 22001MTEC | B30: ssTotal | C30: =SUM(C26:C29) -> 0 | D30: =SUM(D26:D29) -> 0 k€ | E30: =SUM(E26:E29) -> 0 k€ | F30: 0 k€ | G30: 0 k€ | H30: 0 k€ | I30: 0 k€ | J30: 0 k€ | K30: 0 k€ | M30: =M29 -> 22001MTEC | N30: ssTotal | O30: =SUM(O26:O29) -> 0 k€ | P30: =SUM(P26:P29) -> 0 k€ | Q30: =SUM(Q26:Q29) -> 0 k€ | R30: 0 k€ | S30: 0 k€ | T30: 0 k€ | U30: 0 k€ | V30: 0 k€ | W30: 0 k€ | Y30: =Y29 -> 22001MTEC | Z30: ssTotal | AA30: =SUM(AA26:AA29) -> 0 k€ | AB30: =SUM(AB26:AB29) -> 0 k€ | AC30: =SUM(AC26:AC29) -> 0 k€ | AD30: 0 k€ | AE30: 0 k€ | AF30: 0 k€ | AG30: 0 k€ | AH30: 0 k€ | AI30: 0 k€
A32: 22001RECA | B32: ACHATS | C32: =IFERROR(VLOOKUP(A32&B32,#REF!,8,FALSE)/1000,0) -> 0 k€ | D32: 0 k€ | E32: 0 k€ | F32: =(IFERROR(+INDEX(#REF!,MATCH($A32,#REF!,0),MATCH(LEFT($B32,1),#REF!,0)),0)) -> 0 k€ | G32: =SUM(D32:F32) -> 0 k€ | H32: 0 k€ | I32: =(IFERROR(+INDEX(#REF!,MATCH($A32,#REF!,0),MATCH(LEFT($B32,1),#REF!,0)),0)) -> 0 k€ | J32: =SUM(H32:I32) -> 0 k€ | K32: =J32-G32 -> 0 k€ | M32: 22001RECA | N32: ACHATS | O32: =IFERROR(VLOOKUP(M32&N32,#REF!,8,FALSE)/1000,0) -> 0 k€ | P32: 0 k€ | Q32: 0 k€ | R32: =(IFERROR(+INDEX(#REF!,MATCH($A32,#REF!,0),MATCH(LEFT($B32,1),#REF!,0)),0)) -> 0 k€ | S32: =SUM(P32:R32) -> 0 k€ | T32: 0 k€ | U32: =(IFERROR(+INDEX(#REF!,MATCH($A32,#REF!,0),MATCH(LEFT($B32,1),#REF!,0)),0)) -> 0 k€ | V32: =SUM(T32:U32) -> 0 k€ | W32: =V32-S32 -> 0 k€ | Y32: 22001RECA | Z32: ACHATS | AA32: =IFERROR(VLOOKUP(Y32&Z32,#REF!,8,FALSE)/1000,0) -> 0 k€ | AB32: 0 k€ | AC32: 0 k€ | AD32: =(IFERROR(+INDEX(#REF!,MATCH($A32,#REF!,0),MATCH(LEFT($B32,1),#REF!,0)),0)) -> 0 k€ | AE32: =SUM(AB32:AD32) -> 0 k€ | AF32: 0 k€ | AG32: =(IFERROR(+INDEX(#REF!,MATCH($A32,#REF!,0),MATCH(LEFT($B32,1),#REF!,0)),0)) -> 0 k€ | AH32: =SUM(AF32:AG32) -> 0 k€ | AI32: =AH32-AE32 -> 0 k€
A33: 22001RECA | B33: SOUS TRAITANCE | C33: =IFERROR(VLOOKUP(A33&B33,#REF!,8,FALSE)/1000,0) -> 0 k€ | D33: 0 k€ | E33: 0 k€ | F33: =(IFERROR(+INDEX(#REF!,MATCH($A33,#REF!,0),MATCH(LEFT($B33,1),#REF!,0)),0)) -> 0 k€ | G33: =SUM(D33:F33) -> 0 k€ | H33: 0 k€ | I33: =(IFERROR(+INDEX(#REF!,MATCH($A33,#REF!,0),MATCH(LEFT($B33,1),#REF!,0)),0)) -> 0 k€ | J33: =SUM(H33:I33) -> 0 k€ | K33: =J33-G33 -> 0 k€ | M33: 22001RECA | N33: SOUS TRAITANCE | O33: =IFERROR(VLOOKUP(M33&N33,#REF!,8,FALSE)/1000,0) -> 0 k€ | P33: 0 k€ | Q33: 0 k€ | R33: =(IFERROR(+INDEX(#REF!,MATCH($A33,#REF!,0),MATCH(LEFT($B33,1),#REF!,0)),0)) -> 0 k€ | S33: =SUM(P33:R33) -> 0 k€ | T33: 0 k€ | U33: =(IFERROR(+INDEX(#REF!,MATCH($A33,#REF!,0),MATCH(LEFT($B33,1),#REF!,0)),0)) -> 0 k€ | V33: =SUM(T33:U33) -> 0 k€ | W33: =V33-S33 -> 0 k€ | Y33: 22001RECA | Z33: SOUS TRAITANCE | AA33: =IFERROR(VLOOKUP(Y33&Z33,#REF!,8,FALSE)/1000,0) -> 0 k€ | AB33: 0 k€ | AC33: 0 k€ | AD33: =(IFERROR(+INDEX(#REF!,MATCH($A33,#REF!,0),MATCH(LEFT($B33,1),#REF!,0)),0)) -> 0 k€ | AE33: =SUM(AB33:AD33) -> 0 k€ | AF33: 0 k€ | AG33: =(IFERROR(+INDEX(#REF!,MATCH($A33,#REF!,0),MATCH(LEFT($B33,1),#REF!,0)),0)) -> 0 k€ | AH33: =SUM(AF33:AG33) -> 0 k€ | AI33: =AH33-AE33 -> 0 k€
A34: 22001RECA | B34: FRAIS | C34: =IFERROR(VLOOKUP(A34&B34,#REF!,8,FALSE)/1000,0) -> 0 k€ | D34: 0 k€ | E34: 0 k€ | F34: =(IFERROR(+INDEX(#REF!,MATCH($A34,#REF!,0),MATCH(LEFT($B34,1),#REF!,0)),0)) -> 0 k€ | G34: =SUM(D34:F34) -> 0 k€ | H34: 0 k€ | I34: =(IFERROR(+INDEX(#REF!,MATCH($A34,#REF!,0),MATCH(LEFT($B34,1),#REF!,0)),0)) -> 0 k€ | J34: =SUM(H34:I34) -> 0 k€ | K34: =J34-G34 -> 0 k€ | M34: 22001RECA | N34: FRAIS | O34: =IFERROR(VLOOKUP(M34&N34,#REF!,8,FALSE)/1000,0) -> 0 k€ | P34: 0 k€ | Q34: 0 k€ | R34: =(IFERROR(+INDEX(#REF!,MATCH($A34,#REF!,0),MATCH(LEFT($B34,1),#REF!,0)),0)) -> 0 k€ | S34: =SUM(P34:R34) -> 0 k€ | T34: 0 k€ | U34: =(IFERROR(+INDEX(#REF!,MATCH($A34,#REF!,0),MATCH(LEFT($B34,1),#REF!,0)),0)) -> 0 k€ | V34: =SUM(T34:U34) -> 0 k€ | W34: =V34-S34 -> 0 k€ | Y34: 22001RECA | Z34: FRAIS | AA34: =IFERROR(VLOOKUP(Y34&Z34,#REF!,8,FALSE)/1000,0) -> 0 k€ | AB34: 0 k€ | AC34: 0 k€ | AD34: =(IFERROR(+INDEX(#REF!,MATCH($A34,#REF!,0),MATCH(LEFT($B34,1),#REF!,0)),0)) -> 0 k€ | AE34: =SUM(AB34:AD34) -> 0 k€ | AF34: 0 k€ | AG34: =(IFERROR(+INDEX(#REF!,MATCH($A34,#REF!,0),MATCH(LEFT($B34,1),#REF!,0)),0)) -> 0 k€ | AH34: =SUM(AF34:AG34) -> 0 k€ | AI34: =AH34-AE34 -> 0 k€
A35: 22001RECA | B35: ENGAGÉ | C35: =IFERROR(VLOOKUP(A35&B35,#REF!,8,FALSE)/1000,0) -> 0 k€ | D35: 0 k€ | E35: 0 k€ | F35: =(IFERROR(+INDEX(#REF!,MATCH($A35,#REF!,0),MATCH("A+S+F",#REF!,0)),0)) -> 0 k€ | G35: =SUM(D35:F35) -> 0 k€ | H35: 0 k€ | I35: =(IFERROR(+INDEX(#REF!,MATCH($A35,#REF!,0),MATCH("A+S+F",#REF!,0)),0)) -> 0 k€ | J35: =SUM(H35:I35) -> 0 k€ | K35: =J35-G35 -> 0 k€ | M35: 22001RECA | N35: ENGAGÉ | O35: =IFERROR(VLOOKUP(M35&N35,#REF!,8,FALSE)/1000,0) -> 0 k€ | P35: 0 k€ | Q35: 0 k€ | R35: =(IFERROR(+INDEX(#REF!,MATCH($A35,#REF!,0),MATCH("A+S+F",#REF!,0)),0)) -> 0 k€ | S35: =SUM(P35:R35) -> 0 k€ | T35: 0 k€ | U35: =(IFERROR(+INDEX(#REF!,MATCH($A35,#REF!,0),MATCH("A+S+F",#REF!,0)),0)) -> 0 k€ | V35: =SUM(T35:U35) -> 0 k€ | W35: =V35-S35 -> 0 k€ | Y35: 22001RECA | Z35: ENGAGÉ | AA35: =IFERROR(VLOOKUP(Y35&Z35,#REF!,8,FALSE)/1000,0) -> 0 k€ | AB35: 0 k€ | AC35: 0 k€ | AD35: =(IFERROR(+INDEX(#REF!,MATCH($A35,#REF!,0),MATCH("A+S+F",#REF!,0)),0)) -> 0 k€ | AE35: =SUM(AB35:AD35) -> 0 k€ | AF35: 0 k€ | AG35: =(IFERROR(+INDEX(#REF!,MATCH($A35,#REF!,0),MATCH("A+S+F",#REF!,0)),0)) -> 0 k€ | AH35: =SUM(AF35:AG35) -> 0 k€ | AI35: =AH35-AE35 -> 0 k€
A36: =A35 -> 22001RECA | B36: ssTotal | C36: =SUM(C32:C35) -> 0 | D36: =SUM(D32:D35) -> 0 k€ | E36: =SUM(E32:E35) -> 0 k€ | F36: 0 k€ | G36: 0 k€ | H36: 0 k€ | I36: 0 k€ | J36: 0 k€ | K36: 0 k€ | M36: =M35 -> 22001RECA | N36: ssTotal | O36: =SUM(O32:O35) -> 0 k€ | P36: =SUM(P32:P35) -> 0 k€ | Q36: =SUM(Q32:Q35) -> 0 k€ | R36: 0 k€ | S36: 0 k€ | T36: 0 k€ | U36: 0 k€ | V36: 0 k€ | W36: 0 k€ | Y36: =Y35 -> 22001RECA | Z36: ssTotal | AA36: =SUM(AA32:AA35) -> 0 k€ | AB36: =SUM(AB32:AB35) -> 0 k€ | AC36: =SUM(AC32:AC35) -> 0 k€ | AD36: 0 k€ | AE36: 0 k€ | AF36: 0 k€ | AG36: 0 k€ | AH36: 0 k€ | AI36: 0 k€
A38: 22001RPAC | B38: ACHATS | C38: =IFERROR(VLOOKUP(A38&B38,#REF!,8,FALSE)/1000,0) -> 0 k€ | D38: 0 k€ | E38: 0 k€ | F38: =(IFERROR(+INDEX(#REF!,MATCH($A38,#REF!,0),MATCH(LEFT($B38,1),#REF!,0)),0)) -> 0 k€ | G38: =SUM(D38:F38) -> 0 k€ | H38: 0 k€ | I38: =(IFERROR(+INDEX(#REF!,MATCH($A38,#REF!,0),MATCH(LEFT($B38,1),#REF!,0)),0)) -> 0 k€ | J38: =SUM(H38:I38) -> 0 k€ | K38: =J38-G38 -> 0 k€ | M38: 22001RPAC | N38: ACHATS | O38: =IFERROR(VLOOKUP(M38&N38,#REF!,8,FALSE)/1000,0) -> 0 k€ | P38: 0 k€ | Q38: 0 k€ | R38: =(IFERROR(+INDEX(#REF!,MATCH($A38,#REF!,0),MATCH(LEFT($B38,1),#REF!,0)),0)) -> 0 k€ | S38: =SUM(P38:R38) -> 0 k€ | T38: 0 k€ | U38: =(IFERROR(+INDEX(#REF!,MATCH($A38,#REF!,0),MATCH(LEFT($B38,1),#REF!,0)),0)) -> 0 k€ | V38: =SUM(T38:U38) -> 0 k€ | W38: =V38-S38 -> 0 k€ | Y38: 22001RPAC | Z38: ACHATS | AA38: =IFERROR(VLOOKUP(Y38&Z38,#REF!,8,FALSE)/1000,0) -> 0 k€ | AB38: 0 k€ | AC38: 0 k€ | AD38: =(IFERROR(+INDEX(#REF!,MATCH($A38,#REF!,0),MATCH(LEFT($B38,1),#REF!,0)),0)) -> 0 k€ | AE38: =SUM(AB38:AD38) -> 0 k€ | AF38: 0 k€ | AG38: =(IFERROR(+INDEX(#REF!,MATCH($A38,#REF!,0),MATCH(LEFT($B38,1),#REF!,0)),0)) -> 0 k€ | AH38: =SUM(AF38:AG38) -> 0 k€ | AI38: =AH38-AE38 -> 0 k€
A39: 22001RPAC | B39: SOUS TRAITANCE | C39: =IFERROR(VLOOKUP(A39&B39,#REF!,8,FALSE)/1000,0) -> 0 k€ | D39: 0 k€ | E39: 0 k€ | F39: =(IFERROR(+INDEX(#REF!,MATCH($A39,#REF!,0),MATCH(LEFT($B39,1),#REF!,0)),0)) -> 0 k€ | G39: =SUM(D39:F39) -> 0 k€ | H39: 0 k€ | I39: =(IFERROR(+INDEX(#REF!,MATCH($A39,#REF!,0),MATCH(LEFT($B39,1),#REF!,0)),0)) -> 0 k€ | J39: =SUM(H39:I39) -> 0 k€ | K39: =J39-G39 -> 0 k€ | M39: 22001RPAC | N39: SOUS TRAITANCE | O39: =IFERROR(VLOOKUP(M39&N39,#REF!,8,FALSE)/1000,0) -> 0 k€ | P39: 0 k€ | Q39: 0 k€ | R39: =(IFERROR(+INDEX(#REF!,MATCH($A39,#REF!,0),MATCH(LEFT($B39,1),#REF!,0)),0)) -> 0 k€ | S39: =SUM(P39:R39) -> 0 k€ | T39: 0 k€ | U39: =(IFERROR(+INDEX(#REF!,MATCH($A39,#REF!,0),MATCH(LEFT($B39,1),#REF!,0)),0)) -> 0 k€ | V39: =SUM(T39:U39) -> 0 k€ | W39: =V39-S39 -> 0 k€ | Y39: 22001RPAC | Z39: SOUS TRAITANCE | AA39: =IFERROR(VLOOKUP(Y39&Z39,#REF!,8,FALSE)/1000,0) -> 0 k€ | AB39: 0 k€ | AC39: 0 k€ | AD39: =(IFERROR(+INDEX(#REF!,MATCH($A39,#REF!,0),MATCH(LEFT($B39,1),#REF!,0)),0)) -> 0 k€ | AE39: =SUM(AB39:AD39) -> 0 k€ | AF39: 0 k€ | AG39: =(IFERROR(+INDEX(#REF!,MATCH($A39,#REF!,0),MATCH(LEFT($B39,1),#REF!,0)),0)) -> 0 k€ | AH39: =SUM(AF39:AG39) -> 0 k€ | AI39: =AH39-AE39 -> 0 k€
A40: 22001RPAC | B40: FRAIS | C40: =IFERROR(VLOOKUP(A40&B40,#REF!,8,FALSE)/1000,0) -> 0 k€ | D40: 0 k€ | E40: 0 k€ | F40: =(IFERROR(+INDEX(#REF!,MATCH($A40,#REF!,0),MATCH(LEFT($B40,1),#REF!,0)),0)) -> 0 k€ | G40: =SUM(D40:F40) -> 0 k€ | H40: 0 k€ | I40: =(IFERROR(+INDEX(#REF!,MATCH($A40,#REF!,0),MATCH(LEFT($B40,1),#REF!,0)),0)) -> 0 k€ | J40: =SUM(H40:I40) -> 0 k€ | K40: =J40-G40 -> 0 k€ | M40: 22001RPAC | N40: FRAIS | O40: =IFERROR(VLOOKUP(M40&N40,#REF!,8,FALSE)/1000,0) -> 0 k€ | P40: 0 k€ | Q40: 0 k€ | R40: =(IFERROR(+INDEX(#REF!,MATCH($A40,#REF!,0),MATCH(LEFT($B40,1),#REF!,0)),0)) -> 0 k€ | S40: =SUM(P40:R40) -> 0 k€ | T40: 0 k€ | U40: =(IFERROR(+INDEX(#REF!,MATCH($A40,#REF!,0),MATCH(LEFT($B40,1),#REF!,0)),0)) -> 0 k€ | V40: =SUM(T40:U40) -> 0 k€ | W40: =V40-S40 -> 0 k€ | Y40: 22001RPAC | Z40: FRAIS | AA40: =IFERROR(VLOOKUP(Y40&Z40,#REF!,8,FALSE)/1000,0) -> 0 k€ | AB40: 0 k€ | AC40: 0 k€ | AD40: =(IFERROR(+INDEX(#REF!,MATCH($A40,#REF!,0),MATCH(LEFT($B40,1),#REF!,0)),0)) -> 0 k€ | AE40: =SUM(AB40:AD40) -> 0 k€ | AF40: 0 k€ | AG40: =(IFERROR(+INDEX(#REF!,MATCH($A40,#REF!,0),MATCH(LEFT($B40,1),#REF!,0)),0)) -> 0 k€ | AH40: =SUM(AF40:AG40) -> 0 k€ | AI40: =AH40-AE40 -> 0 k€
A41: 22001RPAC | B41: ENGAGÉ | C41: =IFERROR(VLOOKUP(A41&B41,#REF!,8,FALSE)/1000,0) -> 0 k€ | D41: 0 k€ | E41: 0 k€ | F41: =(IFERROR(+INDEX(#REF!,MATCH($A41,#REF!,0),MATCH("A+S+F",#REF!,0)),0)) -> 0 k€ | G41: =SUM(D41:F41) -> 0 k€ | H41: 0 k€ | I41: =(IFERROR(+INDEX(#REF!,MATCH($A41,#REF!,0),MATCH("A+S+F",#REF!,0)),0)) -> 0 k€ | J41: =SUM(H41:I41) -> 0 k€ | K41: =J41-G41 -> 0 k€ | M41: 22001RPAC | N41: ENGAGÉ | O41: =IFERROR(VLOOKUP(M41&N41,#REF!,8,FALSE)/1000,0) -> 0 k€ | P41: 0 k€ | Q41: 0 k€ | R41: =(IFERROR(+INDEX(#REF!,MATCH($A41,#REF!,0),MATCH("A+S+F",#REF!,0)),0)) -> 0 k€ | S41: =SUM(P41:R41) -> 0 k€ | T41: 0 k€ | U41: =(IFERROR(+INDEX(#REF!,MATCH($A41,#REF!,0),MATCH("A+S+F",#REF!,0)),0)) -> 0 k€ | V41: =SUM(T41:U41) -> 0 k€ | W41: =V41-S41 -> 0 k€ | Y41: 22001RPAC | Z41: ENGAGÉ | AA41: =IFERROR(VLOOKUP(Y41&Z41,#REF!,8,FALSE)/1000,0) -> 0 k€ | AB41: 0 k€ | AC41: 0 k€ | AD41: =(IFERROR(+INDEX(#REF!,MATCH($A41,#REF!,0),MATCH("A+S+F",#REF!,0)),0)) -> 0 k€ | AE41: =SUM(AB41:AD41) -> 0 k€ | AF41: 0 k€ | AG41: =(IFERROR(+INDEX(#REF!,MATCH($A41,#REF!,0),MATCH("A+S+F",#REF!,0)),0)) -> 0 k€ | AH41: =SUM(AF41:AG41) -> 0 k€ | AI41: =AH41-AE41 -> 0 k€
A42: =A41 -> 22001RPAC | B42: ssTotal | C42: =SUM(C38:C41) -> 0 | D42: =SUM(D38:D41) -> 0 k€ | E42: =SUM(E38:E41) -> 0 k€ | F42: 0 k€ | G42: 0 k€ | H42: 0 k€ | I42: 0 k€ | J42: 0 k€ | K42: 0 k€ | M42: =M41 -> 22001RPAC | N42: ssTotal | O42: =SUM(O38:O41) -> 0 k€ | P42: =SUM(P38:P41) -> 0 k€ | Q42: =SUM(Q38:Q41) -> 0 k€ | R42: 0 k€ | S42: 0 k€ | T42: 0 k€ | U42: 0 k€ | V42: 0 k€ | W42: 0 k€ | Y42: =Y41 -> 22001RPAC | Z42: ssTotal | AA42: =SUM(AA38:AA41) -> 0 k€ | AB42: =SUM(AB38:AB41) -> 0 k€ | AC42: =SUM(AC38:AC41) -> 0 k€ | AD42: 0 k€ | AE42: 0 k€ | AF42: 0 k€ | AG42: 0 k€ | AH42: 0 k€ | AI42: 0 k€
A44: 22001RPBM | B44: ACHATS | C44: =IFERROR(VLOOKUP(A44&B44,#REF!,8,FALSE)/1000,0) -> 0 k€ | D44: 0 k€ | E44: 0 k€ | F44: =(IFERROR(+INDEX(#REF!,MATCH($A44,#REF!,0),MATCH(LEFT($B44,1),#REF!,0)),0)) -> 0 k€ | G44: =SUM(D44:F44) -> 0 k€ | H44: 0 k€ | I44: =(IFERROR(+INDEX(#REF!,MATCH($A44,#REF!,0),MATCH(LEFT($B44,1),#REF!,0)),0)) -> 0 k€ | J44: =SUM(H44:I44) -> 0 k€ | K44: =J44-G44 -> 0 k€ | M44: 22001RPBM | N44: ACHATS | O44: =IFERROR(VLOOKUP(M44&N44,#REF!,8,FALSE)/1000,0) -> 0 k€ | P44: 0 k€ | Q44: 0 k€ | R44: =(IFERROR(+INDEX(#REF!,MATCH($A44,#REF!,0),MATCH(LEFT($B44,1),#REF!,0)),0)) -> 0 k€ | S44: =SUM(P44:R44) -> 0 k€ | T44: 0 k€ | U44: =(IFERROR(+INDEX(#REF!,MATCH($A44,#REF!,0),MATCH(LEFT($B44,1),#REF!,0)),0)) -> 0 k€ | V44: =SUM(T44:U44) -> 0 k€ | W44: =V44-S44 -> 0 k€ | Y44: 22001RPBM | Z44: ACHATS | AA44: =IFERROR(VLOOKUP(Y44&Z44,#REF!,8,FALSE)/1000,0) -> 0 k€ | AB44: 0 k€ | AC44: 0 k€ | AD44: =(IFERROR(+INDEX(#REF!,MATCH($A44,#REF!,0),MATCH(LEFT($B44,1),#REF!,0)),0)) -> 0 k€ | AE44: =SUM(AB44:AD44) -> 0 k€ | AF44: 0 k€ | AG44: =(IFERROR(+INDEX(#REF!,MATCH($A44,#REF!,0),MATCH(LEFT($B44,1),#REF!,0)),0)) -> 0 k€ | AH44: =SUM(AF44:AG44) -> 0 k€ | AI44: =AH44-AE44 -> 0 k€
A45: 22001RPBM | B45: SOUS TRAITANCE | C45: =IFERROR(VLOOKUP(A45&B45,#REF!,8,FALSE)/1000,0) -> 0 k€ | D45: 0 k€ | E45: 0 k€ | F45: =(IFERROR(+INDEX(#REF!,MATCH($A45,#REF!,0),MATCH(LEFT($B45,1),#REF!,0)),0)) -> 0 k€ | G45: =SUM(D45:F45) -> 0 k€ | H45: 0 k€ | I45: =(IFERROR(+INDEX(#REF!,MATCH($A45,#REF!,0),MATCH(LEFT($B45,1),#REF!,0)),0)) -> 0 k€ | J45: =SUM(H45:I45) -> 0 k€ | K45: =J45-G45 -> 0 k€ | M45: 22001RPBM | N45: SOUS TRAITANCE | O45: =IFERROR(VLOOKUP(M45&N45,#REF!,8,FALSE)/1000,0) -> 0 k€ | P45: 0 k€ | Q45: 0 k€ | R45: =(IFERROR(+INDEX(#REF!,MATCH($A45,#REF!,0),MATCH(LEFT($B45,1),#REF!,0)),0)) -> 0 k€ | S45: =SUM(P45:R45) -> 0 k€ | T45: 0 k€ | U45: =(IFERROR(+INDEX(#REF!,MATCH($A45,#REF!,0),MATCH(LEFT($B45,1),#REF!,0)),0)) -> 0 k€ | V45: =SUM(T45:U45) -> 0 k€ | W45: =V45-S45 -> 0 k€ | Y45: 22001RPBM | Z45: SOUS TRAITANCE | AA45: =IFERROR(VLOOKUP(Y45&Z45,#REF!,8,FALSE)/1000,0) -> 0 k€ | AB45: 0 k€ | AC45: 0 k€ | AD45: =(IFERROR(+INDEX(#REF!,MATCH($A45,#REF!,0),MATCH(LEFT($B45,1),#REF!,0)),0)) -> 0 k€ | AE45: =SUM(AB45:AD45) -> 0 k€ | AF45: 0 k€ | AG45: =(IFERROR(+INDEX(#REF!,MATCH($A45,#REF!,0),MATCH(LEFT($B45,1),#REF!,0)),0)) -> 0 k€ | AH45: =SUM(AF45:AG45) -> 0 k€ | AI45: =AH45-AE45 -> 0 k€
A46: 22001RPBM | B46: FRAIS | C46: =IFERROR(VLOOKUP(A46&B46,#REF!,8,FALSE)/1000,0) -> 0 k€ | D46: 0 k€ | E46: 0 k€ | F46: =(IFERROR(+INDEX(#REF!,MATCH($A46,#REF!,0),MATCH(LEFT($B46,1),#REF!,0)),0)) -> 0 k€ | G46: =SUM(D46:F46) -> 0 k€ | H46: 0 k€ | I46: =(IFERROR(+INDEX(#REF!,MATCH($A46,#REF!,0),MATCH(LEFT($B46,1),#REF!,0)),0)) -> 0 k€ | J46: =SUM(H46:I46) -> 0 k€ | K46: =J46-G46 -> 0 k€ | M46: 22001RPBM | N46: FRAIS | O46: =IFERROR(VLOOKUP(M46&N46,#REF!,8,FALSE)/1000,0) -> 0 k€ | P46: 0 k€ | Q46: 0 k€ | R46: =(IFERROR(+INDEX(#REF!,MATCH($A46,#REF!,0),MATCH(LEFT($B46,1),#REF!,0)),0)) -> 0 k€ | S46: =SUM(P46:R46) -> 0 k€ | T46: 0 k€ | U46: =(IFERROR(+INDEX(#REF!,MATCH($A46,#REF!,0),MATCH(LEFT($B46,1),#REF!,0)),0)) -> 0 k€ | V46: =SUM(T46:U46) -> 0 k€ | W46: =V46-S46 -> 0 k€ | Y46: 22001RPBM | Z46: FRAIS | AA46: =IFERROR(VLOOKUP(Y46&Z46,#REF!,8,FALSE)/1000,0) -> 0 k€ | AB46: 0 k€ | AC46: 0 k€ | AD46: =(IFERROR(+INDEX(#REF!,MATCH($A46,#REF!,0),MATCH(LEFT($B46,1),#REF!,0)),0)) -> 0 k€ | AE46: =SUM(AB46:AD46) -> 0 k€ | AF46: 0 k€ | AG46: =(IFERROR(+INDEX(#REF!,MATCH($A46,#REF!,0),MATCH(LEFT($B46,1),#REF!,0)),0)) -> 0 k€ | AH46: =SUM(AF46:AG46) -> 0 k€ | AI46: =AH46-AE46 -> 0 k€
A47: 22001RPBM | B47: ENGAGÉ | C47: =IFERROR(VLOOKUP(A47&B47,#REF!,8,FALSE)/1000,0) -> 0 k€ | D47: 0 k€ | E47: 0 k€ | F47: =(IFERROR(+INDEX(#REF!,MATCH($A47,#REF!,0),MATCH("A+S+F",#REF!,0)),0)) -> 0 k€ | G47: =SUM(D47:F47) -> 0 k€ | H47: 0 k€ | I47: =(IFERROR(+INDEX(#REF!,MATCH($A47,#REF!,0),MATCH("A+S+F",#REF!,0)),0)) -> 0 k€ | J47: =SUM(H47:I47) -> 0 k€ | K47: =J47-G47 -> 0 k€ | M47: 22001RPBM | N47: ENGAGÉ | O47: =IFERROR(VLOOKUP(M47&N47,#REF!,8,FALSE)/1000,0) -> 0 k€ | P47: 0 k€ | Q47: 0 k€ | R47: =(IFERROR(+INDEX(#REF!,MATCH($A47,#REF!,0),MATCH("A+S+F",#REF!,0)),0)) -> 0 k€ | S47: =SUM(P47:R47) -> 0 k€ | T47: 0 k€ | U47: =(IFERROR(+INDEX(#REF!,MATCH($A47,#REF!,0),MATCH("A+S+F",#REF!,0)),0)) -> 0 k€ | V47: =SUM(T47:U47) -> 0 k€ | W47: =V47-S47 -> 0 k€ | Y47: 22001RPBM | Z47: ENGAGÉ | AA47: =IFERROR(VLOOKUP(Y47&Z47,#REF!,8,FALSE)/1000,0) -> 0 k€ | AB47: 0 k€ | AC47: 0 k€ | AD47: =(IFERROR(+INDEX(#REF!,MATCH($A47,#REF!,0),MATCH("A+S+F",#REF!,0)),0)) -> 0 k€ | AE47: =SUM(AB47:AD47) -> 0 k€ | AF47: 0 k€ | AG47: =(IFERROR(+INDEX(#REF!,MATCH($A47,#REF!,0),MATCH("A+S+F",#REF!,0)),0)) -> 0 k€ | AH47: =SUM(AF47:AG47) -> 0 k€ | AI47: =AH47-AE47 -> 0 k€
A48: =A47 -> 22001RPBM | B48: ssTotal | C48: =SUM(C44:C47) -> 0 | D48: =SUM(D44:D47) -> 0 k€ | E48: =SUM(E44:E47) -> 0 k€ | F48: 0 k€ | G48: 0 k€ | H48: 0 k€ | I48: 0 k€ | J48: 0 k€ | K48: 0 k€ | M48: =M47 -> 22001RPBM | N48: ssTotal | O48: =SUM(O44:O47) -> 0 k€ | P48: =SUM(P44:P47) -> 0 k€ | Q48: =SUM(Q44:Q47) -> 0 k€ | R48: 0 k€ | S48: 0 k€ | T48: 0 k€ | U48: 0 k€ | V48: 0 k€ | W48: 0 k€ | Y48: =Y47 -> 22001RPBM | Z48: ssTotal | AA48: =SUM(AA44:AA47) -> 0 k€ | AB48: =SUM(AB44:AB47) -> 0 k€ | AC48: =SUM(AC44:AC47) -> 0 k€ | AD48: 0 k€ | AE48: 0 k€ | AF48: 0 k€ | AG48: 0 k€ | AH48: 0 k€ | AI48: 0 k€
A50: 22001RPDX | B50: ACHATS | C50: =IFERROR(VLOOKUP(A50&B50,#REF!,8,FALSE)/1000,0) -> 0 k€ | D50: 0 k€ | E50: 0 k€ | F50: =(IFERROR(+INDEX(#REF!,MATCH($A50,#REF!,0),MATCH(LEFT($B50,1),#REF!,0)),0)) -> 0 k€ | G50: =SUM(D50:F50) -> 0 k€ | H50: 0 k€ | I50: =(IFERROR(+INDEX(#REF!,MATCH($A50,#REF!,0),MATCH(LEFT($B50,1),#REF!,0)),0)) -> 0 k€ | J50: =SUM(H50:I50) -> 0 k€ | K50: =J50-G50 -> 0 k€ | M50: 22001RPDX | N50: ACHATS | O50: =IFERROR(VLOOKUP(M50&N50,#REF!,8,FALSE)/1000,0) -> 0 k€ | P50: 0 k€ | Q50: 0 k€ | R50: =(IFERROR(+INDEX(#REF!,MATCH($A50,#REF!,0),MATCH(LEFT($B50,1),#REF!,0)),0)) -> 0 k€ | S50: =SUM(P50:R50) -> 0 k€ | T50: 0 k€ | U50: =(IFERROR(+INDEX(#REF!,MATCH($A50,#REF!,0),MATCH(LEFT($B50,1),#REF!,0)),0)) -> 0 k€ | V50: =SUM(T50:U50) -> 0 k€ | W50: =V50-S50 -> 0 k€ | Y50: 22001RPDX | Z50: ACHATS | AA50: =IFERROR(VLOOKUP(Y50&Z50,#REF!,8,FALSE)/1000,0) -> 0 k€ | AB50: 0 k€ | AC50: 0 k€ | AD50: =(IFERROR(+INDEX(#REF!,MATCH($A50,#REF!,0),MATCH(LEFT($B50,1),#REF!,0)),0)) -> 0 k€ | AE50: =SUM(AB50:AD50) -> 0 k€ | AF50: 0 k€ | AG50: =(IFERROR(+INDEX(#REF!,MATCH($A50,#REF!,0),MATCH(LEFT($B50,1),#REF!,0)),0)) -> 0 k€ | AH50: =SUM(AF50:AG50) -> 0 k€ | AI50: =AH50-AE50 -> 0 k€
A51: 22001RPDX | B51: SOUS TRAITANCE | C51: =IFERROR(VLOOKUP(A51&B51,#REF!,8,FALSE)/1000,0) -> 0 k€ | D51: 0 k€ | E51: 0 k€ | F51: =(IFERROR(+INDEX(#REF!,MATCH($A51,#REF!,0),MATCH(LEFT($B51,1),#REF!,0)),0)) -> 0 k€ | G51: =SUM(D51:F51) -> 0 k€ | H51: 0 k€ | I51: =(IFERROR(+INDEX(#REF!,MATCH($A51,#REF!,0),MATCH(LEFT($B51,1),#REF!,0)),0)) -> 0 k€ | J51: =SUM(H51:I51) -> 0 k€ | K51: =J51-G51 -> 0 k€ | M51: 22001RPDX | N51: SOUS TRAITANCE | O51: =IFERROR(VLOOKUP(M51&N51,#REF!,8,FALSE)/1000,0) -> 0 k€ | P51: 0 k€ | Q51: 0 k€ | R51: =(IFERROR(+INDEX(#REF!,MATCH($A51,#REF!,0),MATCH(LEFT($B51,1),#REF!,0)),0)) -> 0 k€ | S51: =SUM(P51:R51) -> 0 k€ | T51: 0 k€ | U51: =(IFERROR(+INDEX(#REF!,MATCH($A51,#REF!,0),MATCH(LEFT($B51,1),#REF!,0)),0)) -> 0 k€ | V51: =SUM(T51:U51) -> 0 k€ | W51: =V51-S51 -> 0 k€ | Y51: 22001RPDX | Z51: SOUS TRAITANCE | AA51: =IFERROR(VLOOKUP(Y51&Z51,#REF!,8,FALSE)/1000,0) -> 0 k€ | AB51: 0 k€ | AC51: 0 k€ | AD51: =(IFERROR(+INDEX(#REF!,MATCH($A51,#REF!,0),MATCH(LEFT($B51,1),#REF!,0)),0)) -> 0 k€ | AE51: =SUM(AB51:AD51) -> 0 k€ | AF51: 0 k€ | AG51: =(IFERROR(+INDEX(#REF!,MATCH($A51,#REF!,0),MATCH(LEFT($B51,1),#REF!,0)),0)) -> 0 k€ | AH51: =SUM(AF51:AG51) -> 0 k€ | AI51: =AH51-AE51 -> 0 k€
A52: 22001RPDX | B52: FRAIS | C52: =IFERROR(VLOOKUP(A52&B52,#REF!,8,FALSE)/1000,0) -> 0 k€ | D52: 0 k€ | E52: 0 k€ | F52: =(IFERROR(+INDEX(#REF!,MATCH($A52,#REF!,0),MATCH(LEFT($B52,1),#REF!,0)),0)) -> 0 k€ | G52: =SUM(D52:F52) -> 0 k€ | H52: 0 k€ | I52: =(IFERROR(+INDEX(#REF!,MATCH($A52,#REF!,0),MATCH(LEFT($B52,1),#REF!,0)),0)) -> 0 k€ | J52: =SUM(H52:I52) -> 0 k€ | K52: =J52-G52 -> 0 k€ | M52: 22001RPDX | N52: FRAIS | O52: =IFERROR(VLOOKUP(M52&N52,#REF!,8,FALSE)/1000,0) -> 0 k€ | P52: 0 k€ | Q52: 0 k€ | R52: =(IFERROR(+INDEX(#REF!,MATCH($A52,#REF!,0),MATCH(LEFT($B52,1),#REF!,0)),0)) -> 0 k€ | S52: =SUM(P52:R52) -> 0 k€ | T52: 0 k€ | U52: =(IFERROR(+INDEX(#REF!,MATCH($A52,#REF!,0),MATCH(LEFT($B52,1),#REF!,0)),0)) -> 0 k€ | V52: =SUM(T52:U52) -> 0 k€ | W52: =V52-S52 -> 0 k€ | Y52: 22001RPDX | Z52: FRAIS | AA52: =IFERROR(VLOOKUP(Y52&Z52,#REF!,8,FALSE)/1000,0) -> 0 k€ | AB52: 0 k€ | AC52: 0 k€ | AD52: =(IFERROR(+INDEX(#REF!,MATCH($A52,#REF!,0),MATCH(LEFT($B52,1),#REF!,0)),0)) -> 0 k€ | AE52: =SUM(AB52:AD52) -> 0 k€ | AF52: 0 k€ | AG52: =(IFERROR(+INDEX(#REF!,MATCH($A52,#REF!,0),MATCH(LEFT($B52,1),#REF!,0)),0)) -> 0 k€ | AH52: =SUM(AF52:AG52) -> 0 k€ | AI52: =AH52-AE52 -> 0 k€
A53: 22001RPDX | B53: ENGAGÉ | C53: =IFERROR(VLOOKUP(A53&B53,#REF!,8,FALSE)/1000,0) -> 0 k€ | D53: 0 k€ | E53: 0 k€ | F53: =(IFERROR(+INDEX(#REF!,MATCH($A53,#REF!,0),MATCH("A+S+F",#REF!,0)),0)) -> 0 k€ | G53: =SUM(D53:F53) -> 0 k€ | H53: 0 k€ | I53: =(IFERROR(+INDEX(#REF!,MATCH($A53,#REF!,0),MATCH("A+S+F",#REF!,0)),0)) -> 0 k€ | J53: =SUM(H53:I53) -> 0 k€ | K53: =J53-G53 -> 0 k€ | M53: 22001RPDX | N53: ENGAGÉ | O53: =IFERROR(VLOOKUP(M53&N53,#REF!,8,FALSE)/1000,0) -> 0 k€ | P53: 0 k€ | Q53: 0 k€ | R53: =(IFERROR(+INDEX(#REF!,MATCH($A53,#REF!,0),MATCH("A+S+F",#REF!,0)),0)) -> 0 k€ | S53: =SUM(P53:R53) -> 0 k€ | T53: 0 k€ | U53: =(IFERROR(+INDEX(#REF!,MATCH($A53,#REF!,0),MATCH("A+S+F",#REF!,0)),0)) -> 0 k€ | V53: =SUM(T53:U53) -> 0 k€ | W53: =V53-S53 -> 0 k€ | Y53: 22001RPDX | Z53: ENGAGÉ | AA53: =IFERROR(VLOOKUP(Y53&Z53,#REF!,8,FALSE)/1000,0) -> 0 k€ | AB53: 0 k€ | AC53: 0 k€ | AD53: =(IFERROR(+INDEX(#REF!,MATCH($A53,#REF!,0),MATCH("A+S+F",#REF!,0)),0)) -> 0 k€ | AE53: =SUM(AB53:AD53) -> 0 k€ | AF53: 0 k€ | AG53: =(IFERROR(+INDEX(#REF!,MATCH($A53,#REF!,0),MATCH("A+S+F",#REF!,0)),0)) -> 0 k€ | AH53: =SUM(AF53:AG53) -> 0 k€ | AI53: =AH53-AE53 -> 0 k€
A54: =A53 -> 22001RPDX | B54: ssTotal | C54: =SUM(C50:C53) -> 0 | D54: =SUM(D50:D53) -> 0 k€ | E54: =SUM(E50:E53) -> 0 k€ | F54: 0 k€ | G54: 0 k€ | H54: 0 k€ | I54: 0 k€ | J54: 0 k€ | K54: 0 k€ | M54: =M53 -> 22001RPDX | N54: ssTotal | O54: =SUM(O50:O53) -> 0 k€ | P54: =SUM(P50:P53) -> 0 k€ | Q54: =SUM(Q50:Q53) -> 0 k€ | R54: 0 k€ | S54: 0 k€ | T54: 0 k€ | U54: 0 k€ | V54: 0 k€ | W54: 0 k€ | Y54: =Y53 -> 22001RPDX | Z54: ssTotal | AA54: =SUM(AA50:AA53) -> 0 k€ | AB54: =SUM(AB50:AB53) -> 0 k€ | AC54: =SUM(AC50:AC53) -> 0 k€ | AD54: 0 k€ | AE54: 0 k€ | AF54: 0 k€ | AG54: 0 k€ | AH54: 0 k€ | AI54: 0 k€
A56: 22001RPXL | B56: ACHATS | C56: =IFERROR(VLOOKUP(A56&B56,#REF!,8,FALSE)/1000,0) -> 0 k€ | D56: 0 k€ | E56: 0 k€ | F56: =(IFERROR(+INDEX(#REF!,MATCH($A56,#REF!,0),MATCH(LEFT($B56,1),#REF!,0)),0)) -> 0 k€ | G56: =SUM(D56:F56) -> 0 k€ | H56: 0 k€ | I56: =(IFERROR(+INDEX(#REF!,MATCH($A56,#REF!,0),MATCH(LEFT($B56,1),#REF!,0)),0)) -> 0 k€ | J56: =SUM(H56:I56) -> 0 k€ | K56: =J56-G56 -> 0 k€ | M56: 22001RPXL | N56: ACHATS | O56: =IFERROR(VLOOKUP(M56&N56,#REF!,8,FALSE)/1000,0) -> 0 k€ | P56: 0 k€ | Q56: 0 k€ | R56: =(IFERROR(+INDEX(#REF!,MATCH($A56,#REF!,0),MATCH(LEFT($B56,1),#REF!,0)),0)) -> 0 k€ | S56: =SUM(P56:R56) -> 0 k€ | T56: 0 k€ | U56: =(IFERROR(+INDEX(#REF!,MATCH($A56,#REF!,0),MATCH(LEFT($B56,1),#REF!,0)),0)) -> 0 k€ | V56: =SUM(T56:U56) -> 0 k€ | W56: =V56-S56 -> 0 k€ | Y56: 22001RPXL | Z56: ACHATS | AA56: =IFERROR(VLOOKUP(Y56&Z56,#REF!,8,FALSE)/1000,0) -> 0 k€ | AB56: 0 k€ | AC56: 0 k€ | AD56: =(IFERROR(+INDEX(#REF!,MATCH($A56,#REF!,0),MATCH(LEFT($B56,1),#REF!,0)),0)) -> 0 k€ | AE56: =SUM(AB56:AD56) -> 0 k€ | AF56: 0 k€ | AG56: =(IFERROR(+INDEX(#REF!,MATCH($A56,#REF!,0),MATCH(LEFT($B56,1),#REF!,0)),0)) -> 0 k€ | AH56: =SUM(AF56:AG56) -> 0 k€ | AI56: =AH56-AE56 -> 0 k€
A57: 22001RPXL | B57: SOUS TRAITANCE | C57: =IFERROR(VLOOKUP(A57&B57,#REF!,8,FALSE)/1000,0) -> 0 k€ | D57: 0 k€ | E57: 0 k€ | F57: =(IFERROR(+INDEX(#REF!,MATCH($A57,#REF!,0),MATCH(LEFT($B57,1),#REF!,0)),0)) -> 0 k€ | G57: =SUM(D57:F57) -> 0 k€ | H57: 0 k€ | I57: =(IFERROR(+INDEX(#REF!,MATCH($A57,#REF!,0),MATCH(LEFT($B57,1),#REF!,0)),0)) -> 0 k€ | J57: =SUM(H57:I57) -> 0 k€ | K57: =J57-G57 -> 0 k€ | M57: 22001RPXL | N57: SOUS TRAITANCE | O57: =IFERROR(VLOOKUP(M57&N57,#REF!,8,FALSE)/1000,0) -> 0 k€ | P57: 0 k€ | Q57: 0 k€ | R57: =(IFERROR(+INDEX(#REF!,MATCH($A57,#REF!,0),MATCH(LEFT($B57,1),#REF!,0)),0)) -> 0 k€ | S57: =SUM(P57:R57) -> 0 k€ | T57: 0 k€ | U57: =(IFERROR(+INDEX(#REF!,MATCH($A57,#REF!,0),MATCH(LEFT($B57,1),#REF!,0)),0)) -> 0 k€ | V57: =SUM(T57:U57) -> 0 k€ | W57: =V57-S57 -> 0 k€ | Y57: 22001RPXL | Z57: SOUS TRAITANCE | AA57: =IFERROR(VLOOKUP(Y57&Z57,#REF!,8,FALSE)/1000,0) -> 0 k€ | AB57: 0 k€ | AC57: 0 k€ | AD57: =(IFERROR(+INDEX(#REF!,MATCH($A57,#REF!,0),MATCH(LEFT($B57,1),#REF!,0)),0)) -> 0 k€ | AE57: =SUM(AB57:AD57) -> 0 k€ | AF57: 0 k€ | AG57: =(IFERROR(+INDEX(#REF!,MATCH($A57,#REF!,0),MATCH(LEFT($B57,1),#REF!,0)),0)) -> 0 k€ | AH57: =SUM(AF57:AG57) -> 0 k€ | AI57: =AH57-AE57 -> 0 k€
A58: 22001RPXL | B58: FRAIS | C58: =IFERROR(VLOOKUP(A58&B58,#REF!,8,FALSE)/1000,0) -> 0 k€ | D58: 0 k€ | E58: 0 k€ | F58: =(IFERROR(+INDEX(#REF!,MATCH($A58,#REF!,0),MATCH(LEFT($B58,1),#REF!,0)),0)) -> 0 k€ | G58: =SUM(D58:F58) -> 0 k€ | H58: 0 k€ | I58: =(IFERROR(+INDEX(#REF!,MATCH($A58,#REF!,0),MATCH(LEFT($B58,1),#REF!,0)),0)) -> 0 k€ | J58: =SUM(H58:I58) -> 0 k€ | K58: =J58-G58 -> 0 k€ | M58: 22001RPXL | N58: FRAIS | O58: =IFERROR(VLOOKUP(M58&N58,#REF!,8,FALSE)/1000,0) -> 0 k€ | P58: 0 k€ | Q58: 0 k€ | R58: =(IFERROR(+INDEX(#REF!,MATCH($A58,#REF!,0),MATCH(LEFT($B58,1),#REF!,0)),0)) -> 0 k€ | S58: =SUM(P58:R58) -> 0 k€ | T58: 0 k€ | U58: =(IFERROR(+INDEX(#REF!,MATCH($A58,#REF!,0),MATCH(LEFT($B58,1),#REF!,0)),0)) -> 0 k€ | V58: =SUM(T58:U58) -> 0 k€ | W58: =V58-S58 -> 0 k€ | Y58: 22001RPXL | Z58: FRAIS | AA58: =IFERROR(VLOOKUP(Y58&Z58,#REF!,8,FALSE)/1000,0) -> 0 k€ | AB58: 0 k€ | AC58: 0 k€ | AD58: =(IFERROR(+INDEX(#REF!,MATCH($A58,#REF!,0),MATCH(LEFT($B58,1),#REF!,0)),0)) -> 0 k€ | AE58: =SUM(AB58:AD58) -> 0 k€ | AF58: 0 k€ | AG58: =(IFERROR(+INDEX(#REF!,MATCH($A58,#REF!,0),MATCH(LEFT($B58,1),#REF!,0)),0)) -> 0 k€ | AH58: =SUM(AF58:AG58) -> 0 k€ | AI58: =AH58-AE58 -> 0 k€
A59: 22001RPXL | B59: ENGAGÉ | C59: =IFERROR(VLOOKUP(A59&B59,#REF!,8,FALSE)/1000,0) -> 0 k€ | D59: 0 k€ | E59: 0 k€ | F59: =(IFERROR(+INDEX(#REF!,MATCH($A59,#REF!,0),MATCH("A+S+F",#REF!,0)),0)) -> 0 k€ | G59: =SUM(D59:F59) -> 0 k€ | H59: 0 k€ | I59: =(IFERROR(+INDEX(#REF!,MATCH($A59,#REF!,0),MATCH("A+S+F",#REF!,0)),0)) -> 0 k€ | J59: =SUM(H59:I59) -> 0 k€ | K59: =J59-G59 -> 0 k€ | M59: 22001RPXL | N59: ENGAGÉ | O59: =IFERROR(VLOOKUP(M59&N59,#REF!,8,FALSE)/1000,0) -> 0 k€ | P59: 0 k€ | Q59: 0 k€ | R59: =(IFERROR(+INDEX(#REF!,MATCH($A59,#REF!,0),MATCH("A+S+F",#REF!,0)),0)) -> 0 k€ | S59: =SUM(P59:R59) -> 0 k€ | T59: 0 k€ | U59: =(IFERROR(+INDEX(#REF!,MATCH($A59,#REF!,0),MATCH("A+S+F",#REF!,0)),0)) -> 0 k€ | V59: =SUM(T59:U59) -> 0 k€ | W59: =V59-S59 -> 0 k€ | Y59: 22001RPXL | Z59: ENGAGÉ | AA59: =IFERROR(VLOOKUP(Y59&Z59,#REF!,8,FALSE)/1000,0) -> 0 k€ | AB59: 0 k€ | AC59: 0 k€ | AD59: =(IFERROR(+INDEX(#REF!,MATCH($A59,#REF!,0),MATCH("A+S+F",#REF!,0)),0)) -> 0 k€ | AE59: =SUM(AB59:AD59) -> 0 k€ | AF59: 0 k€ | AG59: =(IFERROR(+INDEX(#REF!,MATCH($A59,#REF!,0),MATCH("A+S+F",#REF!,0)),0)) -> 0 k€ | AH59: =SUM(AF59:AG59) -> 0 k€ | AI59: =AH59-AE59 -> 0 k€
A60: =A59 -> 22001RPXL | B60: ssTotal | C60: =SUM(C56:C59) -> 0 | D60: =SUM(D56:D59) -> 0 k€ | E60: =SUM(E56:E59) -> 0 k€ | F60: 0 k€ | G60: 0 k€ | H60: 0 k€ | I60: 0 k€ | J60: 0 k€ | K60: 0 k€ | M60: =M59 -> 22001RPXL | N60: ssTotal | O60: =SUM(O56:O59) -> 0 k€ | P60: =SUM(P56:P59) -> 0 k€ | Q60: =SUM(Q56:Q59) -> 0 k€ | R60: 0 k€ | S60: 0 k€ | T60: 0 k€ | U60: 0 k€ | V60: 0 k€ | W60: 0 k€ | Y60: =Y59 -> 22001RPXL | Z60: ssTotal | AA60: =SUM(AA56:AA59) -> 0 k€ | AB60: =SUM(AB56:AB59) -> 0 k€ | AC60: =SUM(AC56:AC59) -> 0 k€ | AD60: 0 k€ | AE60: 0 k€ | AF60: 0 k€ | AG60: 0 k€ | AH60: 0 k€ | AI60: 0 k€
A62: 22001RRDF | B62: ACHATS | C62: =IFERROR(VLOOKUP(A62&B62,#REF!,8,FALSE)/1000,0) -> 0 k€ | D62: 0 k€ | E62: 0 k€ | F62: =(IFERROR(+INDEX(#REF!,MATCH($A62,#REF!,0),MATCH(LEFT($B62,1),#REF!,0)),0)) -> 0 k€ | G62: =SUM(D62:F62) -> 0 k€ | H62: 0 k€ | I62: =(IFERROR(+INDEX(#REF!,MATCH($A62,#REF!,0),MATCH(LEFT($B62,1),#REF!,0)),0)) -> 0 k€ | J62: =SUM(H62:I62) -> 0 k€ | K62: =J62-G62 -> 0 k€ | M62: 22001RRDF | N62: ACHATS | O62: =IFERROR(VLOOKUP(M62&N62,#REF!,8,FALSE)/1000,0) -> 0 k€ | P62: 0 k€ | Q62: 0 k€ | R62: =(IFERROR(+INDEX(#REF!,MATCH($A62,#REF!,0),MATCH(LEFT($B62,1),#REF!,0)),0)) -> 0 k€ | S62: =SUM(P62:R62) -> 0 k€ | T62: 0 k€ | U62: =(IFERROR(+INDEX(#REF!,MATCH($A62,#REF!,0),MATCH(LEFT($B62,1),#REF!,0)),0)) -> 0 k€ | V62: =SUM(T62:U62) -> 0 k€ | W62: =V62-S62 -> 0 k€ | Y62: 22001RRDF | Z62: ACHATS | AA62: =IFERROR(VLOOKUP(Y62&Z62,#REF!,8,FALSE)/1000,0) -> 0 k€ | AB62: 0 k€ | AC62: 0 k€ | AD62: =(IFERROR(+INDEX(#REF!,MATCH($A62,#REF!,0),MATCH(LEFT($B62,1),#REF!,0)),0)) -> 0 k€ | AE62: =SUM(AB62:AD62) -> 0 k€ | AF62: 0 k€ | AG62: =(IFERROR(+INDEX(#REF!,MATCH($A62,#REF!,0),MATCH(LEFT($B62,1),#REF!,0)),0)) -> 0 k€ | AH62: =SUM(AF62:AG62) -> 0 k€ | AI62: =AH62-AE62 -> 0 k€
A63: 22001RRDF | B63: SOUS TRAITANCE | C63: =IFERROR(VLOOKUP(A63&B63,#REF!,8,FALSE)/1000,0) -> 0 k€ | D63: 0 k€ | E63: 0 k€ | F63: =(IFERROR(+INDEX(#REF!,MATCH($A63,#REF!,0),MATCH(LEFT($B63,1),#REF!,0)),0)) -> 0 k€ | G63: =SUM(D63:F63) -> 0 k€ | H63: 0 k€ | I63: =(IFERROR(+INDEX(#REF!,MATCH($A63,#REF!,0),MATCH(LEFT($B63,1),#REF!,0)),0)) -> 0 k€ | J63: =SUM(H63:I63) -> 0 k€ | K63: =J63-G63 -> 0 k€ | M63: 22001RRDF | N63: SOUS TRAITANCE | O63: =IFERROR(VLOOKUP(M63&N63,#REF!,8,FALSE)/1000,0) -> 0 k€ | P63: 0 k€ | Q63: 0 k€ | R63: =(IFERROR(+INDEX(#REF!,MATCH($A63,#REF!,0),MATCH(LEFT($B63,1),#REF!,0)),0)) -> 0 k€ | S63: =SUM(P63:R63) -> 0 k€ | T63: 0 k€ | U63: =(IFERROR(+INDEX(#REF!,MATCH($A63,#REF!,0),MATCH(LEFT($B63,1),#REF!,0)),0)) -> 0 k€ | V63: =SUM(T63:U63) -> 0 k€ | W63: =V63-S63 -> 0 k€ | Y63: 22001RRDF | Z63: SOUS TRAITANCE | AA63: =IFERROR(VLOOKUP(Y63&Z63,#REF!,8,FALSE)/1000,0) -> 0 k€ | AB63: 0 k€ | AC63: 0 k€ | AD63: =(IFERROR(+INDEX(#REF!,MATCH($A63,#REF!,0),MATCH(LEFT($B63,1),#REF!,0)),0)) -> 0 k€ | AE63: =SUM(AB63:AD63) -> 0 k€ | AF63: 0 k€ | AG63: =(IFERROR(+INDEX(#REF!,MATCH($A63,#REF!,0),MATCH(LEFT($B63,1),#REF!,0)),0)) -> 0 k€ | AH63: =SUM(AF63:AG63) -> 0 k€ | AI63: =AH63-AE63 -> 0 k€
A64: 22001RRDF | B64: FRAIS | C64: =IFERROR(VLOOKUP(A64&B64,#REF!,8,FALSE)/1000,0) -> 0 k€ | D64: 0 k€ | E64: 0 k€ | F64: =(IFERROR(+INDEX(#REF!,MATCH($A64,#REF!,0),MATCH(LEFT($B64,1),#REF!,0)),0)) -> 0 k€ | G64: =SUM(D64:F64) -> 0 k€ | H64: 0 k€ | I64: =(IFERROR(+INDEX(#REF!,MATCH($A64,#REF!,0),MATCH(LEFT($B64,1),#REF!,0)),0)) -> 0 k€ | J64: =SUM(H64:I64) -> 0 k€ | K64: =J64-G64 -> 0 k€ | M64: 22001RRDF | N64: FRAIS | O64: =IFERROR(VLOOKUP(M64&N64,#REF!,8,FALSE)/1000,0) -> 0 k€ | P64: 0 k€ | Q64: 0 k€ | R64: =(IFERROR(+INDEX(#REF!,MATCH($A64,#REF!,0),MATCH(LEFT($B64,1),#REF!,0)),0)) -> 0 k€ | S64: =SUM(P64:R64) -> 0 k€ | T64: 0 k€ | U64: =(IFERROR(+INDEX(#REF!,MATCH($A64,#REF!,0),MATCH(LEFT($B64,1),#REF!,0)),0)) -> 0 k€ | V64: =SUM(T64:U64) -> 0 k€ | W64: =V64-S64 -> 0 k€ | Y64: 22001RRDF | Z64: FRAIS | AA64: =IFERROR(VLOOKUP(Y64&Z64,#REF!,8,FALSE)/1000,0) -> 0 k€ | AB64: 0 k€ | AC64: 0 k€ | AD64: =(IFERROR(+INDEX(#REF!,MATCH($A64,#REF!,0),MATCH(LEFT($B64,1),#REF!,0)),0)) -> 0 k€ | AE64: =SUM(AB64:AD64) -> 0 k€ | AF64: 0 k€ | AG64: =(IFERROR(+INDEX(#REF!,MATCH($A64,#REF!,0),MATCH(LEFT($B64,1),#REF!,0)),0)) -> 0 k€ | AH64: =SUM(AF64:AG64) -> 0 k€ | AI64: =AH64-AE64 -> 0 k€
A65: 22001RRDF | B65: ENGAGÉ | C65: =IFERROR(VLOOKUP(A65&B65,#REF!,8,FALSE)/1000,0) -> 0 k€ | D65: 0 k€ | E65: 0 k€ | F65: =(IFERROR(+INDEX(#REF!,MATCH($A65,#REF!,0),MATCH("A+S+F",#REF!,0)),0)) -> 0 k€ | G65: =SUM(D65:F65) -> 0 k€ | H65: 0 k€ | I65: =(IFERROR(+INDEX(#REF!,MATCH($A65,#REF!,0),MATCH("A+S+F",#REF!,0)),0)) -> 0 k€ | J65: =SUM(H65:I65) -> 0 k€ | K65: =J65-G65 -> 0 k€ | M65: 22001RRDF | N65: ENGAGÉ | O65: =IFERROR(VLOOKUP(M65&N65,#REF!,8,FALSE)/1000,0) -> 0 k€ | P65: 0 k€ | Q65: 0 k€ | R65: =(IFERROR(+INDEX(#REF!,MATCH($A65,#REF!,0),MATCH("A+S+F",#REF!,0)),0)) -> 0 k€ | S65: =SUM(P65:R65) -> 0 k€ | T65: 0 k€ | U65: =(IFERROR(+INDEX(#REF!,MATCH($A65,#REF!,0),MATCH("A+S+F",#REF!,0)),0)) -> 0 k€ | V65: =SUM(T65:U65) -> 0 k€ | W65: =V65-S65 -> 0 k€ | Y65: 22001RRDF | Z65: ENGAGÉ | AA65: =IFERROR(VLOOKUP(Y65&Z65,#REF!,8,FALSE)/1000,0) -> 0 k€ | AB65: 0 k€ | AC65: 0 k€ | AD65: =(IFERROR(+INDEX(#REF!,MATCH($A65,#REF!,0),MATCH("A+S+F",#REF!,0)),0)) -> 0 k€ | AE65: =SUM(AB65:AD65) -> 0 k€ | AF65: 0 k€ | AG65: =(IFERROR(+INDEX(#REF!,MATCH($A65,#REF!,0),MATCH("A+S+F",#REF!,0)),0)) -> 0 k€ | AH65: =SUM(AF65:AG65) -> 0 k€ | AI65: =AH65-AE65 -> 0 k€
A66: =A65 -> 22001RRDF | B66: ssTotal | C66: =SUM(C62:C65) -> 0 | D66: =SUM(D62:D65) -> 0 k€ | E66: =SUM(E62:E65) -> 0 k€ | F66: 0 k€ | G66: 0 k€ | H66: 0 k€ | I66: 0 k€ | J66: 0 k€ | K66: 0 k€ | M66: =M65 -> 22001RRDF | N66: ssTotal | O66: =SUM(O62:O65) -> 0 k€ | P66: =SUM(P62:P65) -> 0 k€ | Q66: =SUM(Q62:Q65) -> 0 k€ | R66: 0 k€ | S66: 0 k€ | T66: 0 k€ | U66: 0 k€ | V66: 0 k€ | W66: 0 k€ | Y66: =Y65 -> 22001RRDF | Z66: ssTotal | AA66: =SUM(AA62:AA65) -> 0 k€ | AB66: =SUM(AB62:AB65) -> 0 k€ | AC66: =SUM(AC62:AC65) -> 0 k€ | AD66: 0 k€ | AE66: 0 k€ | AF66: 0 k€ | AG66: 0 k€ | AH66: 0 k€ | AI66: 0 k€
A68: 2200STOCK | B68: ACHATS | C68: =IFERROR(VLOOKUP(A68&B68,#REF!,8,FALSE)/1000,0) -> 0 k€ | D68: 0 k€ | E68: 0 k€ | F68: =(IFERROR(+INDEX(#REF!,MATCH($A68,#REF!,0),MATCH(LEFT($B68,1),#REF!,0)),0)) -> 0 k€ | G68: =SUM(D68:F68) -> 0 k€ | H68: 0 k€ | I68: =(IFERROR(+INDEX(#REF!,MATCH($A68,#REF!,0),MATCH(LEFT($B68,1),#REF!,0)),0)) -> 0 k€ | J68: =SUM(H68:I68) -> 0 k€ | K68: =J68-G68 -> 0 k€ | M68: 2200STOCK | N68: ACHATS | O68: =IFERROR(VLOOKUP(M68&N68,#REF!,8,FALSE)/1000,0) -> 0 k€ | P68: 0 k€ | Q68: 0 k€ | R68: =(IFERROR(+INDEX(#REF!,MATCH($A68,#REF!,0),MATCH(LEFT($B68,1),#REF!,0)),0)) -> 0 k€ | S68: =SUM(P68:R68) -> 0 k€ | T68: 0 k€ | U68: =(IFERROR(+INDEX(#REF!,MATCH($A68,#REF!,0),MATCH(LEFT($B68,1),#REF!,0)),0)) -> 0 k€ | V68: =SUM(T68:U68) -> 0 k€ | W68: =V68-S68 -> 0 k€ | Y68: 2200STOCK | Z68: ACHATS | AA68: =IFERROR(VLOOKUP(Y68&Z68,#REF!,8,FALSE)/1000,0) -> 0 k€ | AB68: 0 k€ | AC68: 0 k€ | AD68: =(IFERROR(+INDEX(#REF!,MATCH($A68,#REF!,0),MATCH(LEFT($B68,1),#REF!,0)),0)) -> 0 k€ | AE68: =SUM(AB68:AD68) -> 0 k€ | AF68: 0 k€ | AG68: =(IFERROR(+INDEX(#REF!,MATCH($A68,#REF!,0),MATCH(LEFT($B68,1),#REF!,0)),0)) -> 0 k€ | AH68: =SUM(AF68:AG68) -> 0 k€ | AI68: =AH68-AE68 -> 0 k€
A69: 2200STOCK | B69: SOUS TRAITANCE | C69: =IFERROR(VLOOKUP(A69&B69,#REF!,8,FALSE)/1000,0) -> 0 k€ | D69: 0 k€ | E69: 0 k€ | F69: =(IFERROR(+INDEX(#REF!,MATCH($A69,#REF!,0),MATCH(LEFT($B69,1),#REF!,0)),0)) -> 0 k€ | G69: =SUM(D69:F69) -> 0 k€ | H69: 0 k€ | I69: =(IFERROR(+INDEX(#REF!,MATCH($A69,#REF!,0),MATCH(LEFT($B69,1),#REF!,0)),0)) -> 0 k€ | J69: =SUM(H69:I69) -> 0 k€ | K69: =J69-G69 -> 0 k€ | M69: 2200STOCK | N69: SOUS TRAITANCE | O69: =IFERROR(VLOOKUP(M69&N69,#REF!,8,FALSE)/1000,0) -> 0 k€ | P69: 0 k€ | Q69: 0 k€ | R69: =(IFERROR(+INDEX(#REF!,MATCH($A69,#REF!,0),MATCH(LEFT($B69,1),#REF!,0)),0)) -> 0 k€ | S69: =SUM(P69:R69) -> 0 k€ | T69: 0 k€ | U69: =(IFERROR(+INDEX(#REF!,MATCH($A69,#REF!,0),MATCH(LEFT($B69,1),#REF!,0)),0)) -> 0 k€ | V69: =SUM(T69:U69) -> 0 k€ | W69: =V69-S69 -> 0 k€ | Y69: 2200STOCK | Z69: SOUS TRAITANCE | AA69: =IFERROR(VLOOKUP(Y69&Z69,#REF!,8,FALSE)/1000,0) -> 0 k€ | AB69: 0 k€ | AC69: 0 k€ | AD69: =(IFERROR(+INDEX(#REF!,MATCH($A69,#REF!,0),MATCH(LEFT($B69,1),#REF!,0)),0)) -> 0 k€ | AE69: =SUM(AB69:AD69) -> 0 k€ | AF69: 0 k€ | AG69: =(IFERROR(+INDEX(#REF!,MATCH($A69,#REF!,0),MATCH(LEFT($B69,1),#REF!,0)),0)) -> 0 k€ | AH69: =SUM(AF69:AG69) -> 0 k€ | AI69: =AH69-AE69 -> 0 k€
A70: 2200STOCK | B70: FRAIS | C70: =IFERROR(VLOOKUP(A70&B70,#REF!,8,FALSE)/1000,0) -> 0 k€ | D70: 0 k€ | E70: 0 k€ | F70: =(IFERROR(+INDEX(#REF!,MATCH($A70,#REF!,0),MATCH(LEFT($B70,1),#REF!,0)),0)) -> 0 k€ | G70: =SUM(D70:F70) -> 0 k€ | H70: 0 k€ | I70: =(IFERROR(+INDEX(#REF!,MATCH($A70,#REF!,0),MATCH(LEFT($B70,1),#REF!,0)),0)) -> 0 k€ | J70: =SUM(H70:I70) -> 0 k€ | K70: =J70-G70 -> 0 k€ | M70: 2200STOCK | N70: FRAIS | O70: =IFERROR(VLOOKUP(M70&N70,#REF!,8,FALSE)/1000,0) -> 0 k€ | P70: 0 k€ | Q70: 0 k€ | R70: =(IFERROR(+INDEX(#REF!,MATCH($A70,#REF!,0),MATCH(LEFT($B70,1),#REF!,0)),0)) -> 0 k€ | S70: =SUM(P70:R70) -> 0 k€ | T70: 0 k€ | U70: =(IFERROR(+INDEX(#REF!,MATCH($A70,#REF!,0),MATCH(LEFT($B70,1),#REF!,0)),0)) -> 0 k€ | V70: =SUM(T70:U70) -> 0 k€ | W70: =V70-S70 -> 0 k€ | Y70: 2200STOCK | Z70: FRAIS | AA70: =IFERROR(VLOOKUP(Y70&Z70,#REF!,8,FALSE)/1000,0) -> 0 k€ | AB70: 0 k€ | AC70: 0 k€ | AD70: =(IFERROR(+INDEX(#REF!,MATCH($A70,#REF!,0),MATCH(LEFT($B70,1),#REF!,0)),0)) -> 0 k€ | AE70: =SUM(AB70:AD70) -> 0 k€ | AF70: 0 k€ | AG70: =(IFERROR(+INDEX(#REF!,MATCH($A70,#REF!,0),MATCH(LEFT($B70,1),#REF!,0)),0)) -> 0 k€ | AH70: =SUM(AF70:AG70) -> 0 k€ | AI70: =AH70-AE70 -> 0 k€
A71: 2200STOCK | B71: ENGAGÉ | C71: =IFERROR(VLOOKUP(A71&B71,#REF!,8,FALSE)/1000,0) -> 0 k€ | D71: 0 k€ | E71: 0 k€ | F71: =(IFERROR(+INDEX(#REF!,MATCH($A71,#REF!,0),MATCH("A+S+F",#REF!,0)),0)) -> 0 k€ | G71: =SUM(D71:F71) -> 0 k€ | H71: 0 k€ | I71: =(IFERROR(+INDEX(#REF!,MATCH($A71,#REF!,0),MATCH("A+S+F",#REF!,0)),0)) -> 0 k€ | J71: =SUM(H71:I71) -> 0 k€ | K71: =J71-G71 -> 0 k€ | M71: 2200STOCK | N71: ENGAGÉ | O71: =IFERROR(VLOOKUP(M71&N71,#REF!,8,FALSE)/1000,0) -> 0 k€ | P71: 0 k€ | Q71: 0 k€ | R71: =(IFERROR(+INDEX(#REF!,MATCH($A71,#REF!,0),MATCH("A+S+F",#REF!,0)),0)) -> 0 k€ | S71: =SUM(P71:R71) -> 0 k€ | T71: 0 k€ | U71: =(IFERROR(+INDEX(#REF!,MATCH($A71,#REF!,0),MATCH("A+S+F",#REF!,0)),0)) -> 0 k€ | V71: =SUM(T71:U71) -> 0 k€ | W71: =V71-S71 -> 0 k€ | Y71: 2200STOCK | Z71: ENGAGÉ | AA71: =IFERROR(VLOOKUP(Y71&Z71,#REF!,8,FALSE)/1000,0) -> 0 k€ | AB71: 0 k€ | AC71: 0 k€ | AD71: =(IFERROR(+INDEX(#REF!,MATCH($A71,#REF!,0),MATCH("A+S+F",#REF!,0)),0)) -> 0 k€ | AE71: =SUM(AB71:AD71) -> 0 k€ | AF71: 0 k€ | AG71: =(IFERROR(+INDEX(#REF!,MATCH($A71,#REF!,0),MATCH("A+S+F",#REF!,0)),0)) -> 0 k€ | AH71: =SUM(AF71:AG71) -> 0 k€ | AI71: =AH71-AE71 -> 0 k€
A72: =A71 -> 2200STOCK | B72: ssTotal | C72: =SUM(C68:C71) -> 0 | D72: =SUM(D68:D71) -> 0 k€ | E72: =SUM(E68:E71) -> 0 k€ | F72: 0 k€ | G72: 0 k€ | H72: 0 k€ | I72: 0 k€ | J72: 0 k€ | K72: 0 k€ | M72: =M71 -> 2200STOCK | N72: ssTotal | O72: =SUM(O68:O71) -> 0 k€ | P72: =SUM(P68:P71) -> 0 k€ | Q72: =SUM(Q68:Q71) -> 0 k€ | R72: 0 k€ | S72: 0 k€ | T72: 0 k€ | U72: 0 k€ | V72: 0 k€ | W72: 0 k€ | Y72: =Y71 -> 2200STOCK | Z72: ssTotal | AA72: =SUM(AA68:AA71) -> 0 k€ | AB72: =SUM(AB68:AB71) -> 0 k€ | AC72: =SUM(AC68:AC71) -> 0 k€ | AD72: 0 k€ | AE72: 0 k€ | AF72: 0 k€ | AG72: 0 k€ | AH72: 0 k€ | AI72: 0 k€
A74: 2200TRECA | B74: ACHATS | C74: =IFERROR(VLOOKUP(A74&B74,#REF!,8,FALSE)/1000,0) -> 0 k€ | D74: 0 k€ | E74: 0 k€ | F74: =(IFERROR(+INDEX(#REF!,MATCH($A74,#REF!,0),MATCH(LEFT($B74,1),#REF!,0)),0)) -> 0 k€ | G74: =SUM(D74:F74) -> 0 k€ | H74: 0 k€ | I74: =(IFERROR(+INDEX(#REF!,MATCH($A74,#REF!,0),MATCH(LEFT($B74,1),#REF!,0)),0)) -> 0 k€ | J74: =SUM(H74:I74) -> 0 k€ | K74: =J74-G74 -> 0 k€ | M74: 2200TRECA | N74: ACHATS | O74: =IFERROR(VLOOKUP(M74&N74,#REF!,8,FALSE)/1000,0) -> 0 k€ | P74: 0 k€ | Q74: 0 k€ | R74: =(IFERROR(+INDEX(#REF!,MATCH($A74,#REF!,0),MATCH(LEFT($B74,1),#REF!,0)),0)) -> 0 k€ | S74: =SUM(P74:R74) -> 0 k€ | T74: 0 k€ | U74: =(IFERROR(+INDEX(#REF!,MATCH($A74,#REF!,0),MATCH(LEFT($B74,1),#REF!,0)),0)) -> 0 k€ | V74: =SUM(T74:U74) -> 0 k€ | W74: =V74-S74 -> 0 k€ | Y74: 2200TRECA | Z74: ACHATS | AA74: =IFERROR(VLOOKUP(Y74&Z74,#REF!,8,FALSE)/1000,0) -> 0 k€ | AB74: 0 k€ | AC74: 0 k€ | AD74: =(IFERROR(+INDEX(#REF!,MATCH($A74,#REF!,0),MATCH(LEFT($B74,1),#REF!,0)),0)) -> 0 k€ | AE74: =SUM(AB74:AD74) -> 0 k€ | AF74: 0 k€ | AG74: =(IFERROR(+INDEX(#REF!,MATCH($A74,#REF!,0),MATCH(LEFT($B74,1),#REF!,0)),0)) -> 0 k€ | AH74: =SUM(AF74:AG74) -> 0 k€ | AI74: =AH74-AE74 -> 0 k€
A75: 2200TRECA | B75: SOUS TRAITANCE | C75: =IFERROR(VLOOKUP(A75&B75,#REF!,8,FALSE)/1000,0) -> 0 k€ | D75: 0 k€ | E75: 0 k€ | F75: =(IFERROR(+INDEX(#REF!,MATCH($A75,#REF!,0),MATCH(LEFT($B75,1),#REF!,0)),0)) -> 0 k€ | G75: =SUM(D75:F75) -> 0 k€ | H75: 0 k€ | I75: =(IFERROR(+INDEX(#REF!,MATCH($A75,#REF!,0),MATCH(LEFT($B75,1),#REF!,0)),0)) -> 0 k€ | J75: =SUM(H75:I75) -> 0 k€ | K75: =J75-G75 -> 0 k€ | M75: 2200TRECA | N75: SOUS TRAITANCE | O75: =IFERROR(VLOOKUP(M75&N75,#REF!,8,FALSE)/1000,0) -> 0 k€ | P75: 0 k€ | Q75: 0 k€ | R75: =(IFERROR(+INDEX(#REF!,MATCH($A75,#REF!,0),MATCH(LEFT($B75,1),#REF!,0)),0)) -> 0 k€ | S75: =SUM(P75:R75) -> 0 k€ | T75: 0 k€ | U75: =(IFERROR(+INDEX(#REF!,MATCH($A75,#REF!,0),MATCH(LEFT($B75,1),#REF!,0)),0)) -> 0 k€ | V75: =SUM(T75:U75) -> 0 k€ | W75: =V75-S75 -> 0 k€ | Y75: 2200TRECA | Z75: SOUS TRAITANCE | AA75: =IFERROR(VLOOKUP(Y75&Z75,#REF!,8,FALSE)/1000,0) -> 0 k€ | AB75: 0 k€ | AC75: 0 k€ | AD75: =(IFERROR(+INDEX(#REF!,MATCH($A75,#REF!,0),MATCH(LEFT($B75,1),#REF!,0)),0)) -> 0 k€ | AE75: =SUM(AB75:AD75) -> 0 k€ | AF75: 0 k€ | AG75: =(IFERROR(+INDEX(#REF!,MATCH($A75,#REF!,0),MATCH(LEFT($B75,1),#REF!,0)),0)) -> 0 k€ | AH75: =SUM(AF75:AG75) -> 0 k€ | AI75: =AH75-AE75 -> 0 k€
A76: 2200TRECA | B76: FRAIS | C76: =IFERROR(VLOOKUP(A76&B76,#REF!,8,FALSE)/1000,0) -> 0 k€ | D76: 0 k€ | E76: 0 k€ | F76: =(IFERROR(+INDEX(#REF!,MATCH($A76,#REF!,0),MATCH(LEFT($B76,1),#REF!,0)),0)) -> 0 k€ | G76: =SUM(D76:F76) -> 0 k€ | H76: 0 k€ | I76: =(IFERROR(+INDEX(#REF!,MATCH($A76,#REF!,0),MATCH(LEFT($B76,1),#REF!,0)),0)) -> 0 k€ | J76: =SUM(H76:I76) -> 0 k€ | K76: =J76-G76 -> 0 k€ | M76: 2200TRECA | N76: FRAIS | O76: =IFERROR(VLOOKUP(M76&N76,#REF!,8,FALSE)/1000,0) -> 0 k€ | P76: 0 k€ | Q76: 0 k€ | R76: =(IFERROR(+INDEX(#REF!,MATCH($A76,#REF!,0),MATCH(LEFT($B76,1),#REF!,0)),0)) -> 0 k€ | S76: =SUM(P76:R76) -> 0 k€ | T76: 0 k€ | U76: =(IFERROR(+INDEX(#REF!,MATCH($A76,#REF!,0),MATCH(LEFT($B76,1),#REF!,0)),0)) -> 0 k€ | V76: =SUM(T76:U76) -> 0 k€ | W76: =V76-S76 -> 0 k€ | Y76: 2200TRECA | Z76: FRAIS | AA76: =IFERROR(VLOOKUP(Y76&Z76,#REF!,8,FALSE)/1000,0) -> 0 k€ | AB76: 0 k€ | AC76: 0 k€ | AD76: =(IFERROR(+INDEX(#REF!,MATCH($A76,#REF!,0),MATCH(LEFT($B76,1),#REF!,0)),0)) -> 0 k€ | AE76: =SUM(AB76:AD76) -> 0 k€ | AF76: 0 k€ | AG76: =(IFERROR(+INDEX(#REF!,MATCH($A76,#REF!,0),MATCH(LEFT($B76,1),#REF!,0)),0)) -> 0 k€ | AH76: =SUM(AF76:AG76) -> 0 k€ | AI76: =AH76-AE76 -> 0 k€
A77: 2200TRECA | B77: ENGAGÉ | C77: =IFERROR(VLOOKUP(A77&B77,#REF!,8,FALSE)/1000,0) -> 0 k€ | D77: 0 k€ | E77: 0 k€ | F77: =(IFERROR(+INDEX(#REF!,MATCH($A77,#REF!,0),MATCH("A+S+F",#REF!,0)),0)) -> 0 k€ | G77: =SUM(D77:F77) -> 0 k€ | H77: 0 k€ | I77: =(IFERROR(+INDEX(#REF!,MATCH($A77,#REF!,0),MATCH("A+S+F",#REF!,0)),0)) -> 0 k€ | J77: =SUM(H77:I77) -> 0 k€ | K77: =J77-G77 -> 0 k€ | M77: 2200TRECA | N77: ENGAGÉ | O77: =IFERROR(VLOOKUP(M77&N77,#REF!,8,FALSE)/1000,0) -> 0 k€ | P77: 0 k€ | Q77: 0 k€ | R77: =(IFERROR(+INDEX(#REF!,MATCH($A77,#REF!,0),MATCH("A+S+F",#REF!,0)),0)) -> 0 k€ | S77: =SUM(P77:R77) -> 0 k€ | T77: 0 k€ | U77: =(IFERROR(+INDEX(#REF!,MATCH($A77,#REF!,0),MATCH("A+S+F",#REF!,0)),0)) -> 0 k€ | V77: =SUM(T77:U77) -> 0 k€ | W77: =V77-S77 -> 0 k€ | Y77: 2200TRECA | Z77: ENGAGÉ | AA77: =IFERROR(VLOOKUP(Y77&Z77,#REF!,8,FALSE)/1000,0) -> 0 k€ | AB77: 0 k€ | AC77: 0 k€ | AD77: =(IFERROR(+INDEX(#REF!,MATCH($A77,#REF!,0),MATCH("A+S+F",#REF!,0)),0)) -> 0 k€ | AE77: =SUM(AB77:AD77) -> 0 k€ | AF77: 0 k€ | AG77: =(IFERROR(+INDEX(#REF!,MATCH($A77,#REF!,0),MATCH("A+S+F",#REF!,0)),0)) -> 0 k€ | AH77: =SUM(AF77:AG77) -> 0 k€ | AI77: =AH77-AE77 -> 0 k€
A78: =A77 -> 2200TRECA | B78: ssTotal | C78: =SUM(C74:C77) -> 0 | D78: =SUM(D74:D77) -> 0 k€ | E78: =SUM(E74:E77) -> 0 k€ | F78: 0 k€ | G78: 0 k€ | H78: 0 k€ | I78: 0 k€ | J78: 0 k€ | K78: 0 k€ | M78: =M77 -> 2200TRECA | N78: ssTotal | O78: =SUM(O74:O77) -> 0 k€ | P78: =SUM(P74:P77) -> 0 k€ | Q78: =SUM(Q74:Q77) -> 0 k€ | R78: 0 k€ | S78: 0 k€ | T78: 0 k€ | U78: 0 k€ | V78: 0 k€ | W78: 0 k€ | Y78: =Y77 -> 2200TRECA | Z78: ssTotal | AA78: =SUM(AA74:AA77) -> 0 k€ | AB78: =SUM(AB74:AB77) -> 0 k€ | AC78: =SUM(AC74:AC77) -> 0 k€ | AD78: 0 k€ | AE78: 0 k€ | AF78: 0 k€ | AG78: 0 k€ | AH78: 0 k€ | AI78: 0 k€
A80: 2200TRGDI | B80: ACHATS | C80: =IFERROR(VLOOKUP(A80&B80,#REF!,8,FALSE)/1000,0) -> 0 k€ | D80: 0 k€ | E80: 0 k€ | F80: =(IFERROR(+INDEX(#REF!,MATCH($A80,#REF!,0),MATCH(LEFT($B80,1),#REF!,0)),0)) -> 0 k€ | G80: =SUM(D80:F80) -> 0 k€ | H80: 0 k€ | I80: =(IFERROR(+INDEX(#REF!,MATCH($A80,#REF!,0),MATCH(LEFT($B80,1),#REF!,0)),0)) -> 0 k€ | J80: =SUM(H80:I80) -> 0 k€ | K80: =J80-G80 -> 0 k€ | M80: 2200TRGDI | N80: ACHATS | O80: =IFERROR(VLOOKUP(M80&N80,#REF!,8,FALSE)/1000,0) -> 0 k€ | P80: 0 k€ | Q80: 0 k€ | R80: =(IFERROR(+INDEX(#REF!,MATCH($A80,#REF!,0),MATCH(LEFT($B80,1),#REF!,0)),0)) -> 0 k€ | S80: =SUM(P80:R80) -> 0 k€ | T80: 0 k€ | U80: =(IFERROR(+INDEX(#REF!,MATCH($A80,#REF!,0),MATCH(LEFT($B80,1),#REF!,0)),0)) -> 0 k€ | V80: =SUM(T80:U80) -> 0 k€ | W80: =V80-S80 -> 0 k€ | Y80: 2200TRGDI | Z80: ACHATS | AA80: =IFERROR(VLOOKUP(Y80&Z80,#REF!,8,FALSE)/1000,0) -> 0 k€ | AB80: 0 k€ | AC80: 0 k€ | AD80: =(IFERROR(+INDEX(#REF!,MATCH($A80,#REF!,0),MATCH(LEFT($B80,1),#REF!,0)),0)) -> 0 k€ | AE80: =SUM(AB80:AD80) -> 0 k€ | AF80: 0 k€ | AG80: =(IFERROR(+INDEX(#REF!,MATCH($A80,#REF!,0),MATCH(LEFT($B80,1),#REF!,0)),0)) -> 0 k€ | AH80: =SUM(AF80:AG80) -> 0 k€ | AI80: =AH80-AE80 -> 0 k€
A81: 2200TRGDI | B81: SOUS TRAITANCE | C81: =IFERROR(VLOOKUP(A81&B81,#REF!,8,FALSE)/1000,0) -> 0 k€ | D81: 0 k€ | E81: 0 k€ | F81: =(IFERROR(+INDEX(#REF!,MATCH($A81,#REF!,0),MATCH(LEFT($B81,1),#REF!,0)),0)) -> 0 k€ | G81: =SUM(D81:F81) -> 0 k€ | H81: 0 k€ | I81: =(IFERROR(+INDEX(#REF!,MATCH($A81,#REF!,0),MATCH(LEFT($B81,1),#REF!,0)),0)) -> 0 k€ | J81: =SUM(H81:I81) -> 0 k€ | K81: =J81-G81 -> 0 k€ | M81: 2200TRGDI | N81: SOUS TRAITANCE | O81: =IFERROR(VLOOKUP(M81&N81,#REF!,8,FALSE)/1000,0) -> 0 k€ | P81: 0 k€ | Q81: 0 k€ | R81: =(IFERROR(+INDEX(#REF!,MATCH($A81,#REF!,0),MATCH(LEFT($B81,1),#REF!,0)),0)) -> 0 k€ | S81: =SUM(P81:R81) -> 0 k€ | T81: 0 k€ | U81: =(IFERROR(+INDEX(#REF!,MATCH($A81,#REF!,0),MATCH(LEFT($B81,1),#REF!,0)),0)) -> 0 k€ | V81: =SUM(T81:U81) -> 0 k€ | W81: =V81-S81 -> 0 k€ | Y81: 2200TRGDI | Z81: SOUS TRAITANCE | AA81: =IFERROR(VLOOKUP(Y81&Z81,#REF!,8,FALSE)/1000,0) -> 0 k€ | AB81: 0 k€ | AC81: 0 k€ | AD81: =(IFERROR(+INDEX(#REF!,MATCH($A81,#REF!,0),MATCH(LEFT($B81,1),#REF!,0)),0)) -> 0 k€ | AE81: =SUM(AB81:AD81) -> 0 k€ | AF81: 0 k€ | AG81: =(IFERROR(+INDEX(#REF!,MATCH($A81,#REF!,0),MATCH(LEFT($B81,1),#REF!,0)),0)) -> 0 k€ | AH81: =SUM(AF81:AG81) -> 0 k€ | AI81: =AH81-AE81 -> 0 k€
A82: 2200TRGDI | B82: FRAIS | C82: =IFERROR(VLOOKUP(A82&B82,#REF!,8,FALSE)/1000,0) -> 0 k€ | D82: 0 k€ | E82: 0 k€ | F82: =(IFERROR(+INDEX(#REF!,MATCH($A82,#REF!,0),MATCH(LEFT($B82,1),#REF!,0)),0)) -> 0 k€ | G82: =SUM(D82:F82) -> 0 k€ | H82: 0 k€ | I82: =(IFERROR(+INDEX(#REF!,MATCH($A82,#REF!,0),MATCH(LEFT($B82,1),#REF!,0)),0)) -> 0 k€ | J82: =SUM(H82:I82) -> 0 k€ | K82: =J82-G82 -> 0 k€ | M82: 2200TRGDI | N82: FRAIS | O82: =IFERROR(VLOOKUP(M82&N82,#REF!,8,FALSE)/1000,0) -> 0 k€ | P82: 0 k€ | Q82: 0 k€ | R82: =(IFERROR(+INDEX(#REF!,MATCH($A82,#REF!,0),MATCH(LEFT($B82,1),#REF!,0)),0)) -> 0 k€ | S82: =SUM(P82:R82) -> 0 k€ | T82: 0 k€ | U82: =(IFERROR(+INDEX(#REF!,MATCH($A82,#REF!,0),MATCH(LEFT($B82,1),#REF!,0)),0)) -> 0 k€ | V82: =SUM(T82:U82) -> 0 k€ | W82: =V82-S82 -> 0 k€ | Y82: 2200TRGDI | Z82: FRAIS | AA82: =IFERROR(VLOOKUP(Y82&Z82,#REF!,8,FALSE)/1000,0) -> 0 k€ | AB82: 0 k€ | AC82: 0 k€ | AD82: =(IFERROR(+INDEX(#REF!,MATCH($A82,#REF!,0),MATCH(LEFT($B82,1),#REF!,0)),0)) -> 0 k€ | AE82: =SUM(AB82:AD82) -> 0 k€ | AF82: 0 k€ | AG82: =(IFERROR(+INDEX(#REF!,MATCH($A82,#REF!,0),MATCH(LEFT($B82,1),#REF!,0)),0)) -> 0 k€ | AH82: =SUM(AF82:AG82) -> 0 k€ | AI82: =AH82-AE82 -> 0 k€
A83: 2200TRGDI | B83: ENGAGÉ | C83: =IFERROR(VLOOKUP(A83&B83,#REF!,8,FALSE)/1000,0) -> 0 k€ | D83: 0 k€ | E83: 0 k€ | F83: =(IFERROR(+INDEX(#REF!,MATCH($A83,#REF!,0),MATCH("A+S+F",#REF!,0)),0)) -> 0 k€ | G83: =SUM(D83:F83) -> 0 k€ | H83: 0 k€ | I83: =(IFERROR(+INDEX(#REF!,MATCH($A83,#REF!,0),MATCH("A+S+F",#REF!,0)),0)) -> 0 k€ | J83: =SUM(H83:I83) -> 0 k€ | K83: =J83-G83 -> 0 k€ | M83: 2200TRGDI | N83: ENGAGÉ | O83: =IFERROR(VLOOKUP(M83&N83,#REF!,8,FALSE)/1000,0) -> 0 k€ | P83: 0 k€ | Q83: 0 k€ | R83: =(IFERROR(+INDEX(#REF!,MATCH($A83,#REF!,0),MATCH("A+S+F",#REF!,0)),0)) -> 0 k€ | S83: =SUM(P83:R83) -> 0 k€ | T83: 0 k€ | U83: =(IFERROR(+INDEX(#REF!,MATCH($A83,#REF!,0),MATCH("A+S+F",#REF!,0)),0)) -> 0 k€ | V83: =SUM(T83:U83) -> 0 k€ | W83: =V83-S83 -> 0 k€ | Y83: 2200TRGDI | Z83: ENGAGÉ | AA83: =IFERROR(VLOOKUP(Y83&Z83,#REF!,8,FALSE)/1000,0) -> 0 k€ | AB83: 0 k€ | AC83: 0 k€ | AD83: =(IFERROR(+INDEX(#REF!,MATCH($A83,#REF!,0),MATCH("A+S+F",#REF!,0)),0)) -> 0 k€ | AE83: =SUM(AB83:AD83) -> 0 k€ | AF83: 0 k€ | AG83: =(IFERROR(+INDEX(#REF!,MATCH($A83,#REF!,0),MATCH("A+S+F",#REF!,0)),0)) -> 0 k€ | AH83: =SUM(AF83:AG83) -> 0 k€ | AI83: =AH83-AE83 -> 0 k€
A84: =A83 -> 2200TRGDI | B84: ssTotal | C84: =SUM(C80:C83) -> 0 | D84: =SUM(D80:D83) -> 0 k€ | E84: =SUM(E80:E83) -> 0 k€ | F84: 0 k€ | G84: 0 k€ | H84: 0 k€ | I84: 0 k€ | J84: 0 k€ | K84: 0 k€ | M84: =M83 -> 2200TRGDI | N84: ssTotal | O84: =SUM(O80:O83) -> 0 k€ | P84: =SUM(P80:P83) -> 0 k€ | Q84: =SUM(Q80:Q83) -> 0 k€ | R84: 0 k€ | S84: 0 k€ | T84: 0 k€ | U84: 0 k€ | V84: 0 k€ | W84: 0 k€ | Y84: =Y83 -> 2200TRGDI | Z84: ssTotal | AA84: =SUM(AA80:AA83) -> 0 k€ | AB84: =SUM(AB80:AB83) -> 0 k€ | AC84: =SUM(AC80:AC83) -> 0 k€ | AD84: 0 k€ | AE84: 0 k€ | AF84: 0 k€ | AG84: 0 k€ | AH84: 0 k€ | AI84: 0 k€
A86: 2200TRRDF | B86: ACHATS | C86: =IFERROR(VLOOKUP(A86&B86,#REF!,8,FALSE)/1000,0) -> 0 k€ | D86: 0 k€ | E86: 0 k€ | F86: =(IFERROR(+INDEX(#REF!,MATCH($A86,#REF!,0),MATCH(LEFT($B86,1),#REF!,0)),0)) -> 0 k€ | G86: =SUM(D86:F86) -> 0 k€ | H86: 0 k€ | I86: =(IFERROR(+INDEX(#REF!,MATCH($A86,#REF!,0),MATCH(LEFT($B86,1),#REF!,0)),0)) -> 0 k€ | J86: =SUM(H86:I86) -> 0 k€ | K86: =J86-G86 -> 0 k€ | M86: 2200TRRDF | N86: ACHATS | O86: =IFERROR(VLOOKUP(M86&N86,#REF!,8,FALSE)/1000,0) -> 0 k€ | P86: 0 k€ | Q86: 0 k€ | R86: =(IFERROR(+INDEX(#REF!,MATCH($A86,#REF!,0),MATCH(LEFT($B86,1),#REF!,0)),0)) -> 0 k€ | S86: =SUM(P86:R86) -> 0 k€ | T86: 0 k€ | U86: =(IFERROR(+INDEX(#REF!,MATCH($A86,#REF!,0),MATCH(LEFT($B86,1),#REF!,0)),0)) -> 0 k€ | V86: =SUM(T86:U86) -> 0 k€ | W86: =V86-S86 -> 0 k€ | Y86: 2200TRRDF | Z86: ACHATS | AA86: =IFERROR(VLOOKUP(Y86&Z86,#REF!,8,FALSE)/1000,0) -> 0 k€ | AB86: 0 k€ | AC86: 0 k€ | AD86: =(IFERROR(+INDEX(#REF!,MATCH($A86,#REF!,0),MATCH(LEFT($B86,1),#REF!,0)),0)) -> 0 k€ | AE86: =SUM(AB86:AD86) -> 0 k€ | AF86: 0 k€ | AG86: =(IFERROR(+INDEX(#REF!,MATCH($A86,#REF!,0),MATCH(LEFT($B86,1),#REF!,0)),0)) -> 0 k€ | AH86: =SUM(AF86:AG86) -> 0 k€ | AI86: =AH86-AE86 -> 0 k€
A87: 2200TRRDF | B87: SOUS TRAITANCE | C87: =IFERROR(VLOOKUP(A87&B87,#REF!,8,FALSE)/1000,0) -> 0 k€ | D87: 0 k€ | E87: 0 k€ | F87: =(IFERROR(+INDEX(#REF!,MATCH($A87,#REF!,0),MATCH(LEFT($B87,1),#REF!,0)),0)) -> 0 k€ | G87: =SUM(D87:F87) -> 0 k€ | H87: 0 k€ | I87: =(IFERROR(+INDEX(#REF!,MATCH($A87,#REF!,0),MATCH(LEFT($B87,1),#REF!,0)),0)) -> 0 k€ | J87: =SUM(H87:I87) -> 0 k€ | K87: =J87-G87 -> 0 k€ | M87: 2200TRRDF | N87: SOUS TRAITANCE | O87: =IFERROR(VLOOKUP(M87&N87,#REF!,8,FALSE)/1000,0) -> 0 k€ | P87: 0 k€ | Q87: 0 k€ | R87: =(IFERROR(+INDEX(#REF!,MATCH($A87,#REF!,0),MATCH(LEFT($B87,1),#REF!,0)),0)) -> 0 k€ | S87: =SUM(P87:R87) -> 0 k€ | T87: 0 k€ | U87: =(IFERROR(+INDEX(#REF!,MATCH($A87,#REF!,0),MATCH(LEFT($B87,1),#REF!,0)),0)) -> 0 k€ | V87: =SUM(T87:U87) -> 0 k€ | W87: =V87-S87 -> 0 k€ | Y87: 2200TRRDF | Z87: SOUS TRAITANCE | AA87: =IFERROR(VLOOKUP(Y87&Z87,#REF!,8,FALSE)/1000,0) -> 0 k€ | AB87: 0 k€ | AC87: 0 k€ | AD87: =(IFERROR(+INDEX(#REF!,MATCH($A87,#REF!,0),MATCH(LEFT($B87,1),#REF!,0)),0)) -> 0 k€ | AE87: =SUM(AB87:AD87) -> 0 k€ | AF87: 0 k€ | AG87: =(IFERROR(+INDEX(#REF!,MATCH($A87,#REF!,0),MATCH(LEFT($B87,1),#REF!,0)),0)) -> 0 k€ | AH87: =SUM(AF87:AG87) -> 0 k€ | AI87: =AH87-AE87 -> 0 k€
A88: 2200TRRDF | B88: FRAIS | C88: =IFERROR(VLOOKUP(A88&B88,#REF!,8,FALSE)/1000,0) -> 0 k€ | D88: 0 k€ | E88: 0 k€ | F88: =(IFERROR(+INDEX(#REF!,MATCH($A88,#REF!,0),MATCH(LEFT($B88,1),#REF!,0)),0)) -> 0 k€ | G88: =SUM(D88:F88) -> 0 k€ | H88: 0 k€ | I88: =(IFERROR(+INDEX(#REF!,MATCH($A88,#REF!,0),MATCH(LEFT($B88,1),#REF!,0)),0)) -> 0 k€ | J88: =SUM(H88:I88) -> 0 k€ | K88: =J88-G88 -> 0 k€ | M88: 2200TRRDF | N88: FRAIS | O88: =IFERROR(VLOOKUP(M88&N88,#REF!,8,FALSE)/1000,0) -> 0 k€ | P88: 0 k€ | Q88: 0 k€ | R88: =(IFERROR(+INDEX(#REF!,MATCH($A88,#REF!,0),MATCH(LEFT($B88,1),#REF!,0)),0)) -> 0 k€ | S88: =SUM(P88:R88) -> 0 k€ | T88: 0 k€ | U88: =(IFERROR(+INDEX(#REF!,MATCH($A88,#REF!,0),MATCH(LEFT($B88,1),#REF!,0)),0)) -> 0 k€ | V88: =SUM(T88:U88) -> 0 k€ | W88: =V88-S88 -> 0 k€ | Y88: 2200TRRDF | Z88: FRAIS | AA88: =IFERROR(VLOOKUP(Y88&Z88,#REF!,8,FALSE)/1000,0) -> 0 k€ | AB88: 0 k€ | AC88: 0 k€ | AD88: =(IFERROR(+INDEX(#REF!,MATCH($A88,#REF!,0),MATCH(LEFT($B88,1),#REF!,0)),0)) -> 0 k€ | AE88: =SUM(AB88:AD88) -> 0 k€ | AF88: 0 k€ | AG88: =(IFERROR(+INDEX(#REF!,MATCH($A88,#REF!,0),MATCH(LEFT($B88,1),#REF!,0)),0)) -> 0 k€ | AH88: =SUM(AF88:AG88) -> 0 k€ | AI88: =AH88-AE88 -> 0 k€
A89: 2200TRRDF | B89: ENGAGÉ | C89: =IFERROR(VLOOKUP(A89&B89,#REF!,8,FALSE)/1000,0) -> 0 k€ | D89: 0 k€ | E89: 0 k€ | F89: =(IFERROR(+INDEX(#REF!,MATCH($A89,#REF!,0),MATCH("A+S+F",#REF!,0)),0)) -> 0 k€ | G89: =SUM(D89:F89) -> 0 k€ | H89: 0 k€ | I89: =(IFERROR(+INDEX(#REF!,MATCH($A89,#REF!,0),MATCH("A+S+F",#REF!,0)),0)) -> 0 k€ | J89: =SUM(H89:I89) -> 0 k€ | K89: =J89-G89 -> 0 k€ | M89: 2200TRRDF | N89: ENGAGÉ | O89: =IFERROR(VLOOKUP(M89&N89,#REF!,8,FALSE)/1000,0) -> 0 k€ | P89: 0 k€ | Q89: 0 k€ | R89: =(IFERROR(+INDEX(#REF!,MATCH($A89,#REF!,0),MATCH("A+S+F",#REF!,0)),0)) -> 0 k€ | S89: =SUM(P89:R89) -> 0 k€ | T89: 0 k€ | U89: =(IFERROR(+INDEX(#REF!,MATCH($A89,#REF!,0),MATCH("A+S+F",#REF!,0)),0)) -> 0 k€ | V89: =SUM(T89:U89) -> 0 k€ | W89: =V89-S89 -> 0 k€ | Y89: 2200TRRDF | Z89: ENGAGÉ | AA89: =IFERROR(VLOOKUP(Y89&Z89,#REF!,8,FALSE)/1000,0) -> 0 k€ | AB89: 0 k€ | AC89: 0 k€ | AD89: =(IFERROR(+INDEX(#REF!,MATCH($A89,#REF!,0),MATCH("A+S+F",#REF!,0)),0)) -> 0 k€ | AE89: =SUM(AB89:AD89) -> 0 k€ | AF89: 0 k€ | AG89: =(IFERROR(+INDEX(#REF!,MATCH($A89,#REF!,0),MATCH("A+S+F",#REF!,0)),0)) -> 0 k€ | AH89: =SUM(AF89:AG89) -> 0 k€ | AI89: =AH89-AE89 -> 0 k€
A90: =A89 -> 2200TRRDF | B90: ssTotal | C90: =SUM(C86:C89) -> 0 | D90: =SUM(D86:D89) -> 0 k€ | E90: =SUM(E86:E89) -> 0 k€ | F90: 0 k€ | G90: 0 k€ | H90: 0 k€ | I90: 0 k€ | J90: 0 k€ | K90: 0 k€ | M90: =M89 -> 2200TRRDF | N90: ssTotal | O90: =SUM(O86:O89) -> 0 k€ | P90: =SUM(P86:P89) -> 0 k€ | Q90: =SUM(Q86:Q89) -> 0 k€ | R90: 0 k€ | S90: 0 k€ | T90: 0 k€ | U90: 0 k€ | V90: 0 k€ | W90: 0 k€ | Y90: =Y89 -> 2200TRRDF | Z90: ssTotal | AA90: =SUM(AA86:AA89) -> 0 k€ | AB90: =SUM(AB86:AB89) -> 0 k€ | AC90: =SUM(AC86:AC89) -> 0 k€ | AD90: 0 k€ | AE90: 0 k€ | AF90: 0 k€ | AG90: 0 k€ | AH90: 0 k€ | AI90: 0 k€

Sheet Modèle Ach (hidden)
D2: Détail des achats par OE
E5: ="PFA 12/"&[3]VBA!$P$8 -> PFA 12/2021 | H5: ="PFA 01/"&[3]VBA!$Q$8 -> PFA 01/2022
E6: =MONTH(RIGHT(E5,7)) -> 12 | H6: =MONTH(RIGHT(H5,7)) -> 1 | K6: Ecart
A7: OE | C7: Budget | E7: Réalisé | F7: RAF | G7: Total PFA | H7: Réalisé | I7: RAF | J7: Total PFA | K7: PFA M-1
A8: 22001ATU1 | B8: ACHATS | C8: =IFERROR(VLOOKUP(A8&B8,#REF!,8,FALSE)/1000,0) -> 0 k€ | D8: 0 k€ | E8: 0 k€ | F8: =(IFERROR(+INDEX(#REF!,MATCH($A8,#REF!,0),MATCH(LEFT($B8,1),#REF!,0)),0)) -> 0 k€ | G8: =SUM(D8:F8) -> 0 k€ | H8: 0 k€ | I8: =(IFERROR(+INDEX(#REF!,MATCH($A8,#REF!,0),MATCH(LEFT($B8,1),#REF!,0)),0)) -> 0 k€ | J8: =SUM(H8:I8) -> 0 k€ | K8: =J8-G8 -> 0 k€
A9: 22001ATU1 | B9: SOUS TRAITANCE | C9: =IFERROR(VLOOKUP(A9&B9,#REF!,8,FALSE)/1000,0) -> 0 k€ | D9: 0 k€ | E9: 0 k€ | F9: =(IFERROR(+INDEX(#REF!,MATCH($A9,#REF!,0),MATCH(LEFT($B9,1),#REF!,0)),0)) -> 0 k€ | G9: =SUM(D9:F9) -> 0 k€ | H9: 0 k€ | I9: =(IFERROR(+INDEX(#REF!,MATCH($A9,#REF!,0),MATCH(LEFT($B9,1),#REF!,0)),0)) -> 0 k€ | J9: =SUM(H9:I9) -> 0 k€ | K9: =J9-G9 -> 0 k€
A10: 22001ATU1 | B10: FRAIS | C10: =IFERROR(VLOOKUP(A10&B10,#REF!,8,FALSE)/1000,0) -> 0 k€ | D10: 0 k€ | E10: 0 k€ | F10: =(IFERROR(+INDEX(#REF!,MATCH($A10,#REF!,0),MATCH(LEFT($B10,1),#REF!,0)),0)) -> 0 k€ | G10: =SUM(D10:F10) -> 0 k€ | H10: 0 k€ | I10: =(IFERROR(+INDEX(#REF!,MATCH($A10,#REF!,0),MATCH(LEFT($B10,1),#REF!,0)),0)) -> 0 k€ | J10: =SUM(H10:I10) -> 0 k€ | K10: =J10-G10 -> 0 k€
A11: 22001ATU1 | B11: ENGAGÉ | C11: =IFERROR(VLOOKUP(A11&B11,#REF!,8,FALSE)/1000,0) -> 0 k€ | D11: 0 k€ | E11: 0 k€ | F11: =(IFERROR(+INDEX(#REF!,MATCH($A11,#REF!,0),MATCH("A+S+F",#REF!,0)),0)) -> 0 k€ | G11: =SUM(D11:F11) -> 0 k€ | H11: 0 k€ | I11: =(IFERROR(+INDEX(#REF!,MATCH($A11,#REF!,0),MATCH("A+S+F",#REF!,0)),0)) -> 0 k€ | J11: =SUM(H11:I11) -> 0 k€ | K11: =J11-G11 -> 0 k€
A12: =A11 -> 22001ATU1 | B12: ssTotal | C12: =SUM(C8:C11) -> 0 k€ | D12: =SUM(D8:D11) -> 0 k€ | E12: =SUM(E8:E11) -> 0 k€ | F12: 0 k€ | G12: 0 k€ | H12: 0 k€ | I12: 0 k€ | J12: 0 k€ | K12: 0 k€

Sheet 2501 - 2.22 (hidden)
A1: 2501 | C1: =CONCATENATE("PFA ",Y2) -> PFA 31.1.22 | K1: =CONCATENATE("PFA ",Y4) -> PFA 28.2.22 | Y1: dates
C2: Réalisé N-1 | D2: Réalisé N | E2: Nb heures RAF | F2: MO K€ RAF | G2: HA K€ RAF | H2: Provisions | I2: PFA TOTAL | K2: Réalisé N-1 | L2: Réalisé N | M2: Nb heures RAF | N2: MO K€ RAF | O2: HA K€ RAF | P2: Provisions | Q2: PFA TOTAL | S2: Budget inital | T2: écart budget | Y2: 31.1.22
B4: P | C4: 463 | D4: 0 | G4: 5 | I4: =+C4+D4+F4+G4+H4 -> 468 | K4: =C4 -> 463 | L4: 0 | O4: 5 | Q4: =+K4+L4+N4+O4+P4 -> 468 | R4: =Q4-I4 -> 0 | S4: 567 | T4: =+Q4-S4 -> -99 | Y4: 28.2.22
B5: DEV | C5: 43 | D5: 77 | E5: 53653 | F5: 5720 | G5: 2095 | H5: 1000 | I5: =+C5+D5+F5+G5+H5 -> 8935 | K5: =C5 -> 43 | L5: 195 | M5: =47897+4610 -> 52507 | N5: 5599 | O5: =875+1107+75+53 -> 2110 | P5: 1000 | Q5: =+K5+L5+N5+O5+P5 -> 8947 | R5: =Q5-I5 -> 12 | S5: 8938 | T5: =+Q5-S5 -> 9
C8: Heures théoriques consommées | D8: =CONCATENATE("Heures réalisées entre le ",Y2," et le ",Y4) -> Heures réalisées entre le 31.1.22 et le 28.2.22 | E8: Ecart à justifier | I8: HA théoriques consommés | J8: =CONCATENATE("HA réalisés entre le ",Y2," et le ",Y4) -> HA réalisés entre le 31.1.22 et le 28.2.22 | K8: Ecart à justifier | N8: Ecart Provisions
C11: =+E4-M4 -> 0 | D11: 0 | E11: =+D11-C11 -> 0 | F11: hrs | G11: 1/ | I11: =G4-O4 -> 0 | J11: 0 | K11: =+J11-I11 -> 0 | L11: K€ | M11: 1/ | N11: =P4-H4 -> 0 | O11: K€ | Q11: =E11*0.108+K11+N11 -> 0
C12: =+E5-M5 -> 1,146 | D12: =1764.8-714.6 -> 1050.2 | E12: =+D12-C12 -> -96 | F12: hrs | G12: 1/ | I12: =G5-O5 -> -15 | J12: 4 | K12: =+J12-I12 -> 19 | L12: K€ | M12: 1/ | N12: =P5-H5 -> 0 | O12: K€ | Q12: =E12*0.108+K12+N12 -> 9
B17: Variation PFA : | D17: =+R4+R5 -> 12 | E17: k€
B18: Préfinancement avant démarrage du contrat STM MHT -> travaux finis
B19: Notification du développement du contrat STM MHT en décembre 2021
I21: Réalisé | J21: En k€ | K21: En h | L21: En HA
B22: Réalisé
J23: =+K23*0.108 -> 0 k€
J24: =+K24*0.108 -> 0 k€ | N24: *Refaire le point des devis métier prévu fin mars pour la partie Electronique et Mécanique - Logiciel sur avril
J25: =+K25*0.108 -> 0 k€
J26: =+K26*0.108 -> 0 k€ | N26: *Plan de charge Ok sur 3prochains mois - besoin de presta pour prendre en charge 1 carte (en même temps)
I28: RAF | J28: En k€ | K28: En h | L28: En HA | N28: *Frais Maitre Barbaut non inclus dans PFA +5 à 10k€
B29: RAF
O32: =IF(STDEV(+L34,K12+K13)<1,"OK Justif HA","Ecart") -> Ecart
B33: *Refaire le point des devis métier prévu fin mars pour la partie Electronique et Mécanique - Logiciel sur avril | O33: =IF(STDEV(K34,E12+E11)<20,"OK Justif Heures","Ecart") -> Ecart
I34: TOTAL | J34: =SUM(J22:J33) -> 0 k€ | K34: =+K23+K25+K31+K30+K26 -> 0 hrs | L34: =SUM(L22:L33) -> 0 k€
B35: *Plan de charge Ok sur 3prochains mois - besoin de presta pour prendre en charge 1 carte (en même temps)
B36: *Frais Maitre Barbaut non inclus dans PFA +5 à 10k€ | K36: Variation PFA | M36: =+J34+L34 -> 0 k€
B39: Risques
K40: =C1 -> PFA 31.1.22 | L40: Variation | M40: =+K1 -> PFA 28.2.22 | P40: Risque ajouté
C41: * Séminaire Risque prévu fin mars | J41: Stabilité des données d’interface avec lanceur | K41: 150 k€ | M41: =+K41+L41 -> 150 k€ | P41: Risque modifié
C42: Chiffrage des nouveaux risques et voir la concordance avec ceux existants | J42: Retard sur programme Lanceur | K42: 150 k€ | M42: =+K42+L42 -> 150 k€ | P42: Risque inchangé
J43: Pb en qualification en environnement | K43: 150 k€ | M43: 150 k€
J44: Méconnaissance de l’environnement aéro | K44: 150 k€ | M44: 150 k€
J45: EN 9100 | K45: 100 k€ | M45: 100 k€
J46: SLI / AMDEC | K46: 100 k€ | M46: 100 k€
J47: Evolutions suite GT Training | K47: 100 k€ | M47: 100 k€ | O47: =IF(STDEV(L51,N12)<1,"OK Justif Prov","Ecart") -> OK Justif Prov
J48: Outil de 3A | K48: 200 k€ | M48: 200 k€
J49: BDD terrain | K49: 100 k€ | M49: 100 k€
J50: Opportunité - 1 lot de fabrication | K50: -200 k€ | M50: -200 k€
K51: =SUM(K41:K50) -> 1,000 k€ | L51: =SUM(L41:L50) -> 0 | M51: 1,000 k€

Sheet Par OE (hidden)
A1: 2501
C3: Quantité Heures | D3: PFA 31.1.2022 | H3: PFA 28.2.2022
C4: Budget | G4: Ecart | K4: Ecart | L4: Ecart
D5: Réalisé | E5: RAF | F5: Total PFA | G5: Budget | H5: Réalisé | I5: RAF | J5: Total PFA | K5: Budget | L5: PFA M-1
C6: =SUM(C7:C17) -> 4,142.00 | D6: =SUM(D7:D17) -> 549.60 | E6: =SUM(E7:E17) -> 3,520.00 | F6: =+D6+E6 -> 4,069.60 | G6: =F6-C6 -> -72.40 | H6: =SUM(H7:H17) -> 821.30 | I6: =SUM(I7:I17) -> 2,443.00 | J6: =+H6+I6 -> 3,264.30 | K6: =J6-C6 -> -877.70 | L6: =J6-F6 -> -805.30
A7: 25011CONP | B7: ETE | C7: 555.00 | D7: 59.60 | E7: 420.00 | F7: =+D7+E7 -> 479.60 | G7: =F7-C7 -> -75.40 | H7: 58.60 | I7: 430.00 | J7: =+H7+I7 -> 488.60 | K7: =J7-C7 -> -66.40 | L7: =J7-F7 -> 9.00
A8: 25011CONP | B8: ETL | C8: 1,340.00 | D8: 275.60 | E8: 1,630.00 | F8: =+D8+E8 -> 1,905.60 | G8: 565.60 | H8: 355.80 | I8: 980.00 | J8: 1,335.80 | K8: -4.20 | L8: -569.80
A9: 25011CONP | B9: ETM | C9: 546.00 | D9: 96.20 | E9: 606.00 | F9: 702.20 | G9: 156.20 | H9: 230.90 | I9: 465.00 | J9: 695.90 | K9: 149.90 | L9: -6.30
A10: 25011CONP | B10: EXP | C10: 311.00 | D10: 4.20 | E10: 320.00 | F10: 324.20 | G10: 13.20 | H10: 16.80 | I10: 275.00 | J10: 291.80 | K10: -19.20 | L10: -32.40
A11: 25011CONP | B11: GDC | C11: 220.00 | G11: -220.00 | K11: -220.00 | L11: 0
A12: 25011CONP | B12: PGE | C12: 210.00 | G12: -210.00 | K12: -210.00 | L12: 0
A13: 25011CONP | B13: RTA | C13: 700.00 | D13: 114.00 | E13: 514.00 | F13: 628.00 | G13: -72.00 | H13: 152.00 | I13: 263.00 | J13: 415.00 | K13: -285.00 | L13: -213.00
A14: 25011CONP | B14: QMC | C14: 80.00 | G14: -80.00 | K14: -80.00 | L14: 0
A15: 25011CONP | B15: PGI | C15: 20.00 | E15: 30.00 | F15: 30.00 | G15: 10.00 | H15: 5.60 | I15: 30.00 | J15: 35.60 | K15: 15.60 | L15: 5.60
A16: 25011CONP | B16: QPG | C16: 160.00 | G16: -160.00 | K16: -160.00 | L16: 0
A17: 25011CONP | B17: SRX | C17: 0 | E17: 0 | F17: 0 | G17: 0 | H17: 1.60 | I17: 0 | J17: 1.60 | K17: 1.60 | L17: 1.60
D18: =+D19 -> 3.00 | F18: 3.00 | G18: 3.00 | H18: 9.10 | J18: 9.10 | K18: 9.10 | L18: 6.10
A19: 25015INDS | B19: ETE | C19: 700.00 | D19: 3.00 | F19: 3.00 | G19: -697.00 | H19: 9.10 | J19: 9.10 | K19: -690.90 | L19: 6.10
A20: 2501DMNGT | D20: 162.00 | F20: 162.00 | G20: 162.00 | H20: 176.20 | J20: 176.20 | K20: 176.20 | L20: 14.20
A21: PGE | C21: 6,000.00 | D21: 99.20 | F21: 99.20 | G21: -5,900.80 | H21: 119.60 | J21: 119.60 | K21: -5,880.40 | L21: 20.40
A22: QPG | C22: 2,400.00 | D22: 62.80 | F22: 62.80 | G22: -2,337.20 | H22: 56.60 | J22: 56.60 | K22: -2,343.40 | L22: -6.20
A23: 25012COND | F23: 0 | G23: 0 | H23: 43.60 | J23: 43.60 | K23: 43.60 | L23: 43.60
A24: ETL | C24: 3,946.00 | F24: 0 | G24: -3,946.00 | H24: 43.60 | J24: 43.60 | K24: -3,902.40 | L24: 43.60
A25: Total général | D25: =D6+D18+D20 -> 714.60 | E25: =SUM(E6,E18,E20,E23) -> 3,520.00 | F25: 4,234.60 | G25: 4,234.60 | H25: 1,050.20 | J25: 1,050.20 | K25: 1,050.20 | L25: -3,184.40
C26: K€
A27: 25011CONP
A28: Total H VAL
A29: ACHATS
A30: SOUS TRAITANCE
A31: FRAIS
A32: ENGAGES
A33: Provisions
A34: TOTAL PFA

Sheet Par OGE (hidden)
A1: 2501
D5: PFA 31.1.2022 | H5: PFA 28.2.2022
B6: Budget | C6: Réalisé N-1 | G6: Ecart | K6: Ecart | L6: Ecart
D7: Réalisé | E7: RAF | F7: Total PFA | G7: Budget | H7: Réalisé | I7: RAF | J7: Total PFA | K7: Budget | L7: PFA M-1
A8: MO (heures en k€] | B8: 5,864 | C8: 43 | D8: 77 | E8: 5720 | F8: =SUM(C8:E8) -> 5840 | G8: =+F8-B8 -> -24 | H8: 190 | I8: 5599 | J8: =SUM(H8:I8)+$C$8 -> 5832 | K8: =+J8-B8 -> -32 | L8: =J8-F8 -> -8
A9: ACHATS | B9: 1,865 | C9: 0 | E9: 875 | F9: 875 | G9: =+F9-B9 -> -990 | I9: 875 | J9: =SUM(H9:I9) -> 875 | K9: -990 | L9: 0
A10: SOUS TRAITANCE | B10: 156 | C10: 0 | E10: 1137 | F10: 1137 | G10: 981 | H10: 4.2 | I10: 1101 | J10: =SUM(H10:I10) -> 1105 | K10: 949 | L10: -32
A11: FRAIS | B11: 75 | C11: 0 | E11: 75 | F11: 75 | G11: 0 | I11: 75 | J11: =SUM(H11:I11) -> 75 | K11: 0 | L11: 0
A12: ENGAGES | C12: 0 | E12: 8 | F12: 8 | G12: 8 | I12: 50 | J12: =SUM(H12:I12) -> 50 | K12: 50 | L12: 42
A13: Provisions | B13: 1,000 | C13: 0 | E13: 1000 | F13: 1000 | G13: =F13-B13 -> 0 | I13: 1000 | J13: =SUM(H13:I13) -> 1000 | K13: 0 | L13: 0
A14: TOTAL PFA | B14: =SUM(B8:B13) -> 8960 | F14: =SUM(F8:F13) -> 8935 | G14: -25 | J14: =SUM(J8:J13) -> 8937 | K14: -23 | L14: 2
D16: PFA 31.1.2022 | H16: PFA 28.2.2022
G17: Ecart | K17: Ecart | L17: Ecart
A18: Quantité Heures | D18: Réalisé | E18: RAF | F18: Total PFA | G18: Budget | H18: Réalisé | I18: RAF | J18: Total PFA | K18: Budget | L18: PFA M-1
A19: ETE | B19: 555.00 | D19: 59.60 | E19: 420.00 | F19: =+D19+E19 -> 479.60 | G19: =F19-B19 -> -75.40 | H19: 58.60 | I19: 430.00 | J19: =+H19+I19 -> 488.60 | K19: =J19-B19 -> -66.40 | L19: =J19-F19 -> 9.00
A20: ETL | B20: 1,340.00 | D20: 275.60 | E20: 1,630.00 | F20: =+D20+E20 -> 1,905.60 | G20: 565.60 | H20: 355.80 | I20: 980.00 | J20: 1,335.80 | K20: -4.20 | L20: =J20-F20 -> -569.80
A21: ETM | B21: 546.00 | D21: 96.20 | E21: 606.00 | F21: 702.20 | G21: 156.20 | H21: 230.90 | I21: 465.00 | J21: 695.90 | K21: 149.90 | L21: -6.30
A22: EXP | B22: 311.00 | D22: 4.20 | E22: 320.00 | F22: 324.20 | G22: 13.20 | H22: 16.80 | I22: 275.00 | J22: 291.80 | K22: -19.20 | L22: -32.40
A23: GDC | B23: 220.00 | G23: -220.00 | K23: -220.00 | L23: 0
A24: PGE | B24: 210.00 | G24: -210.00 | K24: -210.00 | L24: 0
A25: RTA | B25: 700.00 | D25: 114.00 | E25: 514.00 | F25: 628.00 | G25: -72.00 | H25: 152.00 | I25: 263.00 | J25: 415.00 | K25: -285.00 | L25: -213.00
A26: QMC | B26: 80.00 | G26: -80.00 | K26: -80.00 | L26: 0
A27: PGI | B27: 20.00 | E27: 30.00 | F27: 30.00 | G27: 10.00 | H27: 5.60 | I27: 30.00 | J27: 35.60 | K27: 15.60 | L27: 5.60
A28: QPG | B28: 160.00 | G28: -160.00 | K28: -160.00 | L28: 0
A29: SRX | B29: 0 | E29: 0 | F29: 0 | G29: 0 | H29: 1.60 | I29: 0 | J29: 1.60 | K29: 1.60 | L29: 1.60
A30: Total Heures | D30: =SUM(D19:D29) -> 549.60 | E30: =SUM(E19:E29) -> 3,520.00 | F30: 4,069.60 | G30: -72.40 | H30: 821.30 | I30: 2,443.00 | J30: 3,264.30 | K30: -877.70 | L30: -805.30
A34: Commentaires
